Workbook

Sheet START
A1: =muni -> NC074 Kareeberg

Sheet Instructions
D2: 2020
X4: Yes
X5: No
W7: Type of Entities Range: | X7: Parent Municipality
X8: Consolidated Information
W10: Date linked | X10: 17
W11: Date | X11: =VLOOKUP(X10,W39:X55,2) -> Mid-Year Assessment | Y11: 2013-08-01
W19: MTREF Range: | X19: 2008
X20: 2009
X21: 2010
X22: 2011
X23: 2012
X24: 2013
X25: 2014
X26: 2015
X27: 2016
X28: 2017
X29: 2018
X30: 2019
X31: 2020
X32: 2021
X33: 2022
W34: MTREF Linked:
W35: MTREF: | X35: 10
X36: =INDEX(X19:X33,X35,1) -> 2017
W37: Fin Year:
X38: =MTREF&"/"&RIGHT(MTREF,2)+1 -> 2017/18
V39: Date/type of report | W39: 1 | X39: M01 July
W40: 2 | X40: M02 August
W41: 3 | X41: M03 September
W42: 4 | X42: M04 October
W43: 5 | X43: M05 November
W44: 6 | X44: M06 December
W45: 7 | X45: M07 January
W46: 8 | X46: M08 February
W47: 9 | X47: M09 March
W48: 10 | X48: M10 April
W49: 11 | X49: M11 May
W50: 12 | X50: M12 June
W51: 13 | X51: Q1 First Quarter
W52: 14 | X52: Q2 Second Quarter
W53: 15 | X53: Q3 Third Quarter
W54: 16 | X54: Q4 Fourth Quarter
W55: 17 | X55: Mid-Year Assessment

Sheet Template names (hidden)
A1: Common sheet headings
A2: Head1 | B2: =HLOOKUP(MTREF,Headings,2) -> 2016/17 | C2: Prior year -1
A3: Head2 | B3: =HLOOKUP(MTREF,Headings,5) -> Budget Year 2017/18 | C3: Year of approved budget
A4: Head2A | B4: =HLOOKUP(MTREF,Headings,4) -> 2017/18 | C4: Approved budget year
A5: Head3 | B5: =HLOOKUP(MTREF,Headings,3) -> 2017/18 Medium Term Revenue & Expenditure Framework | C5: MTREF header name
A6: Head5 | B6: Audited Outcome
A7: Head5A | B7: Outcome
A8: Head5B | B8: Pre-audit outcome
A9: Head6 | B9: Original Budget
A10: Head7 | B10: Adjusted Budget
A11: Head8 | B11: Full Year Forecast
A12: Head9 | B12: =HLOOKUP(MTREF,Headings,5) -> Budget Year 2017/18 | C12: 1st year of MTREF | D12: Year1
A13: Head10 | B13: =HLOOKUP(MTREF,Headings,6) -> Budget Year +1 2018/19 | C13: 2nd year of MTREF | D13: Year2
A14: Head11 | B14: =HLOOKUP(MTREF,Headings,7) -> Budget Year +2 2019/20 | C14: 3rd year of MTREF | D14: Year3
A15: Head12 | B15: Forecast 2010/11 | D15: Year4
A16: Head13 | B16: Forecast 2011/12 | D16: Year5
A17: Head14 | B17: Forecast 2012/13 | D17: Year6
A18: Head15 | B18: Forecast 2013/14 | D18: Year7
A19: Head16 | B19: Forecast 2014/15 | D19: Year8
A20: Head17 | B20: Forecast 2015/16 | D20: Year9
A21: Head18 | B21: Forecast 2016/17 | D21: Year10
A22: Head19 | B22: Forecast 2017/18 | D22: Year11
A23: Head20 | B23: Forecast 2018/19 | D23: Year12
A24: Head21 | B24: Forecast 2019/20 | D24: Year13
A25: Head22 | B25: Forecast 2020/21 | D25: Year14
A26: Head23 | B26: Forecast 2021/22 | D26: Year15
A27: Head24 | B27: Description | D27: Desc
A28: Head25 | B28: Schedule of funding diligence | D28: fdil
A29: Head26 | B29: Vote Description | D29: VDesc
A30: Head27 | B30: Ref
A31: Head27a | B31: References
A32: Head28 | B32: Surplus/ (Deficit) for the year | D32: Result
A33: Head29 | B33: Annual target 2007/08
A34: Head30 | B34: Revised target 2007/08
A35: Head31 | B35: Quarter ended 30 September
A36: Head32 | B36: Quarter ended 31 December
A37: Head33 | B37: Quarter ended 31 March
A38: Head34 | B38: Quarter ended 30 June
A39: Head35 | B39: Variance explanation
A40: Head36 | B40: YTD Actual 31 Dec
A41: Head37 | B41: YTD Budget 31 Dec
A42: Head38 | B42: Monthly actual
A43: Head39 | B43: YearTD actual
A44: Head40 | B44: YearTD budget
A45: Head41 | B45: YTD variance
A46: Head42 | B46: Surplus/ (Deficit) for the yr/period
A47: Head43 | B47: =Head3&" Summary" -> 2017/18 Medium Term Revenue & Expenditure Framework Summary
A48: Head44 | B48: 1996 Census
A49: Head45 | B49: 2001 Census
A50: Head46 | B50: - Adjustments Budget - Month YYYY
A51: Head47 | B51: Previous target year to complete
A52: Head48 | B52: Present value
A53: Head49 | B53: Virement
A54: Head50 | B54: Other Adjusts.
A55: Head51 | B55: Accum. Funds
A56: Head52 | B56: Multi-year capital
A57: Head53 | B57: Unfore. Unavoid.
A58: Head54 | B58: Prior Adjusted
A59: Head55 | B59: Nat. or Prov. Govt
A60: Head56 | B60: Total Adjusts.
A61: Head57 | B61: =date -> Mid-Year Assessment
A62: Head58 | B62: Parent muni.
A63: Head59 | B63: Downward adjusts
A64: Head60 | B64: Month | C64: Report header part name | D64: =MONTH(date) -> 
A65: SFPerf1 | B65: Budgeted Financial Performance
A66: SFPerf2 | B66: Forecast Financial Performance
A67: SFPos1 | B67: Budgeted Financial Position
A68: SFPos2 | B68: Forecast Financial Position
A69: Cash1 | B69: Budget Cash Flow
A70: Cash2 | B70: Forecast Cash Flow
A71: RandM | B71: Expenditure includes repairs & maintenance of R'000
A72: Standard nomenclature
A73: Muni | B73: ='Lookup and lists'!B27 -> NC074 Kareeberg
A74: Municipal Entities | B74: 2 | C74: Type of report: | D74: 3
A75: =IF((MuniEntities=1)*(MuniType=2),"YES","NO") -> NO | B75: Does this municipality have entities (consolidated budget and entity budgets required)? YES/NO
A76: s71 (Monthly Mayor report) schedules and charts
A77: S71sum | B77: =IF(Consolques="YES",E77,F77) -> Table C1 Monthly Budget Statement Summary | D77: Table C1 | E77: =D77&"Consolidated Monthly Budget Statement Summary" -> Table C1 Consolidated Monthly Budget Statement Summary | F77: =D77&"Monthly Budget Statement Summary" -> Table C1 Monthly Budget Statement Summary
A78: S71C | B78: Table C3 Monthly Budget Statement - Financial Performance (revenue and expenditure by municipal vote) | D78: Table C3 | E78: =D78&"Consolidated Monthly Budget Statement - Financial Performance (revenue and expenditure by municipal vote) " -> Table C3 Consolidated Monthly Budget Statement - Financial Performance (revenue and expenditure by municipal vote) | F78: =D78&"Monthly Budget Statement - Financial Performance (revenue and expenditure by municipal vote)" -> Table C3 Monthly Budget Statement - Financial Performance (revenue and expenditure by municipal vote)
A79: S71A | B79: =IF(Consolques="YES",E79,F79) -> Table C2 Monthly Budget Statement - Financial Performance (standard classification) | D79: Table C2 | E79: =D79&"Consolidated Monthly Budget Statement - Financial Performance (standard classification) " -> Table C2 Consolidated Monthly Budget Statement - Financial Performance (standard classification) | F79: =D79&"Monthly Budget Statement - Financial Performance (standard classification)" -> Table C2 Monthly Budget Statement - Financial Performance (standard classification)
A80: S71B | B80: =IF(Consolques="YES",E80,F80) -> Table C4 Monthly Budget Statement - Financial Performance (revenue and expenditure) | D80: Table C4 | E80: =D80&"Consolidated Monthly Budget Statement - Financial Performance (revenue and expenditure) " -> Table C4 Consolidated Monthly Budget Statement - Financial Performance (revenue and expenditure) | F80: =D80&"Monthly Budget Statement - Financial Performance (revenue and expenditure)" -> Table C4 Monthly Budget Statement - Financial Performance (revenue and expenditure)
A81: S71D | B81: =IF(Consolques="YES",E81,F81) -> Table C5 Monthly Budget Statement - Capital Expenditure (municipal vote, standard classification and funding) | D81: Table C5 | E81: =D81&"Consolidated Monthly Budget Statement - Capital Expenditure (municipal vote, standard classification and funding " -> Table C5 Consolidated Monthly Budget Statement - Capital Expenditure (municipal vote, standard classification and funding | F81: =D81&"Monthly Budget Statement - Capital Expenditure (municipal vote, standard classification and funding)" -> Table C5 Monthly Budget Statement - Capital Expenditure (municipal vote, standard classification and funding)
A82: S71E | B82: Table C6 Monthly Budget Statement - Financial Position | D82: Table C6 | E82: =D82&"Consolidated Monthly Budget Statement - Financial Position " -> Table C6 Consolidated Monthly Budget Statement - Financial Position | F82: =D82&"Monthly Budget Statement - Financial Position" -> Table C6 Monthly Budget Statement - Financial Position
A83: S71F | B83: Table C7 Monthly Budget Statement - Cash Flow | D83: Table C7 | E83: =D83&"Consolidated Monthly Budget Statement - Cash Flow " -> Table C7 Consolidated Monthly Budget Statement - Cash Flow | F83: =D83&"Monthly Budget Statement - Cash Flow " -> Table C7 Monthly Budget Statement - Cash Flow
A84: S71G | B84: =D84&"Material variance explanations " -> Supporting Table SC1 Material variance explanations | D84: Supporting Table SC1
A85: S71H | B85: =D85&"Monthly Budget Statement - performance indicators " -> Supporting Table SC2 Monthly Budget Statement - performance indicators | D85: Supporting Table SC2
A86: S71I | B86: =D86&"Monthly Budget Statement - aged debtors" -> Supporting Table SC3 Monthly Budget Statement - aged debtors | D86: Supporting Table SC3
A87: S71J | B87: =D87&"Monthly Budget Statement - aged creditors " -> Supporting Table SC4 Monthly Budget Statement - aged creditors | D87: Supporting Table SC4
A88: S71K | B88: =D88&"Monthly Budget Statement - investment portfolio " -> Supporting Table SC5 Monthly Budget Statement - investment portfolio | D88: Supporting Table SC5
A89: S71L | B89: =D89&"Monthly Budget Statement - transfers and grant receipts " -> Supporting Table SC6 Monthly Budget Statement - transfers and grant receipts | D89: Supporting Table SC6
A90: S71M | B90: =D90&" Monthly Budget Statement - transfers and grant expenditure " -> Supporting Table SC7(1) Monthly Budget Statement - transfers and grant expenditure | D90: Supporting Table SC7(1)
A91: S71N | B91: =D91&"Monthly Budget Statement - councillor and staff benefits " -> Supporting Table SC8 Monthly Budget Statement - councillor and staff benefits | D91: Supporting Table SC8
A92: S71O | B92: =D92&"Monthly Budget Statement - actuals and revised targets for cash receipts" -> Supporting Table SC9 Monthly Budget Statement - actuals and revised targets for cash receipts | D92: Supporting Table SC9
A93: S71P | B93: =IF(Consolques="YES",E93,F93) -> NOT REQUIRED - municipality does not have entities or this is the parent municipality's budget | D93: Supporting Table SC10 | E93: =D93&"Monthly Budget Statement - Parent Municipality Financial Performance (revenue and expenditure) " -> Supporting Table SC10 Monthly Budget Statement - Parent Municipality Financial Performance (revenue and expenditure) | F93: NOT REQUIRED - municipality does not have entities or this is the parent municipality's budget
A94: S71Q | B94: NOT REQUIRED - municipality does not have entities or this is the parent municipality's budget | D94: Supporting Table SC11 | E94: =D94&"Monthly Budget Statement - summary of municipal entities" -> Supporting Table SC11 Monthly Budget Statement - summary of municipal entities | F94: NOT REQUIRED - municipality does not have entities or this is the parent municipality's budget
A95: S71R | B95: Supporting Table SC12 Monthly Budget Statement - capital expenditure trend | D95: Supporting Table SC12 | E95: =D95&"Consolidated Monthly Budget Statement - capital expenditure trend " -> Supporting Table SC12 Consolidated Monthly Budget Statement - capital expenditure trend | F95: =D95&"Monthly Budget Statement - capital expenditure trend" -> Supporting Table SC12 Monthly Budget Statement - capital expenditure trend
A96: S71Sa | B96: Supporting Table SC13a Monthly Budget Statement - capital expenditure on new assets by asset class | D96: Supporting Table SC13a | E96: =D96&"Consolidated Monthly Budget Statement - capital expenditure on new assets by asset class" -> Supporting Table SC13a Consolidated Monthly Budget Statement - capital expenditure on new assets by asset class | F96: =D96&"Monthly Budget Statement - capital expenditure on new assets by asset class" -> Supporting Table SC13a Monthly Budget Statement - capital expenditure on new assets by asset class
A97: S71Sb | B97: Supporting Table SC13b Monthly Budget Statement - capital expenditure on renewal of existing assets by asset class | D97: Supporting Table SC13b | E97: =D97&"Consolidated Monthly Budget Statement - capital expenditure on renewal of existing assets by asset class" -> Supporting Table SC13b Consolidated Monthly Budget Statement - capital expenditure on renewal of existing assets by asset class | F97: =D97&"Monthly Budget Statement - capital expenditure on renewal of existing assets by asset class" -> Supporting Table SC13b Monthly Budget Statement - capital expenditure on renewal of existing assets by asset class
A98: S71Sc | B98: Supporting Table SC13c Monthly Budget Statement - expenditure on repairs and maintenance by asset class | D98: Supporting Table SC13c | E98: =D98&"Consolidated Monthly Budget Statement - expenditure on repairs and maintenance by asset class" -> Supporting Table SC13c Consolidated Monthly Budget Statement - expenditure on repairs and maintenance by asset class | F98: =D98&"Monthly Budget Statement - expenditure on repairs and maintenance by asset class" -> Supporting Table SC13c Monthly Budget Statement - expenditure on repairs and maintenance by asset class
A99: S71Sd | B99: Supporting Table SC13d Monthly Budget Statement - depreciation by asset class | D99: Supporting Table SC13d | E99: =D99&"Consolidated Monthly Budget Statement - depreciation by asset class" -> Supporting Table SC13d Consolidated Monthly Budget Statement - depreciation by asset class | F99: =D99&"Monthly Budget Statement - depreciation by asset class" -> Supporting Table SC13d Monthly Budget Statement - depreciation by asset class
B100: s71 charts listing
B101: =D101&Head2A&" Capital Expenditure Monthly Trend: actual v target" -> Chart C1 2017/18 Capital Expenditure Monthly Trend: actual v target | D101: Chart C1
B102: =D102&Head2A&" Capital Expenditure: YTD actual v YTD target" -> Chart C2 2017/18 Capital Expenditure: YTD actual v YTD target | D102: Chart C2
B103: =D103&"Aged Consumer Debtors Analysis" -> Chart C3 Aged Consumer Debtors Analysis | D103: Chart C3
B104: =D104&"Consumer Debtors (total by Debtor Customer Category)" -> Chart C4 Consumer Debtors (total by Debtor Customer Category) | D104: Chart C4
B105: =D105&"Aged Creditors Analysis" -> Chart C5 Aged Creditors Analysis | D105: Chart C5
A106: S71T | B106: =D106&" Monthly Budget Statement - Expenditure against approved rollovers" -> Supporting Table SC7(2) Monthly Budget Statement - Expenditure against approved rollovers | D106: Supporting Table SC7(2)

Sheet Lookup and lists (hidden)
A1: Description | B1: 2007 | C1: 2008 | D1: 2009 | E1: 2010 | F1: 2011 | G1: 2012 | H1: 2013 | I1: 2014 | J1: 2015 | K1: 2016 | L1: 2017 | M1: 2018 | N1: 2019 | O1: 2020 | Q1: Grants: | R1: National - opex | S1: Provincial - opex | T1: National - capex | U1: Provincial - capex | V1: YESNO
A2: ='Template names'!C2 -> Prior year -1 | B2: 2006/07 | C2: 2007/08 | D2: 2008/09 | E2: =E1-1&"/"&RIGHT(E1,2)-0 -> 2009/10 | F2: =F1-1&"/"&RIGHT(F1,2)-0 -> 2010/11 | G2: 2011/12 | H2: 2012/13 | I2: 2013/14 | J2: 2014/15 | K2: 2015/16 | L2: 2016/17 | M2: 2017/18 | N2: 2018/19 | O2: 2019/20 | R2: Local Government Equitable Share | S2: Health subsidy | T2: Municipal Infrastructure Grant (MIG) | U2: Agriculture | V2: Yes
A3: ='Template names'!C5 -> MTREF header name | B3: 2007/08 Medium Term Revenue & Expenditure Framework | C3: 2008/09 Medium Term Revenue & Expenditure Framework | D3: 2009/10 Medium Term Revenue & Expenditure Framework | E3: =E1&"/"&RIGHT(E1,2)+1&" Medium Term Revenue & Expenditure Framework" -> 2010/11 Medium Term Revenue & Expenditure Framework | F3: =F1&"/"&RIGHT(F1,2)+1&" Medium Term Revenue & Expenditure Framework" -> 2011/12 Medium Term Revenue & Expenditure Framework | G3: 2012/13 Medium Term Revenue & Expenditure Framework | H3: 2013/14 Medium Term Revenue & Expenditure Framework | I3: 2014/15 Medium Term Revenue & Expenditure Framework | J3: 2015/16 Medium Term Revenue & Expenditure Framework | K3: 2016/17 Medium Term Revenue & Expenditure Framework | L3: 2017/18 Medium Term Revenue & Expenditure Framework | M3: 2018/19 Medium Term Revenue & Expenditure Framework | N3: 2019/20 Medium Term Revenue & Expenditure Framework | O3: 2020/21 Medium Term Revenue & Expenditure Framework | R3: RSC Levy Replacement | S3: Ambulance subsidy | T3: Public Transport and Systems | U3: Education | V3: No
A4: ='Template names'!C4 -> Approved budget year | B4: 2007/08 | C4: 2008/09 | D4: 2009/10 | E4: =E1&"/"&RIGHT(E1,2)+1 -> 2010/11 | F4: =F1&"/"&RIGHT(F1,2)+1 -> 2011/12 | G4: 2012/13 | H4: 2013/14 | I4: 2014/15 | J4: 2015/16 | K4: 2016/17 | L4: 2017/18 | M4: 2018/19 | N4: 2019/20 | O4: 2020/21 | R4: Finance Management | S4: Housing | T4: Rural Transport Services and Infrastructure | U4: Health
A5: ='Template names'!C12 -> 1st year of MTREF | B5: Budget Year 2007/08 | C5: Budget Year 2008/09 | D5: Budget Year 2009/10 | E5: ="Budget Year "&E1&"/"&RIGHT(E1,2)+1 -> Budget Year 2010/11 | F5: ="Budget Year "&F1&"/"&RIGHT(F1,2)+1 -> Budget Year 2011/12 | G5: Budget Year 2012/13 | H5: Budget Year 2013/14 | I5: Budget Year 2014/15 | J5: Budget Year 2015/16 | K5: Budget Year 2016/17 | L5: Budget Year 2017/18 | M5: Budget Year 2018/19 | N5: Budget Year 2019/20 | O5: Budget Year 2020/21 | R5: Municipal Systems Improvement | S5: Sport and Recreation | T5: Regional Bulk Infrastructure | U5: Housing and Local Government
A6: ='Template names'!C13 -> 2nd year of MTREF | B6: Budget Year +1 2008/09 | C6: Budget Year +1 2009/10 | D6: Budget Year +1 2010/11 | E6: ="Budget Year +1 "&E1+1&"/"&RIGHT(E1,2)+2 -> Budget Year +1 2011/12 | F6: ="Budget Year +1 "&F1+1&"/"&RIGHT(F1,2)+2 -> Budget Year +1 2012/13 | G6: Budget Year +1 2013/14 | H6: Budget Year +1 2014/15 | I6: Budget Year +1 2015/16 | J6: Budget Year +1 2016/17 | K6: Budget Year +1 2017/18 | L6: Budget Year +1 2018/19 | M6: Budget Year +1 2019/20 | N6: Budget Year +1 2020/21 | O6: Budget Year +1 2021/22 | R6: Water Services Operating Subsidy | T6: Rural Households Infrastructure | U6: Other Departments
A7: ='Template names'!C14 -> 3rd year of MTREF | B7: Budget Year +2 2009/10 | C7: Budget Year +2 2010/11 | D7: Budget Year +2 2011/12 | E7: ="Budget Year +2 "&E1+2&"/"&RIGHT(E1,2)+3 -> Budget Year +2 2012/13 | F7: ="Budget Year +2 "&F1+2&"/"&RIGHT(F1,2)+3 -> Budget Year +2 2013/14 | G7: Budget Year +2 2014/15 | H7: Budget Year +2 2015/16 | I7: Budget Year +2 2016/17 | J7: Budget Year +2 2017/18 | K7: Budget Year +2 2018/19 | L7: Budget Year +2 2019/20 | M7: Budget Year +2 2020/21 | N7: Budget Year +2 2021/22 | O7: Budget Year +2 2022/23 | R7: Energy Efficiency and Demand Management | T7: Neighbourhood Development Partnership | U7: Public Works, Roads, Transport
A8: NOTE: This sheet should not be directly amended - select headings from sheet 'S' | R8: Integrated National Electrification Programme | T8: 2010 FIFA World Cup Stadiums Development | U8: Sport and Recreation
R9: Municipal Drought Relief
R10: 2010 FIFA World Cup Operating
R11: Electricity Demand Side Management
R12: EPWP Incentive
A26: Name link | B26: 232
A27: Name of Muni | B27: =INDEX(B28:B311,B26,1) -> NC074 Kareeberg
B28: Choose name from list | C28: Set name on 'Instructions' sheet
B29: BUF Buffalo City | C29: EC EASTERN CAPE
B30: NMA Nelson Mandela Bay | C30: EC EASTERN CAPE
B31: EC101 Camdeboo | C31: EC EASTERN CAPE
B32: EC102 Blue Crane Route | C32: EC EASTERN CAPE
B33: EC103 Ikwezi | C33: EC EASTERN CAPE
B34: EC104 Makana | C34: EC EASTERN CAPE
B35: EC105 Ndlambe | C35: EC EASTERN CAPE
B36: EC106 Sundays River Valley | C36: EC EASTERN CAPE
B37: EC107 Baviaans | C37: EC EASTERN CAPE
B38: EC108 Kouga | C38: EC EASTERN CAPE
B39: EC109 Kou-Kamma | C39: EC EASTERN CAPE
B40: DC10 Cacadu | C40: EC EASTERN CAPE
B41: EC121 Mbhashe | C41: EC EASTERN CAPE
B42: EC122 Mnquma | C42: EC EASTERN CAPE
B43: EC123 Great Kei | C43: EC EASTERN CAPE
B44: EC124 Amahlathi | C44: EC EASTERN CAPE
B45: EC126 Ngqushwa | C45: EC EASTERN CAPE
B46: EC127 Nkonkobe | C46: EC EASTERN CAPE
B47: EC128 Nxuba | C47: EC EASTERN CAPE
B48: DC12 Amathole | C48: EC EASTERN CAPE
B49: EC131 Inxuba Yethemba | C49: EC EASTERN CAPE
B50: EC132 Tsolwana | C50: EC EASTERN CAPE
B51: EC133 Inkwanca | C51: EC EASTERN CAPE
B52: EC134 Lukhanji | C52: EC EASTERN CAPE
B53: EC135 Intsika Yethu | C53: EC EASTERN CAPE
B54: EC136 Emalahleni (Ec) | C54: EC EASTERN CAPE
B55: EC137 Engcobo | C55: EC EASTERN CAPE
B56: EC138 Sakhisizwe | C56: EC EASTERN CAPE
B57: DC13 Chris Hani | C57: EC EASTERN CAPE
B58: EC141 Elundini | C58: EC EASTERN CAPE
B59: EC142 Senqu | C59: EC EASTERN CAPE
B60: EC143 Maletswai | C60: EC EASTERN CAPE
B61: EC144 Gariep | C61: EC EASTERN CAPE
B62: DC14 Joe Gqabi | C62: EC EASTERN CAPE
B63: EC153 Ngquza Hills | C63: EC EASTERN CAPE
B64: EC154 Port St Johns | C64: EC EASTERN CAPE
B65: EC155 Nyandeni | C65: EC EASTERN CAPE
B66: EC156 Mhlontlo | C66: EC EASTERN CAPE
B67: EC157 King Sabata Dalindyebo | C67: EC EASTERN CAPE
B68: DC15 O .R. Tambo | C68: EC EASTERN CAPE
B69: EC441 Matatiele | C69: EC EASTERN CAPE
B70: EC442 Umzimvubu | C70: EC EASTERN CAPE
B71: EC443 Mbizana | C71: EC EASTERN CAPE
B72: EC444 Ntabankulu | C72: EC EASTERN CAPE
B73: DC44 Alfred Nzo | C73: EC EASTERN CAPE
B74: MAN Mangaung | C74: FS FREE STATE
B75: FS161 Letsemeng | C75: FS FREE STATE
B76: FS162 Kopanong | C76: FS FREE STATE
B77: FS163 Mohokare | C77: FS FREE STATE
B78: FS164 Naledi (Fs) | C78: FS FREE STATE
B79: DC16 Xhariep | C79: FS FREE STATE
B80: FS181 Masilonyana | C80: FS FREE STATE
B81: FS182 Tokologo | C81: FS FREE STATE
B82: FS183 Tswelopele | C82: FS FREE STATE
B83: FS184 Matjhabeng | C83: FS FREE STATE
B84: FS185 Nala | C84: FS FREE STATE
B85: DC18 Lejweleputswa | C85: FS FREE STATE
B86: FS191 Setsoto | C86: FS FREE STATE
B87: FS192 Dihlabeng | C87: FS FREE STATE
B88: FS193 Nketoana | C88: FS FREE STATE
B89: FS194 Maluti-a-Phofung | C89: FS FREE STATE
B90: FS195 Phumelela | C90: FS FREE STATE
B91: FS196 Mantsopa | C91: FS FREE STATE
B92: DC19 Thabo Mofutsanyana | C92: FS FREE STATE
B93: FS201 Moqhaka | C93: FS FREE STATE
B94: FS203 Ngwathe | C94: FS FREE STATE
B95: FS204 Metsimaholo | C95: FS FREE STATE
B96: FS205 Mafube | C96: FS FREE STATE
B97: DC20 Fezile Dabi | C97: FS FREE STATE
B98: EKU Ekurhuleni Metro | C98: GT GAUTENG
B99: JHB City Of Johannesburg | C99: GT GAUTENG
B100: TSH City Of Tshwane | C100: GT GAUTENG
B101: GT421 Emfuleni | C101: GT GAUTENG
B102: GT422 Midvaal | C102: GT GAUTENG
B103: GT423 Lesedi | C103: GT GAUTENG
B104: DC42 Sedibeng | C104: GT GAUTENG
B105: GT481 Mogale City | C105: GT GAUTENG
B106: GT482 Randfontein | C106: GT GAUTENG
B107: GT483 Westonaria | C107: GT GAUTENG
B108: GT484 Merafong City | C108: GT GAUTENG
B109: DC48 West Rand | C109: GT GAUTENG
B110: ETH eThekwini | C110: KZN KWAZULU-NATAL
B111: KZN211 Vulamehlo | C111: KZN KWAZULU-NATAL
B112: KZN212 Umdoni | C112: KZN KWAZULU-NATAL
B113: KZN213 Umzumbe | C113: KZN KWAZULU-NATAL
B114: KZN214 uMuziwabantu | C114: KZN KWAZULU-NATAL
B115: KZN215 Ezinqoleni | C115: KZN KWAZULU-NATAL
B116: KZN216 Hibiscus Coast | C116: KZN KWAZULU-NATAL
B117: DC21 Ugu | C117: KZN KWAZULU-NATAL
B118: KZN221 uMshwathi | C118: KZN KWAZULU-NATAL
B119: KZN222 uMngeni | C119: KZN KWAZULU-NATAL
B120: KZN223 Mpofana | C120: KZN KWAZULU-NATAL
B121: KZN224 Impendle | C121: KZN KWAZULU-NATAL
B122: KZN225 Msunduzi | C122: KZN KWAZULU-NATAL
B123: KZN226 Mkhambathini | C123: KZN KWAZULU-NATAL
B124: KZN227 Richmond | C124: KZN KWAZULU-NATAL
B125: DC22 uMgungundlovu | C125: KZN KWAZULU-NATAL
B126: KZN232 Emnambithi/Ladysmith | C126: KZN KWAZULU-NATAL
B127: KZN233 Indaka | C127: KZN KWAZULU-NATAL
B128: KZN234 Umtshezi | C128: KZN KWAZULU-NATAL
B129: KZN235 Okhahlamba | C129: KZN KWAZULU-NATAL
B130: KZN236 Imbabazane | C130: KZN KWAZULU-NATAL
B131: DC23 Uthukela | C131: KZN KWAZULU-NATAL
B132: KZN241 Endumeni | C132: KZN KWAZULU-NATAL
B133: KZN242 Nquthu | C133: KZN KWAZULU-NATAL
B134: KZN244 Msinga | C134: KZN KWAZULU-NATAL
B135: KZN245 Umvoti | C135: KZN KWAZULU-NATAL
B136: DC24 Umzinyathi | C136: KZN KWAZULU-NATAL
B137: KZN252 Newcastle | C137: KZN KWAZULU-NATAL
B138: KZN253 eMadlangeni | C138: KZN KWAZULU-NATAL
B139: KZN254 Dannhauser | C139: KZN KWAZULU-NATAL
B140: DC25 Amajuba | C140: KZN KWAZULU-NATAL
B141: KZN261 eDumbe | C141: KZN KWAZULU-NATAL
B142: KZN262 uPhongolo | C142: KZN KWAZULU-NATAL
B143: KZN263 Abaqulusi | C143: KZN KWAZULU-NATAL
B144: KZN265 Nongoma | C144: KZN KWAZULU-NATAL
B145: KZN266 Ulundi | C145: KZN KWAZULU-NATAL
B146: DC26 Zululand | C146: KZN KWAZULU-NATAL
B147: KZN271 Umhlabuyalingana | C147: KZN KWAZULU-NATAL
B148: KZN272 Jozini | C148: KZN KWAZULU-NATAL
B149: KZN273 The Big 5 False Bay | C149: KZN KWAZULU-NATAL
B150: KZN274 Hlabisa | C150: KZN KWAZULU-NATAL
B151: KZN275 Mtubatuba | C151: KZN KWAZULU-NATAL
B152: DC27 Umkhanyakude | C152: KZN KWAZULU-NATAL
B153: KZN281 Mfolozi | C153: KZN KWAZULU-NATAL
B154: KZN282 uMhlathuze | C154: KZN KWAZULU-NATAL
B155: KZN283 Ntambanana | C155: KZN KWAZULU-NATAL
B156: KZN284 uMlalazi | C156: KZN KWAZULU-NATAL
B157: KZN285 Mthonjaneni | C157: KZN KWAZULU-NATAL
B158: KZN286 Nkandla | C158: KZN KWAZULU-NATAL
B159: DC28 uThungulu | C159: KZN KWAZULU-NATAL
B160: KZN291 Mandeni | C160: KZN KWAZULU-NATAL
B161: KZN292 KwaDukuza | C161: KZN KWAZULU-NATAL
B162: KZN293 Ndwedwe | C162: KZN KWAZULU-NATAL
B163: KZN294 Maphumulo | C163: KZN KWAZULU-NATAL
B164: DC29 iLembe | C164: KZN KWAZULU-NATAL
B165: KZN431 Ingwe | C165: KZN KWAZULU-NATAL
B166: KZN432 Kwa Sani | C166: KZN KWAZULU-NATAL
B167: KZN433 Greater Kokstad | C167: KZN KWAZULU-NATAL
B168: KZN434 Ubuhlebezwe | C168: KZN KWAZULU-NATAL
B169: KZN435 Umzimkhulu | C169: KZN KWAZULU-NATAL
B170: DC43 Sisonke | C170: KZN KWAZULU-NATAL
B171: LIM331 Greater Giyani | C171: LIM LIMPOPO
B172: LIM332 Greater Letaba | C172: LIM LIMPOPO
B173: LIM333 Greater Tzaneen | C173: LIM LIMPOPO
B174: LIM334 Ba-Phalaborwa | C174: LIM LIMPOPO
B175: LIM335 Maruleng | C175: LIM LIMPOPO
B176: DC33 Mopani | C176: LIM LIMPOPO
B177: LIM341 Musina | C177: LIM LIMPOPO
B178: LIM342 Mutale | C178: LIM LIMPOPO
B179: LIM343 Thulamela | C179: LIM LIMPOPO
B180: LIM344 Makhado | C180: LIM LIMPOPO
B181: DC34 Vhembe | C181: LIM LIMPOPO
B182: LIM351 Blouberg | C182: LIM LIMPOPO
B183: LIM352 Aganang | C183: LIM LIMPOPO
B184: LIM353 Molemole | C184: LIM LIMPOPO
B185: LIM354 Polokwane | C185: LIM LIMPOPO
B186: LIM355 Lepelle-Nkumpi | C186: LIM LIMPOPO
B187: DC35 Capricorn | C187: LIM LIMPOPO
B188: LIM361 Thabazimbi | C188: LIM LIMPOPO
B189: LIM362 Lephalale | C189: LIM LIMPOPO
B190: LIM364 Mookgopong | C190: LIM LIMPOPO
B191: LIM365 Modimolle | C191: LIM LIMPOPO
B192: LIM366 Bela Bela | C192: LIM LIMPOPO
B193: LIM367 Mogalakwena | C193: LIM LIMPOPO
B194: DC36 Waterberg | C194: LIM LIMPOPO
B195: LIM471 Ephraim Mogale | C195: LIM LIMPOPO
B196: LIM472 Elias Motsoaledi | C196: LIM LIMPOPO
B197: LIM473 Makhuduthamaga | C197: LIM LIMPOPO
B198: LIM474 Fetakgomo | C198: LIM LIMPOPO
B199: LIM475 Greater Tubatse | C199: LIM LIMPOPO
B200: DC47 Sekhukhune | C200: LIM LIMPOPO
B201: MP301 Albert Luthuli | C201: MP MPUMALANGA
B202: MP302 Msukaligwa | C202: MP MPUMALANGA
B203: MP303 Mkhondo | C203: MP MPUMALANGA
B204: MP304 Pixley Ka Seme (MP) | C204: MP MPUMALANGA
B205: MP305 Lekwa | C205: MP MPUMALANGA
B206: MP306 Dipaleseng | C206: MP MPUMALANGA
B207: MP307 Govan Mbeki | C207: MP MPUMALANGA
B208: DC30 Gert Sibande | C208: MP MPUMALANGA
B209: MP311 Victor Khanye | C209: MP MPUMALANGA
B210: MP312 Emalahleni (Mp) | C210: MP MPUMALANGA
B211: MP313 Steve Tshwete | C211: MP MPUMALANGA
B212: MP314 Emakhazeni | C212: MP MPUMALANGA
B213: MP315 Thembisile Hani | C213: MP MPUMALANGA
... 94 more rows

Sheet Org structure
A1: Organisational Structure Votes | C1: Organisational Structure Sub-Votes | E1: Display Sub-Votes
A2: =B2&" - "&C2 -> Vote 1 - Executive and Council | B2: Vote 1 | C2: Executive and Council
A3: =B13&" - "& C13 -> Vote 2 - Budget and Treasury | B3: 1.1 | C3: Executive and Council | D3: =CONCATENATE(B3, " - ", C3) -> 1.1 - Executive and Council | E3: 1,1 - Executive and Council
A4: =B24&" - "&C24 -> Vote 3 - Corporate Services | B4: 1.2 | C4: [Name of sub-vote] | D4: 1.2 - [Name of sub-vote]
A5: =B35&" - "&C35 -> Vote 4 - Planning and Development | B5: 1.3 | C5: [Name of sub-vote] | D5: 1.3 - [Name of sub-vote]
A6: =B46&" - "&C46 -> Vote 5 - Health | B6: 1.4 | C6: [Name of sub-vote] | D6: 1.4 - [Name of sub-vote]
A7: =B57&" - "&C57 -> Vote 6 - Community and Social Services | B7: 1.5 | C7: [Name of sub-vote] | D7: 1.5 - [Name of sub-vote]
A8: =B68&" - "&C68 -> Vote 7 - Housing | B8: 1.6 | C8: [Name of sub-vote] | D8: 1.6 - [Name of sub-vote]
A9: =B79&" - "&C79 -> Vote 8 - Public Safety | B9: 1.7 | C9: [Name of sub-vote] | D9: 1.7 - [Name of sub-vote]
A10: =B90&" - "&C90 -> Vote 9 - Sport and Recreation | B10: 1.8 | C10: [Name of sub-vote] | D10: 1.8 - [Name of sub-vote]
A11: =B101&" - "&C101 -> Vote 10 - Environmental Protection | B11: 1.9 | C11: [Name of sub-vote] | D11: 1.9 - [Name of sub-vote]
A12: =B112&" - "&C112 -> Vote 11 - Solid Waste Management | B12: 1.10 | C12: [Name of sub-vote] | D12: 1.10 - [Name of sub-vote]
A13: =B123&" - "&C123 -> Vote 12 - Waste Water Management | B13: Vote 2 | C13: Budget and Treasury
A14: =B134&" - "&C134 -> Vote 13 - Road Transport | B14: 2.1 | C14: Official Housing | D14: =CONCATENATE(B14, " - ", C14) -> 2.1 - Official Housing | E14: 2,1 - Official Housing
A15: =B145&" - "&C145 -> Vote 14 - Water | B15: 2.2 | C15: Rates | D15: 2.2 - Rates | E15: 2,2 - Rates
A16: =B156&" - "&C156 -> Vote 15 - Electricity | B16: 2.3 | C16: Commonage | D16: 2.3 - Commonage | E16: 2,3 - Commonage
B17: 2.4 | C17: Municipal Buildings | D17: 2.4 - Municipal Buildings | E17: 2,4 - Municipal Buildings
B18: 2.5 | C18: Budget and Treasury Office | D18: 2.5 - Budget and Treasury Office | E18: 2,5 - Budget and Treasury Office
B19: 2.6 | C19: Airport | D19: 2.6 - Airport | E19: 2,6 - Airport
B20: 2.7 | C20: Abattoir | D20: 2.7 - Abattoir | E20: 2.7 - Abattoir
B21: 2.8 | C21: [Name of sub-vote] | D21: 2.8 - [Name of sub-vote]
B22: 2.9 | C22: [Name of sub-vote] | D22: 2.9 - [Name of sub-vote]
B23: 2.10 | C23: [Name of sub-vote] | D23: 2.10 - [Name of sub-vote]
B24: Vote 3 | C24: Corporate Services
B25: 3.1 | C25: Corporate Services | D25: =CONCATENATE(B25, " - ", C25) -> 3.1 - Corporate Services | E25: 3,1 - Corporate Services
B26: 3.2 | C26: [Name of sub-vote] | D26: 3.2 - [Name of sub-vote]
B27: 3.3 | C27: [Name of sub-vote] | D27: 3.3 - [Name of sub-vote]
B28: 3.4 | C28: [Name of sub-vote] | D28: 3.4 - [Name of sub-vote]
B29: 3.5 | C29: [Name of sub-vote] | D29: 3.5 - [Name of sub-vote]
B30: 3.6 | C30: [Name of sub-vote] | D30: 3.6 - [Name of sub-vote]
B31: 3.7 | C31: [Name of sub-vote] | D31: 3.7 - [Name of sub-vote]
B32: 3.8 | C32: [Name of sub-vote] | D32: 3.8 - [Name of sub-vote]
B33: 3.9 | C33: [Name of sub-vote] | D33: 3.9 - [Name of sub-vote]
B34: 3.10 | C34: [Name of sub-vote] | D34: 3.10 - [Name of sub-vote]
B35: Vote 4 | C35: Planning and Development
B36: 4.1 | C36: [Name of sub-vote] | D36: =CONCATENATE(B36, " - ", C36) -> 4.1 - [Name of sub-vote] | E36: 4.1 - [Name of sub-vote]
B37: 4.2 | C37: [Name of sub-vote] | D37: 4.2 - [Name of sub-vote]
B38: 4.3 | C38: [Name of sub-vote] | D38: 4.3 - [Name of sub-vote]
B39: 4.4 | C39: [Name of sub-vote] | D39: 4.4 - [Name of sub-vote]
B40: 4.5 | C40: [Name of sub-vote] | D40: 4.5 - [Name of sub-vote]
B41: 4.6 | C41: [Name of sub-vote] | D41: 4.6 - [Name of sub-vote]
B42: 4.7 | C42: [Name of sub-vote] | D42: 4.7 - [Name of sub-vote]
B43: 4.8 | C43: [Name of sub-vote] | D43: 4.8 - [Name of sub-vote]
B44: 4.9 | C44: [Name of sub-vote] | D44: 4.9 - [Name of sub-vote]
B45: 4.10 | C45: [Name of sub-vote] | D45: 4.10 - [Name of sub-vote]
B46: Vote 5 | C46: Health
B47: 5.1 | C47: Health | D47: =CONCATENATE(B47, " - ", C47) -> 5.1 - Health | E47: 5,1 - Health
B48: 5.2 | C48: Clinics | D48: 5.2 - Clinics | E48: 5,2 - Clinics
B49: 5.3 | C49: [Name of sub-vote] | D49: 5.3 - [Name of sub-vote]
B50: 5.4 | C50: [Name of sub-vote] | D50: 5.4 - [Name of sub-vote]
B51: 5.5 | C51: [Name of sub-vote] | D51: 5.5 - [Name of sub-vote]
B52: 5.6 | C52: [Name of sub-vote] | D52: 5.6 - [Name of sub-vote]
B53: 5.7 | C53: [Name of sub-vote] | D53: 5.7 - [Name of sub-vote]
B54: 5.8 | C54: [Name of sub-vote] | D54: 5.8 - [Name of sub-vote]
B55: 5.9 | C55: [Name of sub-vote] | D55: 5.9 - [Name of sub-vote]
B56: 5.10 | C56: [Name of sub-vote] | D56: 5.10 - [Name of sub-vote]
B57: Vote 6 | C57: Community and Social Services
B58: 6.1 | C58: Cemetry | D58: =CONCATENATE(B58, " - ", C58) -> 6.1 - Cemetry | E58: 6,1 - Cemetry
B59: 6.2 | C59: Library | D59: 6.2 - Library | E59: 6,2 - Library
B60: 6.3 | C60: Museum | D60: 6.3 - Museum | E60: 6,3 - Museum
B61: 6.4 | C61: [Name of sub-vote] | D61: 6.4 - [Name of sub-vote]
B62: 6.5 | C62: [Name of sub-vote] | D62: 6.5 - [Name of sub-vote]
B63: 6.6 | C63: [Name of sub-vote] | D63: 6.6 - [Name of sub-vote]
B64: 6.7 | C64: [Name of sub-vote] | D64: 6.7 - [Name of sub-vote]
B65: 6.8 | C65: [Name of sub-vote] | D65: 6.8 - [Name of sub-vote]
B66: 6.9 | C66: [Name of sub-vote] | D66: 6.9 - [Name of sub-vote]
B67: 6.10 | C67: [Name of sub-vote] | D67: 6.10 - [Name of sub-vote]
B68: Vote 7 | C68: Housing
B69: 7.1 | C69: [Name of sub-vote] | D69: =CONCATENATE(B69, " - ", C69) -> 7.1 - [Name of sub-vote] | E69: 7.1 - [Name of sub-vote]
B70: 7.2 | C70: [Name of sub-vote] | D70: 7.2 - [Name of sub-vote]
B71: 7.3 | C71: [Name of sub-vote] | D71: 7.3 - [Name of sub-vote]
B72: 7.4 | C72: [Name of sub-vote] | D72: 7.4 - [Name of sub-vote]
B73: 7.5 | C73: [Name of sub-vote] | D73: 7.5 - [Name of sub-vote]
B74: 7.6 | C74: [Name of sub-vote] | D74: 7.6 - [Name of sub-vote]
B75: 7.7 | C75: [Name of sub-vote] | D75: 7.7 - [Name of sub-vote]
B76: 7.8 | C76: [Name of sub-vote] | D76: 7.8 - [Name of sub-vote]
B77: 7.9 | C77: [Name of sub-vote] | D77: 7.9 - [Name of sub-vote]
B78: 7.10 | C78: [Name of sub-vote] | D78: 7.10 - [Name of sub-vote]
B79: Vote 8 | C79: Public Safety
B80: 8.1 | C80: Fire Service | D80: =CONCATENATE(B80, " - ", C80) -> 8.1 - Fire Service | E80: 8,1 - Fire Service
B81: 8.2 | C81: Civil Defence | D81: 8.2 - Civil Defence | E81: 8,2 - Civil Defence
B82: 8.3 | C82: Pound | D82: 8.3 - Pound | E82: 8,3 - Pound
B83: 8.4 | C83: [Name of sub-vote] | D83: 8.4 - [Name of sub-vote]
B84: 8.5 | C84: [Name of sub-vote] | D84: 8.5 - [Name of sub-vote]
B85: 8.6 | C85: [Name of sub-vote] | D85: 8.6 - [Name of sub-vote]
B86: 8.7 | C86: [Name of sub-vote] | D86: 8.7 - [Name of sub-vote]
B87: 8.8 | C87: [Name of sub-vote] | D87: 8.8 - [Name of sub-vote]
B88: 8.9 | C88: [Name of sub-vote] | D88: 8.9 - [Name of sub-vote]
B89: 8.10 | C89: [Name of sub-vote] | D89: 8.10 - [Name of sub-vote]
B90: Vote 9 | C90: Sport and Recreation
B91: 9.1 | C91: Nature Reserve | D91: =CONCATENATE(B91, " - ", C91) -> 9.1 - Nature Reserve | E91: 9,1 - Nature Reserve
B92: 9.2 | C92: Parks and Gardens | D92: 9.2 - Parks and Gardens | E92: 9,2 - Parks and Gardens
B93: 9.3 | C93: Swimming Pool | D93: 9.3 - Swimming Pool | E93: 9,3 - Swimming Pool
B94: 9.4 | C94: Caravan Park | D94: 9.4 - Caravan Park | E94: 9,4 - Caravan Park
B95: 9.5 | C95: [Name of sub-vote] | D95: 9.5 - [Name of sub-vote]
B96: 9.6 | C96: [Name of sub-vote] | D96: 9.6 - [Name of sub-vote]
B97: 9.7 | C97: [Name of sub-vote] | D97: 9.7 - [Name of sub-vote]
B98: 9.8 | C98: [Name of sub-vote] | D98: 9.8 - [Name of sub-vote]
B99: 9.9 | C99: [Name of sub-vote] | D99: 9.9 - [Name of sub-vote]
B100: 9.10 | C100: [Name of sub-vote] | D100: 9.10 - [Name of sub-vote]
B101: Vote 10 | C101: Environmental Protection
B102: 10.1 | C102: [Name of sub-vote] | D102: =CONCATENATE(B102, " - ", C102) -> 10.1 - [Name of sub-vote] | E102: 10.1 - [Name of sub-vote]
B103: 10.2 | C103: [Name of sub-vote] | D103: 10.2 - [Name of sub-vote]
B104: 10.3 | C104: [Name of sub-vote] | D104: 10.3 - [Name of sub-vote]
B105: 10.4 | C105: [Name of sub-vote] | D105: 10.4 - [Name of sub-vote]
B106: 10.5 | C106: [Name of sub-vote] | D106: 10.5 - [Name of sub-vote]
B107: 10.6 | C107: [Name of sub-vote] | D107: 10.6 - [Name of sub-vote]
B108: 10.7 | C108: [Name of sub-vote] | D108: 10.7 - [Name of sub-vote]
B109: 10.8 | C109: [Name of sub-vote] | D109: 10.8 - [Name of sub-vote]
B110: 10.9 | C110: [Name of sub-vote] | D110: 10.9 - [Name of sub-vote]
B111: 10.10 | C111: [Name of sub-vote] | D111: 10.10 - [Name of sub-vote]
B112: Vote 11 | C112: Solid Waste Management
B113: 11.1 | C113: Refuse removal | D113: =CONCATENATE(B113, " - ", C113) -> 11.1 - Refuse removal | E113: 11,1 - Refuse removal
B114: 11.2 | C114: [Name of sub-vote] | D114: 11.2 - [Name of sub-vote]
B115: 11.3 | C115: [Name of sub-vote] | D115: 11.3 - [Name of sub-vote]
B116: 11.4 | C116: [Name of sub-vote] | D116: 11.4 - [Name of sub-vote]
B117: 11.5 | C117: [Name of sub-vote] | D117: 11.5 - [Name of sub-vote]
B118: 11.6 | C118: [Name of sub-vote] | D118: 11.6 - [Name of sub-vote]
B119: 11.7 | C119: [Name of sub-vote] | D119: 11.7 - [Name of sub-vote]
B120: 11.8 | C120: [Name of sub-vote] | D120: 11.8 - [Name of sub-vote]
B121: 11.9 | C121: [Name of sub-vote] | D121: 11.9 - [Name of sub-vote]
B122: 11.10 | C122: [Name of sub-vote] | D122: 11.10 - [Name of sub-vote]
B123: Vote 12 | C123: Waste Water Management
B124: 12.1 | C124: Sewerage | D124: =CONCATENATE(B124, " - ", C124) -> 12.1 - Sewerage | E124: 12,1 - Sewerage
B125: 12.2 | C125: [Name of sub-vote] | D125: 12.2 - [Name of sub-vote]
B126: 12.3 | C126: [Name of sub-vote] | D126: 12.3 - [Name of sub-vote]
B127: 12.4 | C127: [Name of sub-vote] | D127: 12.4 - [Name of sub-vote]
B128: 12.5 | C128: [Name of sub-vote] | D128: 12.5 - [Name of sub-vote]
B129: 12.6 | C129: [Name of sub-vote] | D129: 12.6 - [Name of sub-vote]
B130: 12.7 | C130: [Name of sub-vote] | D130: 12.7 - [Name of sub-vote]
B131: 12.8 | C131: [Name of sub-vote] | D131: 12.8 - [Name of sub-vote]
B132: 12.9 | C132: [Name of sub-vote] | D132: 12.9 - [Name of sub-vote]
B133: 12.10 | C133: [Name of sub-vote] | D133: 12.10 - [Name of sub-vote]
B134: Vote 13 | C134: Road Transport
B135: 13.1 | C135: Main Roads | D135: =CONCATENATE(B135, " - ", C135) -> 13.1 - Main Roads | E135: 13,1 - Main Roads
B136: 13.2 | C136: Public Works | D136: 13.2 - Public Works | E136: 13,2 - Public Works
B137: 13.3 | C137: Streets and Pavements | D137: 13.3 - Streets and Pavements | E137: 13,3 - Streets and Pavements
B138: 13.4 | C138: Traffic and licencing | D138: 13.4 - Traffic and licencing | E138: 13,4 - Traffic and licencing
B139: 13.5 | C139: [Name of sub-vote] | D139: 13.5 - [Name of sub-vote]
B140: 13.6 | C140: [Name of sub-vote] | D140: 13.6 - [Name of sub-vote]
B141: 13.7 | C141: [Name of sub-vote] | D141: 13.7 - [Name of sub-vote]
B142: 13.8 | C142: [Name of sub-vote] | D142: 13.8 - [Name of sub-vote]
B143: 13.9 | C143: [Name of sub-vote] | D143: 13.9 - [Name of sub-vote]
B144: 13.10 | C144: [Name of sub-vote] | D144: 13.10 - [Name of sub-vote]
B145: Vote 14 | C145: Water
B146: 14.1 | C146: Water Distribution | D146: =CONCATENATE(B146, " - ", C146) -> 14.1 - Water Distribution | E146: 14,1 - Water Distribution
B147: 14.2 | C147: Water Storage | D147: 14.2 - Water Storage | E147: 14,2 - Water Storage
B148: 14.3 | C148: [Name of sub-vote] | D148: 14.3 - [Name of sub-vote]
B149: 14.4 | C149: [Name of sub-vote] | D149: 14.4 - [Name of sub-vote]
B150: 14.5 | C150: [Name of sub-vote] | D150: 14.5 - [Name of sub-vote]
B151: 14.6 | C151: [Name of sub-vote] | D151: 14.6 - [Name of sub-vote]
B152: 14.7 | C152: [Name of sub-vote] | D152: 14.7 - [Name of sub-vote]
B153: 14.8 | C153: [Name of sub-vote] | D153: 14.8 - [Name of sub-vote]
B154: 14.9 | C154: [Name of sub-vote] | D154: 14.9 - [Name of sub-vote]
B155: 14.10 | C155: [Name of sub-vote] | D155: 14.10 - [Name of sub-vote]
B156: Vote 15 | C156: Electricity
B157: 15.1 | C157: Electricity Administration | D157: =CONCATENATE(B157, " - ", C157) -> 15.1 - Electricity Administration | E157: 15,1 - Electricity Administration
B158: 15.2 | C158: Electricity Distribution | D158: 15.2 - Electricity Distribution | E158: 15,2 - Electricity Distribution
B159: 15.3 | C159: Electricity Generation | D159: 15.3 - Electricity Generation | E159: 15,3 - Electricity Generation
B160: 15.4 | C160: [Name of sub-vote] | D160: 15.4 - [Name of sub-vote]
B161: 15.5 | C161: [Name of sub-vote] | D161: 15.5 - [Name of sub-vote]
B162: 15.6 | C162: [Name of sub-vote] | D162: 15.6 - [Name of sub-vote]
B163: 15.7 | C163: [Name of sub-vote] | D163: 15.7 - [Name of sub-vote]
B164: 15.8 | C164: [Name of sub-vote] | D164: 15.8 - [Name of sub-vote]
B165: 15.9 | C165: [Name of sub-vote] | D165: 15.9 - [Name of sub-vote]
B166: 15.10 | C166: [Name of sub-vote] | D166: 15.10 - [Name of sub-vote]

Sheet Contacts
A1: =muni&" - "&" Contact Information" -> NC074 Kareeberg - Contact Information
A3: A. GENERAL INFORMATION
A4: Municipality | B4: =muni -> NC074 Kareeberg | C4: Set name on 'Instructions' sheet
A6: Grade | B6: 2 | C6: 1 Grade in terms of the Remuneration of Public Office Bearers Act.
A8: Province | B8: =IF(B4>" ",VLOOKUP(B4,'Lookup and lists'!B28:C311,2, FALSE)," ") -> NC NORTHERN CAPE
A10: Web Address | B10: www.kareeberg.co.za
A12: e-mail Address | B12: kareeberg@xsinet.co.za
A14: B. CONTACT INFORMATION
A15: Postal address:
A16: P.O. Box | B16: 10
A17: City / Town | B17: CARNARVON
A18: Postal Code | B18: 8925
A20: Street address
A21: Building
A22: Street No. & Name | B22: Hanau Street
A23: City / Town | B23: CARNARVON
A24: Postal Code | B24: 8925
A26: General Contacts
A27: Telephone number | B27: 053-3823012
A28: Fax number | B28: 053-3823142
A30: C. POLITICAL LEADERSHIP
A31: Speaker: | C31: Secretary/PA to the Speaker:
A32: Name | C32: Name
A33: Telephone number | C33: Telephone number
A34: Cell number | C34: Cell number
A35: Fax number | C35: Fax number
A36: E-mail address | C36: E-mail address
A38: Mayor/Executive Mayor: | C38: Secretary/PA to the Mayor/Executive Mayor:
A39: Name | B39: NS Van Wyk | C39: Name
A40: Telephone number | B40: 053-3833053 | C40: Telephone number
A41: Cell number | C41: Cell number
A42: Fax number | B42: 053-3823142 | C42: Fax number
A43: E-mail address | C43: E-mail address
A45: Deputy Mayor/Executive Mayor: | C45: Secretary/PA to the Deputy Mayor/Executive Mayor:
A46: Name | C46: Name
A47: Telephone number | C47: Telephone number
A48: Cell number | C48: Cell number
A49: Fax number | C49: Fax number
A50: E-mail address | C50: E-mail address
A52: D. MANAGEMENT LEADERSHIP
A53: Municipal Manager: | C53: Secretary/PA to the Municipal Manager:
A54: Name | B54: FM Manuel | C54: Name
A55: Telephone number | B55: 053-3823012 | C55: Telephone number
A56: Cell number | C56: Cell number
A57: Fax number | B57: 053-3823142 | C57: Fax number
A58: E-mail address | C58: E-mail address
A60: Chief Financial Officer | C60: Secretary/PA to the Chief Financial Officer
A61: Name | B61: W De bruin | C61: Name
A62: Telephone number | B62: 053-3823012 | C62: Telephone number
A63: Cell number | B63: 832308617 | C63: Cell number
A64: Fax number | B64: 053-3823142 | C64: Fax number
A65: E-mail address | B65: wilmar@hotmail.com | C65: E-mail address
A67: Official responsible for submitting financial information
A68: Name | B68: T. de Kock
A69: Telephone number | B69: 053-3823012
A70: Cell number
A71: Fax number | B71: 053-3823142
A72: E-mail address | B72: kareeberg0@gmail.com
A73: Official responsible for submitting financial information
A74: Name
A75: Telephone number
A76: Cell number
A77: Fax number
A78: E-mail address
A79: Official responsible for submitting financial information
A80: Name
A81: Telephone number
A82: Cell number
A83: Fax number
A84: E-mail address

Sheet C1-Sum
A1: =muni& " - "&s71sum& " - "&date -> NC074 Kareeberg - Table C1 Monthly Budget Statement Summary - Mid-Year Assessment
A2: =desc -> Description | B2: =Head1 -> 2016/17 | C2: =Head2 -> Budget Year 2017/18
B3: =Head5 -> Audited Outcome | C3: =Head6 -> Original Budget | D3: =Head7 -> Adjusted Budget | E3: =Head38 -> Monthly actual | F3: =Head39 -> YearTD actual | G3: =Head40 -> YearTD budget | H3: =Head41 -> YTD variance | I3: =Head41 -> YTD variance | J3: =Head8 -> Full Year Forecast
A4: R thousands | I4: %
A5: Financial Performance
A6: Property rates | B6: =SUM('C4-FinPerf RE'!C6:C7) -> 4690890 | C6: =SUM('C4-FinPerf RE'!D6:D7) -> 5205418 | D6: =SUM('C4-FinPerf RE'!E6:E7) -> 5205418 | E6: =SUM('C4-FinPerf RE'!F6:F7) -> 20143.63 | F6: =SUM('C4-FinPerf RE'!G6:G7) -> 5140519.83 | G6: =SUM('C4-FinPerf RE'!H6:H7) -> 2602708.98 | H6: =F6-G6 -> 2537810.85 | I6: =IF(H6=0,"",H6/G6) -> 0.9750651608 | J6: =SUM('C4-FinPerf RE'!K6:K7) -> 5205418
A7: Service charges | B7: =SUM('C4-FinPerf RE'!C8:C12) -> 21165341 | C7: =SUM('C4-FinPerf RE'!D8:D12) -> 21165950 | D7: =SUM('C4-FinPerf RE'!E8:E12) -> 21165950 | E7: =SUM('C4-FinPerf RE'!F8:F12) -> 1701766 | F7: =SUM('C4-FinPerf RE'!G8:G12) -> 8623788.22 | G7: =SUM('C4-FinPerf RE'!H8:H12) -> 10583974.92 | H7: =F7-G7 -> -1960186.7 | I7: =IF(H7=0,"",H7/G7) -> -0.1852032639 | J7: =SUM('C4-FinPerf RE'!K8:K12) -> 21165950
A8: Investment revenue | B8: ='C4-FinPerf RE'!C14 -> 2573398 | C8: ='C4-FinPerf RE'!D14 -> 1297000 | D8: ='C4-FinPerf RE'!E14 -> 1297000 | E8: ='C4-FinPerf RE'!F14 -> 330869.67 | F8: ='C4-FinPerf RE'!G14 -> 1322098.52 | G8: ='C4-FinPerf RE'!H14 -> 648499.98 | H8: =F8-G8 -> 673598.54 | I8: =IF(H8=0,"",H8/G8) -> 1.038702484 | J8: ='C4-FinPerf RE'!K14 -> 1297000
A9: Transfers recognised - operational | B9: ='C4-FinPerf RE'!C20 -> 23057417 | C9: ='C4-FinPerf RE'!D20 -> 50814000 | D9: ='C4-FinPerf RE'!E20 -> 50814000 | E9: ='C4-FinPerf RE'!F20 -> 0 | F9: ='C4-FinPerf RE'!G20 -> 9848235 | G9: ='C4-FinPerf RE'!H20 -> 25407000 | H9: =F9-G9 -> -15558765 | I9: =IF(H9=0,"",H9/G9) -> -0.6123810367 | J9: ='C4-FinPerf RE'!K20 -> 50814000
A10: Other own revenue | B10: ='C4-FinPerf RE'!C13+'C4-FinPerf RE'!C15+'C4-FinPerf RE'!C16+'C4-FinPerf RE'!C17+'C4-FinPerf RE'!C18+'C4-FinPerf RE'!C19+'C4-FinPerf RE'!C21+'C4-FinPerf RE'!C22 -> 3249342 | C10: ='C4-FinPerf RE'!D13+'C4-FinPerf RE'!D15+'C4-FinPerf RE'!D16+'C4-FinPerf RE'!D17+'C4-FinPerf RE'!D18+'C4-FinPerf RE'!D19+'C4-FinPerf RE'!D21+'C4-FinPerf RE'!D22 -> 10671261 | D10: ='C4-FinPerf RE'!E13+'C4-FinPerf RE'!E15+'C4-FinPerf RE'!E16+'C4-FinPerf RE'!E17+'C4-FinPerf RE'!E18+'C4-FinPerf RE'!E19+'C4-FinPerf RE'!E21+'C4-FinPerf RE'!E22 -> 10671261 | E10: ='C4-FinPerf RE'!F13+'C4-FinPerf RE'!F15+'C4-FinPerf RE'!F16+'C4-FinPerf RE'!F17+'C4-FinPerf RE'!F18+'C4-FinPerf RE'!F19+'C4-FinPerf RE'!F21+'C4-FinPerf RE'!F22 -> 212365.17 | F10: ='C4-FinPerf RE'!G13+'C4-FinPerf RE'!G15+'C4-FinPerf RE'!G16+'C4-FinPerf RE'!G17+'C4-FinPerf RE'!G18+'C4-FinPerf RE'!G19+'C4-FinPerf RE'!G21+'C4-FinPerf RE'!G22 -> 535783.4 | G10: ='C4-FinPerf RE'!H13+'C4-FinPerf RE'!H15+'C4-FinPerf RE'!H16+'C4-FinPerf RE'!H17+'C4-FinPerf RE'!H18+'C4-FinPerf RE'!H19+'C4-FinPerf RE'!H21+'C4-FinPerf RE'!H22 -> 5335630.38 | H10: =F10-G10 -> -4799846.98 | I10: =IF(H10=0,"",H10/G10) -> -0.8995838614 | J10: ='C4-FinPerf RE'!K13+'C4-FinPerf RE'!K15+'C4-FinPerf RE'!K16+'C4-FinPerf RE'!K17+'C4-FinPerf RE'!K18+'C4-FinPerf RE'!K19+'C4-FinPerf RE'!K21+'C4-FinPerf RE'!K22 -> 10671261
A11: Total Revenue (excluding capital transfers and contributions) | B11: =SUM(B6:B10) -> 54736388 | C11: 89153629 | D11: 89153629 | E11: 2265144.47 | F11: 25470424.97 | G11: 44577814.26 | H11: =F11-G11 -> -19107389.29 | I11: =IF(H11=0,"",H11/G11) -> -0.4286300171 | J11: 89153629
A12: Employee costs | B12: ='C4-FinPerf RE'!C26 -> 16766577 | C12: ='C4-FinPerf RE'!D26 -> 24347377 | D12: ='C4-FinPerf RE'!E26 -> 24347377 | E12: ='C4-FinPerf RE'!F26 -> 1684877 | F12: ='C4-FinPerf RE'!G26 -> 8523813 | G12: ='C4-FinPerf RE'!H26 -> 12173688.48 | H12: -3649875.48 | I12: -0.2998167306 | J12: ='C4-FinPerf RE'!K26 -> 24347377
A13: Remuneration of Councillors | B13: ='C4-FinPerf RE'!C27 -> 2178625 | C13: ='C4-FinPerf RE'!D27 -> 2490137 | D13: ='C4-FinPerf RE'!E27 -> 2490137 | E13: ='C4-FinPerf RE'!F27 -> 184074.9 | F13: ='C4-FinPerf RE'!G27 -> 1084244.85 | G13: ='C4-FinPerf RE'!H27 -> 1245068.46 | H13: -160823.61 | I13: -0.1291684877 | J13: ='C4-FinPerf RE'!K27 -> 2490137
A14: Depreciation & asset impairment | B14: ='C4-FinPerf RE'!C29 -> 3415819 | C14: ='C4-FinPerf RE'!D29 -> 3681354 | D14: ='C4-FinPerf RE'!E29 -> 3681354 | E14: ='C4-FinPerf RE'!F29 -> 0 | F14: ='C4-FinPerf RE'!G29 -> 0 | G14: ='C4-FinPerf RE'!H29 -> 1840677 | H14: -1840677 | I14: -1 | J14: ='C4-FinPerf RE'!K29 -> 3681354
A15: Finance charges | B15: ='C4-FinPerf RE'!C30 -> 2266958 | C15: ='C4-FinPerf RE'!D30 -> 144742 | D15: ='C4-FinPerf RE'!E30 -> 144742 | E15: ='C4-FinPerf RE'!F30 -> 0 | F15: ='C4-FinPerf RE'!G30 -> 0 | G15: ='C4-FinPerf RE'!H30 -> 72370.98 | H15: -72370.98 | I15: -1 | J15: ='C4-FinPerf RE'!K30 -> 144742
A16: Materials and bulk purchases | B16: =SUM('C4-FinPerf RE'!C31:C32) -> 8981296 | C16: =SUM('C4-FinPerf RE'!D31:D32) -> 12783380.06 | D16: =SUM('C4-FinPerf RE'!E31:E32) -> 12783380.06 | E16: =SUM('C4-FinPerf RE'!F31:F32) -> 859305.87 | F16: =SUM('C4-FinPerf RE'!G31:G32) -> 5378894.22 | G16: =SUM('C4-FinPerf RE'!H31:H32) -> 6391689.96 | H16: -1012795.74 | I16: -0.1584550794 | J16: =SUM('C4-FinPerf RE'!K31:K32) -> 12783380.06
A17: Transfers and grants | B17: ='C4-FinPerf RE'!C34 -> 9193102 | C17: ='C4-FinPerf RE'!D34 -> 5823854.05 | D17: ='C4-FinPerf RE'!E34 -> 5823854.05 | E17: ='C4-FinPerf RE'!F34 -> 88666.43 | F17: ='C4-FinPerf RE'!G34 -> 4643561.49 | G17: ='C4-FinPerf RE'!H34 -> 2911927.02 | H17: 1731634.47 | I17: 0.5946695979 | J17: ='C4-FinPerf RE'!K34 -> 5823854.05
A18: Other expenditure | B18: ='C4-FinPerf RE'!C37-SUM('C1-Sum'!B12:B17) -> 13544157 | C18: ='C4-FinPerf RE'!D37-SUM('C1-Sum'!C12:C17) -> 15120767.09 | D18: ='C4-FinPerf RE'!E37-SUM('C1-Sum'!D12:D17) -> 15120767.09 | E18: ='C4-FinPerf RE'!F37-SUM('C1-Sum'!E12:E17) -> 1779383.81 | F18: ='C4-FinPerf RE'!G37-SUM('C1-Sum'!F12:F17) -> 7139587.88 | G18: ='C4-FinPerf RE'!H37-SUM('C1-Sum'!G12:G17) -> 7560383.46 | H18: -420795.58 | I18: -0.05565796791 | J18: ='C4-FinPerf RE'!K37-SUM('C1-Sum'!J12:J17) -> 15120767.09
A19: Total Expenditure | B19: =SUM(B12:B18) -> 56346534 | C19: 64391611.2 | D19: 64391611.2 | E19: 4596308.01 | F19: 26770101.44 | G19: 32195805.36 | H19: -5425703.92 | I19: -0.1685220748 | J19: =SUM(J12:J18) -> 64391611.2
A20: Surplus/(Deficit) | B20: =B11-B19 -> -1610146 | C20: 24762017.8 | D20: 24762017.8 | E20: -2331163.54 | F20: -1299676.47 | G20: 12382008.9 | H20: -13681685.37 | I20: -1.104964912 | J20: =J11-J19 -> 24762017.8
A21: Transfers recognised - capital | B21: ='C4-FinPerf RE'!C40 -> 10914278 | C21: ='C4-FinPerf RE'!D40 -> 26095000 | D21: ='C4-FinPerf RE'!E40 -> 26095000 | E21: ='C4-FinPerf RE'!F40 -> 1357545.21 | F21: ='C4-FinPerf RE'!G40 -> 2117601 | G21: ='C4-FinPerf RE'!H40 -> 13047499.98 | H21: -10929898.98 | I21: -0.8377006321 | J21: ='C4-FinPerf RE'!K40 -> 26095000
A22: Contributions & Contributed assets | B22: =SUM('C4-FinPerf RE'!C41:C42) -> 0 | C22: =SUM('C4-FinPerf RE'!D41:D42) -> 0 | D22: =SUM('C4-FinPerf RE'!E41:E42) -> 0 | E22: =SUM('C4-FinPerf RE'!F41:F42) -> 0 | F22: =SUM('C4-FinPerf RE'!G41:G42) -> 0 | G22: =SUM('C4-FinPerf RE'!H41:H42) -> 0 | H22: 0 | J22: =SUM('C4-FinPerf RE'!K41:K42) -> 0
A23: Surplus/(Deficit) after capital transfers & contributions | B23: =B20+B21+B22 -> 9304132 | C23: 50857017.8 | D23: 50857017.8 | E23: -973618.33 | F23: 817924.53 | G23: 25429508.88 | H23: -24611584.35 | I23: -0.9678356144 | J23: =J20+J21+J22 -> 50857017.8
A24: Share of surplus/ (deficit) of associate | B24: ='C4-FinPerf RE'!C48 -> 0 | C24: ='C4-FinPerf RE'!D48 -> 0 | D24: ='C4-FinPerf RE'!E48 -> 0 | E24: ='C4-FinPerf RE'!F48 -> 0 | F24: ='C4-FinPerf RE'!G48 -> 0 | G24: ='C4-FinPerf RE'!H48 -> 0 | H24: 0 | J24: ='C4-FinPerf RE'!K48 -> 0
A25: Surplus/ (Deficit) for the year | B25: =B23+B24 -> 9304132 | C25: 50857017.8 | D25: 50857017.8 | E25: -973618.33 | F25: 817924.53 | G25: 25429508.88 | H25: -24611584.35 | I25: -0.9678356144 | J25: =J23+J24 -> 50857017.8
A27: Capital expenditure & funds sources
A28: Capital expenditure | B28: ='C5-Capex'!C40 -> 7941546 | C28: ='C5-Capex'!D40 -> 43095000 | D28: ='C5-Capex'!E40 -> 35000000 | E28: ='C5-Capex'!F40 -> 1357545.21 | F28: ='C5-Capex'!G40 -> 2142057.05 | G28: ='C5-Capex'!H40 -> 21547499.96 | H28: =F28-G28 -> -19405442.91 | I28: =IF(H28=0,"",H28/G28) -> -0.9005890682 | J28: ='C5-Capex'!K40 -> 43095000
A29: Capital transfers recognised | B29: ='C5-Capex'!C70 -> 11646000 | C29: ='C5-Capex'!D70 -> 43095000 | D29: ='C5-Capex'!E70 -> 43095000 | E29: ='C5-Capex'!F70 -> 1357545.21 | F29: ='C5-Capex'!G70 -> 2142057.05 | G29: ='C5-Capex'!H70 -> 21547499.96 | H29: -19405442.91 | I29: -0.9005890682 | J29: ='C5-Capex'!K70 -> 26095000
A30: Public contributions & donations | B30: ='C5-Capex'!C71 -> 0 | C30: ='C5-Capex'!D71 -> 0 | D30: ='C5-Capex'!E71 -> 0 | E30: ='C5-Capex'!F71 -> 0 | F30: ='C5-Capex'!G71 -> 0 | G30: ='C5-Capex'!H71 -> 0 | H30: 0 | J30: ='C5-Capex'!K71 -> 0
A31: Borrowing | B31: ='C5-Capex'!C72 -> 0 | C31: ='C5-Capex'!D72 -> 0 | D31: ='C5-Capex'!E72 -> 0 | E31: ='C5-Capex'!F72 -> 0 | F31: ='C5-Capex'!G72 -> 0 | G31: ='C5-Capex'!H72 -> 0 | H31: 0 | J31: ='C5-Capex'!K72 -> 0
A32: Internally generated funds | B32: ='C5-Capex'!C73 -> 0 | C32: ='C5-Capex'!D73 -> 0 | D32: ='C5-Capex'!E73 -> 0 | E32: ='C5-Capex'!F73 -> 0 | F32: ='C5-Capex'!G73 -> 0 | G32: ='C5-Capex'!H73 -> 0 | H32: 0 | J32: ='C5-Capex'!K73 -> 0
A33: Total sources of capital funds | B33: =SUM(B29:B32) -> 11646000 | C33: 43095000 | D33: 43095000 | E33: =SUM(E29:E32) -> 1357545.21 | F33: =SUM(F29:F32) -> 2142057.05 | G33: =SUM(G29:G32) -> 21547499.96 | H33: -19405442.91 | I33: -0.9005890682 | J33: 26095000
A35: Financial position
A36: Total current assets | B36: ='C6-FinPos'!C13 -> 43991675 | C36: ='C6-FinPos'!D13 -> 53198525 | D36: ='C6-FinPos'!E13 -> 53198525 | F36: ='C6-FinPos'!F13 -> 97327917.96 | J36: ='C6-FinPos'!G13 -> 53198525
A37: Total non current assets | B37: ='C6-FinPos'!C25 -> 179339666 | C37: ='C6-FinPos'!D25 -> 177434197 | D37: ='C6-FinPos'!E25 -> 177434197 | F37: ='C6-FinPos'!F25 -> 139271413.1 | J37: ='C6-FinPos'!G25 -> 177434197
A38: Total current liabilities | B38: ='C6-FinPos'!C35 -> 18930677 | C38: ='C6-FinPos'!D35 -> 9261496 | D38: ='C6-FinPos'!E35 -> 9261496 | F38: ='C6-FinPos'!F35 -> 41670816.81 | J38: ='C6-FinPos'!G35 -> 9261496
A39: Total non current liabilities | B39: ='C6-FinPos'!C40 -> 32414978 | C39: ='C6-FinPos'!D40 -> 11737552 | D39: ='C6-FinPos'!E40 -> 11737552 | F39: ='C6-FinPos'!F40 -> 32414977.99 | J39: ='C6-FinPos'!G40 -> 11737552
A40: Community wealth/Equity | B40: ='C6-FinPos'!C48 -> 171985686 | C40: ='C6-FinPos'!D48 -> 209633674 | D40: ='C6-FinPos'!E48 -> 209633674 | F40: ='C6-FinPos'!F48 -> 162513536.2 | J40: ='C6-FinPos'!G48 -> 209633674
A42: Cash flows
A43: Net cash from (used) operating | B43: ='C7-CFlow'!C18 -> 26585110 | C43: ='C7-CFlow'!D18 -> 48634543 | D43: ='C7-CFlow'!E18 -> 48634543 | E43: ='C7-CFlow'!F18 -> -1404423 | F43: ='C7-CFlow'!G18 -> -2789417.94 | G43: ='C7-CFlow'!H18 -> 24317271.42 | H43: =G43-F43 -> 27106689.36 | I43: =IF(H43=0,"",H43/G43) -> 1.114709331 | J43: ='C7-CFlow'!K18 -> 48634543
A44: Net cash from (used) investing | B44: ='C7-CFlow'!C28 -> 17110 | C44: ='C7-CFlow'!D28 -> -43086510 | D44: ='C7-CFlow'!E28 -> -43086510 | E44: ='C7-CFlow'!F28 -> -1357545 | F44: ='C7-CFlow'!G28 -> -1495116.99 | G44: ='C7-CFlow'!H28 -> -21948255 | H44: =G44-F44 -> -20453138.01 | I44: =IF(H44=0,"",H44/G44) -> 0.9318799153 | J44: ='C7-CFlow'!K28 -> -43086510
A45: Net cash from (used) financing | B45: ='C7-CFlow'!C37 -> 3800 | C45: ='C7-CFlow'!D37 -> 10000 | D45: ='C7-CFlow'!E37 -> 10000 | E45: ='C7-CFlow'!F37 -> 0 | F45: ='C7-CFlow'!G37 -> 0 | G45: ='C7-CFlow'!H37 -> 4999.98 | H45: =G45-F45 -> 4999.98 | I45: =IF(H45=0,"",H45/G45) -> 1 | J45: ='C7-CFlow'!K37 -> 10000
A46: Cash/cash equivalents at the month/year end | B46: ='C7-CFlow'!C41 -> 49859670 | C46: ='C7-CFlow'!D41 -> 30840335 | D46: ='C7-CFlow'!E41 -> 30840335 | E46: ='C7-CFlow'!F41 -> 0 | F46: ='C7-CFlow'!G41 -> 45575135.07 | G46: ='C7-CFlow'!H41 -> 27656318.4 | H46: =G46-F46 -> -17918816.67 | I46: =IF(H46=0,"",H46/G46) -> -0.6479104128 | J46: ='C7-CFlow'!K41 -> 55417703
A48: Debtors & creditors analysis | B48: ='SC3'!C3 -> 0-30 Days | C48: ='SC3'!D3 -> 31-60 Days | D48: ='SC3'!E3 -> 61-90 Days | E48: ='SC3'!F3 -> 91-120 Days | F48: ='SC3'!G3 -> 121-150 Dys | G48: ='SC3'!H3 -> 151-180 Dys | H48: ='SC3'!I3 -> 181 Dys-1 Yr | I48: ='SC3'!J3 -> Over 1Yr | J48: Total
A49: =LEFT('SC3'!A4,20) -> Debtors Age Analysis
A50: ='SC3'!A14 -> Total By Income Source | B50: ='SC3'!C14 -> -559348.41 | C50: ='SC3'!D14 -> 472973.42 | D50: ='SC3'!E14 -> 322488.49 | E50: ='SC3'!F14 -> 243239.5 | F50: ='SC3'!G14 -> 219501.39 | G50: ='SC3'!H14 -> 193409.82 | H50: ='SC3'!I14 -> 197092.47 | I50: ='SC3'!J14 -> 1709680.28 | J50: ='SC3'!K14 -> 2799036.96
A51: =LEFT('SC4'!A5,22) -> Creditors Age Analysis
A52: Total Creditors | B52: ='SC4'!C15 -> 106436 | C52: ='SC4'!D15 -> 0 | D52: ='SC4'!E15 -> 0 | E52: ='SC4'!F15 -> 0 | F52: ='SC4'!G15 -> 0 | G52: ='SC4'!H15 -> 0 | H52: ='SC4'!I15 -> 0 | I52: ='SC4'!J15 -> 235740 | J52: ='SC4'!K15 -> 342176

Sheet C2-FinPerf SC
A1: =muni& " - "&S71A& " - "&date -> NC074 Kareeberg - Table C2 Monthly Budget Statement - Financial Performance (standard classification) - Mid-Year Assessment
A2: =desc -> Description | B2: =head27 -> Ref | C2: =Head1 -> 2016/17 | D2: =Head2 -> Budget Year 2017/18
C3: =Head5 -> Audited Outcome | D3: =Head6 -> Original Budget | E3: =Head7 -> Adjusted Budget | F3: =Head38 -> Monthly actual | G3: =Head39 -> YearTD actual | H3: =Head40 -> YearTD budget | I3: =Head41 -> YTD variance | J3: =Head41 -> YTD variance | K3: =Head8 -> Full Year Forecast
A4: R thousands | B4: 1 | J4: %
A5: Revenue - Standard
A6: Governance and administration | C6: =SUM(C7:C9) -> 35252485 | D6: 46537004 | E6: 46537004 | F6: 789235.98 | G6: 19591631.51 | H6: 29661499.98 | I6: =G6-H6 -> -10069868.47 | J6: =IF(I6=0,"",I6/H6) -> -0.339492894 | K6: =SUM(K7:K9) -> 46537004
A7: Executive and council | C7: ='C2C'!C7 -> 19112656 | D7: ='C2C'!D7 -> 33751464 | E7: ='C2C'!E7 -> 33751464 | F7: ='C2C'!F7 -> 561644.47 | G7: ='C2C'!G7 -> 13711650.93 | H7: ='C2C'!H7 -> 23268499.98 | I7: -9556849.05 | J7: =IF(I7=0,"",I7/H7) -> -0.4107204615 | K7: ='C2C'!K7 -> 33751464
A8: Budget and treasury office | C8: ='C2C'!C10 -> 16139829 | D8: ='C2C'!D10 -> 12785540 | E8: ='C2C'!E10 -> 12785540 | F8: ='C2C'!F10 -> 227591.51 | G8: ='C2C'!G10 -> 5879980.58 | H8: ='C2C'!H10 -> 6393000 | I8: -513019.42 | J8: -0.08024705459 | K8: ='C2C'!K10 -> 12785540
A9: Corporate services | C9: ='C2C'!C11 -> 0 | D9: ='C2C'!D11 -> 0 | E9: ='C2C'!E11 -> 0 | F9: ='C2C'!F11 -> 0 | G9: ='C2C'!G11 -> 0 | H9: ='C2C'!H11 -> 0 | I9: 0 | K9: ='C2C'!K11 -> 0
A10: Community and public safety | C10: =SUM(C11:C15) -> 92782 | D10: 1464155 | E10: 1464155 | F10: 1726 | G10: 13172 | H10: 732018.71 | I10: -718846.71 | J10: -0.9820059244 | K10: =SUM(K11:K15) -> 1464155
A11: Community and social services | C11: ='C2C'!C17 -> 54855 | D11: ='C2C'!D17 -> 1446050 | E11: ='C2C'!E17 -> 1446050 | F11: ='C2C'!F17 -> 1333 | G11: ='C2C'!G17 -> 10049 | H11: ='C2C'!H17 -> 723024.96 | I11: -712975.96 | J11: -0.986101448 | K11: ='C2C'!K17 -> 1446050
A12: Sport and recreation | C12: ='C2C'!C26 -> 37926 | D12: ='C2C'!D26 -> 17400 | E12: ='C2C'!E26 -> 17400 | F12: ='C2C'!F26 -> 393 | G12: ='C2C'!G26 -> 2123 | H12: ='C2C'!H26 -> 8700 | I12: -6577 | J12: -0.7559770115 | K12: ='C2C'!K26 -> 17400
A13: Public safety | C13: ='C2C'!C27 -> 1 | D13: ='C2C'!D27 -> 705 | E13: ='C2C'!E27 -> 705 | F13: ='C2C'!F27 -> 0 | G13: ='C2C'!G27 -> 1000 | H13: ='C2C'!H27 -> 293.75 | I13: 706.25 | J13: 2.404255319 | K13: ='C2C'!K27 -> 705
A14: Housing | C14: ='C2C'!C33 -> 0 | D14: ='C2C'!D33 -> 0 | E14: ='C2C'!E33 -> 0 | F14: ='C2C'!F33 -> 0 | G14: ='C2C'!G33 -> 0 | H14: ='C2C'!H33 -> 0 | I14: =G14-H14 -> 0 | J14: =IF(I14=0,"",I14/H14) ->  | K14: ='C2C'!K33 -> 0
A15: Health | C15: ='C2C'!C34 -> 0 | D15: ='C2C'!D34 -> 0 | E15: ='C2C'!E34 -> 0 | F15: ='C2C'!F34 -> 0 | G15: ='C2C'!G34 -> 0 | H15: ='C2C'!H34 -> 0 | I15: 0 | K15: ='C2C'!K34 -> 0
A16: Economic and environmental services | C16: =SUM(C17:C19) -> 4760 | D16: 1500 | E16: 1500 | F16: 180 | G16: 2210 | H16: 1585 | I16: 625 | J16: 0.3943217666 | K16: =SUM(K17:K19) -> 1500
A17: Planning and development | C17: ='C2C'!C39 -> 0 | D17: ='C2C'!D39 -> 0 | E17: ='C2C'!E39 -> 0 | F17: ='C2C'!F39 -> 0 | G17: ='C2C'!G39 -> 0 | H17: ='C2C'!H39 -> 0 | I17: 0 | K17: ='C2C'!K39 -> 0
A18: Road transport | C18: ='C2C'!C43 -> 4760 | D18: ='C2C'!D43 -> 1500 | E18: ='C2C'!E43 -> 1500 | F18: ='C2C'!F43 -> 180 | G18: ='C2C'!G43 -> 2210 | H18: ='C2C'!H43 -> 1585 | I18: 625 | J18: 0.3943217666 | K18: ='C2C'!K43 -> 1500
A19: Environmental protection | C19: ='C2C'!C49 -> 0 | D19: ='C2C'!D49 -> 0 | E19: ='C2C'!E49 -> 0 | F19: ='C2C'!F49 -> 0 | G19: ='C2C'!G49 -> 0 | H19: ='C2C'!H49 -> 0 | I19: 0 | K19: ='C2C'!K49 -> 0
A20: Trading services | C20: =SUM(C21:C24) -> 30341090 | D20: =SUM(D21:D24) -> 41167870 | E20: 41167870 | F20: 1701987 | G20: 10628436.02 | H20: 21366728 | I20: -10738291.98 | J20: -0.5025707249 | K20: =SUM(K21:K24) -> 41167870
A21: Electricity | C21: ='C2C'!C54 -> 10798412 | D21: ='C2C'!D54 -> 10047442 | E21: ='C2C'!E54 -> 10047442 | F21: ='C2C'!F54 -> 744814.54 | G21: ='C2C'!G54 -> 4672785 | H21: ='C2C'!H54 -> 5023500 | I21: =G21-H21 -> -350715 | J21: -0.06981487011 | K21: ='C2C'!K54 -> 10047442
A22: Water | C22: ='C2C'!C57 -> 7360464 | D22: ='C2C'!D57 -> 23997496 | E22: ='C2C'!E57 -> 23997496 | F22: ='C2C'!F57 -> 380244.63 | G22: ='C2C'!G57 -> 2358879.02 | H22: ='C2C'!H57 -> 12781728.02 | I22: =G22-H22 -> -10422849 | J22: -0.8154491305 | K22: ='C2C'!K57 -> 23997496
A23: Waste water management | C23: ='C2C'!C60 -> 5743947 | D23: ='C2C'!D60 -> 2975575 | E23: ='C2C'!E60 -> 2975575 | F23: ='C2C'!F60 -> 248779.8 | G23: ='C2C'!G60 -> 1604689 | H23: ='C2C'!H60 -> 1488000 | I23: =G23-H23 -> 116689 | J23: 0.07842002688 | K23: ='C2C'!K60 -> 2975575
A24: Waste management | C24: ='C2C'!C64 -> 6438267 | D24: ='C2C'!D64 -> 4147357 | E24: ='C2C'!E64 -> 4147357 | F24: ='C2C'!F64 -> 328148.03 | G24: ='C2C'!G64 -> 1992083 | H24: ='C2C'!H64 -> 2073499.98 | I24: =G24-H24 -> -81416.98 | J24: -0.03926548386 | K24: ='C2C'!K64 -> 4147357
A25: Other | B25: 4 | C25: ='C2C'!C66 -> 0 | D25: ='C2C'!D66 -> 0 | E25: ='C2C'!E66 -> 0 | F25: ='C2C'!F66 -> 0 | G25: ='C2C'!G66 -> 0 | H25: ='C2C'!H66 -> 0 | I25: =G25-H25 -> 0 | K25: ='C2C'!K66 -> 0
A26: Total Revenue - Standard | B26: 2 | C26: =C6+C10+C16+C20+C25 -> 65691117 | D26: =D6+D10+D16+D20+D25 -> 89170529 | E26: 89170529 | F26: 2493128.98 | G26: 30235449.53 | H26: 51761831.69 | I26: -21526382.16 | J26: -0.4158736555 | K26: =K6+K10+K16+K20+K25 -> 89170529
A28: Expenditure - Standard
A29: =A6 -> Governance and administration | C29: =SUM(C30:C32) -> 14280822 | D29: 36633350.34 | E29: 36633350.34 | F29: 3915304.2 | G29: 20199769.8 | H29: 18315999.96 | I29: =G29-H29 -> 1883769.84 | J29: =IF(I29=0,"",I29/H29) -> 0.1028483208 | K29: =SUM(K30:K32) -> 36633350.34
A30: =A7 -> Executive and council | C30: ='C2C'!C76 -> 0 | D30: ='C2C'!D76 -> 22686530.34 | E30: ='C2C'!E76 -> 22686530.34 | F30: ='C2C'!F76 -> 2351528.2 | G30: ='C2C'!G76 -> 14375316.16 | H30: ='C2C'!H76 -> 11343000 | I30: 3032316.16 | J30: =IF(I30=0,"",I30/H30) -> 0.2673292921 | K30: ='C2C'!K76 -> 22686530.34
A31: Budget and treasury office | C31: ='C2C'!C79 -> 11767158 | D31: ='C2C'!D79 -> 10839446 | E31: ='C2C'!E79 -> 10839446 | F31: ='C2C'!F79 -> 1521945.3 | G31: ='C2C'!G79 -> 4524178.53 | H31: ='C2C'!H79 -> 5419500 | I31: -895321.47 | J31: -0.1652037033 | K31: ='C2C'!K79 -> 10839446
A32: Corporate services | C32: ='C2C'!C80 -> 2513664 | D32: ='C2C'!D80 -> 3107374 | E32: ='C2C'!E80 -> 3107374 | F32: ='C2C'!F80 -> 41830.7 | G32: ='C2C'!G80 -> 1300275.11 | H32: ='C2C'!H80 -> 1553499.96 | I32: -253224.85 | J32: -0.1630028043 | K32: ='C2C'!K80 -> 3107374
A33: Community and public safety | C33: =SUM(C34:C38) -> 3643786 | D33: 3658142 | E33: 3658142 | F33: 72866.57 | G33: 751463.57 | H33: 1787774.5 | I33: -1036310.93 | J33: -0.5796653493 | K33: =SUM(K34:K38) -> 3658142
A34: Community and social services | C34: ='C2C'!C86 -> 2810033 | D34: ='C2C'!D86 -> 2842559 | E34: ='C2C'!E86 -> 2842559 | F34: ='C2C'!F86 -> 20954.33 | G34: ='C2C'!G86 -> 389272.21 | H34: ='C2C'!H86 -> 1441772.78 | I34: -1052500.57 | J34: -0.7300044671 | K34: ='C2C'!K86 -> 2842559
A35: Sport and recreation | C35: ='C2C'!C95 -> 765938 | D35: ='C2C'!D95 -> 741476 | E35: ='C2C'!E95 -> 741476 | F35: ='C2C'!F95 -> 0 | G35: ='C2C'!G95 -> 245233 | H35: ='C2C'!H95 -> 308948.3 | I35: -63715.3 | J35: -0.2062328875 | K35: ='C2C'!K95 -> 741476
A36: Public safety | C36: ='C2C'!C96 -> 20690 | D36: ='C2C'!D96 -> 52032 | E36: ='C2C'!E96 -> 52032 | F36: ='C2C'!F96 -> 51618.5 | G36: ='C2C'!G96 -> 112286.36 | H36: ='C2C'!H96 -> 26015.94 | I36: 86270.42 | J36: 3.316060077 | K36: ='C2C'!K96 -> 52032
A37: Housing | C37: ='C2C'!C102 -> 0 | D37: ='C2C'!D102 -> 0 | E37: ='C2C'!E102 -> 0 | F37: ='C2C'!F102 -> 0 | G37: ='C2C'!G102 -> 0 | H37: ='C2C'!H102 -> 0 | I37: 0 | K37: ='C2C'!K102 -> 0
A38: Health | C38: ='C2C'!C103 -> 47125 | D38: ='C2C'!D103 -> 22075 | E38: ='C2C'!E103 -> 22075 | F38: ='C2C'!F103 -> 293.74 | G38: ='C2C'!G103 -> 4672 | H38: ='C2C'!H103 -> 11037.48 | I38: -6365.48 | J38: -0.5767149748 | K38: ='C2C'!K103 -> 22075
A39: Economic and environmental services | C39: =SUM(C40:C42) -> 3959658 | D39: 5755273 | E39: 5755273 | F39: 405754.87 | G39: 1852263.74 | H39: 2873304.48 | I39: -1021040.74 | J39: -0.355354174 | K39: =SUM(K40:K42) -> 5755273
A40: Planning and development | C40: ='C2C'!C108 -> 0 | D40: ='C2C'!D108 -> 0 | E40: ='C2C'!E108 -> 0 | F40: ='C2C'!F108 -> 0 | G40: ='C2C'!G108 -> 0 | H40: ='C2C'!H108 -> 0 | I40: 0 | K40: ='C2C'!K108 -> 0
A41: Road transport | C41: ='C2C'!C112 -> 3959658 | D41: ='C2C'!D112 -> 5755273 | E41: ='C2C'!E112 -> 5755273 | F41: ='C2C'!F112 -> 405754.87 | G41: ='C2C'!G112 -> 1852263.74 | H41: ='C2C'!H112 -> 2873304.48 | I41: -1021040.74 | J41: -0.355354174 | K41: ='C2C'!K112 -> 5755273
A42: Environmental protection | C42: ='C2C'!C118 -> 0 | D42: ='C2C'!D118 -> 0 | E42: ='C2C'!E118 -> 0 | F42: ='C2C'!F118 -> 0 | G42: ='C2C'!G118 -> 0 | H42: ='C2C'!H118 -> 0 | I42: 0 | K42: ='C2C'!K118 -> 0
A43: Trading services | C43: =SUM(C44:C47) -> 8180569 | D43: =SUM(D44:D47) -> 21992412 | E43: 21992412 | F43: 1496355.47 | G43: 8663345.293 | H43: 16503666.06 | I43: -7840320.767 | J43: -0.475065403 | K43: =SUM(K44:K47) -> 21992412
A44: Electricity | C44: ='C2C'!C123 -> 0 | D44: ='C2C'!D123 -> 12070337 | E44: ='C2C'!E123 -> 12070337 | F44: ='C2C'!F123 -> 821453.47 | G44: ='C2C'!G123 -> 5593124.35 | H44: ='C2C'!H123 -> 11258245.33 | I44: -5665120.98 | J44: -0.5031975067 | K44: ='C2C'!K123 -> 12070337
A45: Water | C45: ='C2C'!C126 -> 1200289 | D45: ='C2C'!D126 -> 2447784 | E45: ='C2C'!E126 -> 2447784 | F45: ='C2C'!F126 -> 177273.34 | G45: ='C2C'!G126 -> 671649.65 | H45: ='C2C'!H126 -> 1508420.75 | I45: -836771.1 | J45: -0.5547332202 | K45: ='C2C'!K126 -> 2447784
A46: Waste water management | C46: ='C2C'!C129 -> 3601134 | D46: ='C2C'!D129 -> 4131075 | E46: ='C2C'!E129 -> 4131075 | F46: ='C2C'!F129 -> 372715.25 | G46: ='C2C'!G129 -> 2044679.203 | H46: ='C2C'!H129 -> 2065500 | I46: -20820.797 | J46: -0.01008026967 | K46: ='C2C'!K129 -> 4131075
A47: Waste management | C47: ='C2C'!C133 -> 3379146 | D47: ='C2C'!D133 -> 3343216 | E47: ='C2C'!E133 -> 3343216 | F47: ='C2C'!F133 -> 124913.41 | G47: ='C2C'!G133 -> 353892.09 | H47: ='C2C'!H133 -> 1671499.98 | I47: -1317607.89 | J47: -0.7882787351 | K47: ='C2C'!K133 -> 3343216
A48: Other | C48: ='C2C'!C135 -> 0 | D48: ='C2C'!D135 -> 0 | E48: ='C2C'!E135 -> 0 | F48: ='C2C'!F135 -> 0 | G48: ='C2C'!G135 -> 0 | H48: ='C2C'!H135 -> 0 | I48: 0 | K48: ='C2C'!K135 -> 0
A49: Total Expenditure - Standard | B49: 3 | C49: =C29+C33+C39+C43+C48 -> 30064835 | D49: =D29+D33+D39+D43+D48 -> 68039177.34 | E49: 68039177.34 | F49: 5890281.11 | G49: 31466842.4 | H49: 39480745 | I49: -8013902.597 | J49: -0.2029825576 | K49: =K29+K33+K39+K43+K48 -> 68039177.34
A50: Surplus/ (Deficit) for the year | C50: =C26-C49 -> 35626282 | D50: 21131351.66 | E50: 21131351.66 | F50: -3397152.13 | G50: -1231392.873 | H50: 12281086.69 | I50: =I26-I49 -> -13512479.56 | J50: =IF(I50=0,"",I50/H50) -> -1.10026742 | K50: =K26-K49 -> 21131351.66
A51: =head27a -> References
A52: 1. Government Finance Statistics Functions and Sub-functions are standardised to assist the compilation of national and international accounts for comparison purposes
A53: 2. Total Revenue by standard classification must reconcile to Total Operating Revenue shown in the Financial Performance Statement
A54: 3. Total Expenditure by standard classification must reconcile to total operating expenditure shown in 'Financial Performance Statement'
A55: 4. All amounts must be classified under a standard classification (modified GFS). The GFS function 'Other' is only for Abbatoirs, Air Transport, Markets and Tourism - and if used must be supported by footnotes. Nothing else may be placed under 'Other'. Assign associate share to relevant classification

Sheet C2C
A1: =muni& " - "&S71A& " - "&date -> NC074 Kareeberg - Table C2 Monthly Budget Statement - Financial Performance (standard classification) - Mid-Year Assessment
A2: =desc -> Description | B2: =head27 -> Ref | C2: =Head1 -> 2016/17 | D2: =Head2 -> Budget Year 2017/18
C3: =Head5 -> Audited Outcome | D3: =Head6 -> Original Budget | E3: =Head7 -> Adjusted Budget | F3: =Head38 -> Monthly actual | G3: =Head39 -> YearTD actual | H3: =Head40 -> YearTD budget | I3: =Head41 -> YTD variance | J3: =Head41 -> YTD variance | K3: =Head8 -> Full Year Forecast
A4: R thousands | B4: 1 | J4: %
A5: Revenue - Standard
A6: Municipal governance and administration | C6: =C8+C10 -> 35252485 | D6: =D8+D10 -> 46537004 | E6: =E8+E10 -> 46537004 | F6: =F7+F11 -> 561644.47 | G6: =G7+G11 -> 13711650.93 | H6: =H7+H11 -> 23268499.98 | I6: =G6-H6 -> -9556849.05 | J6: =IF(I6=0,"",I6/H6) -> -0.4107204615 | K6: 46537004
A7: Executive and council | C7: 19112656 | D7: 33751464 | E7: 33751464 | F7: =F8+F9+F10 -> 561644.47 | G7: 13711650.93 | H7: =H8+H9+H10 -> 23268499.98 | I7: -9556849.05 | J7: -0.4107204615 | K7: 33751464
A8: Mayor and Council | C8: 19112656 | D8: 33751464 | E8: 33751464 | F8: 334052.96 | G8: =9865150+852000+825000+334000 -> 11876150 | H8: =2812583.33*6 -> 16875499.98 | I8: -4999349.98 | J8: -0.2962489992 | K8: 33751464
A9: Municipal Manager | I9: 0
A10: Budget and treasury office | C10: 16139829 | D10: 12785540 | E10: 12785540 | F10: 227591.51 | G10: =5212278.58+82702+144000+93000+120000+228000 -> 5879980.58 | H10: =1065500*6 -> 6393000 | I10: -513019.42 | J10: -0.08024705459 | K10: 12785540
A11: Corporate services | D11: 0 | E11: 0 | F11: =F12+F13+F14+F15 -> 0 | G11: 0 | H11: =H12+H13+H14+H15 -> 0 | I11: 0
A12: Human Resources | D12: 0 | E12: 0 | F12: 0 | I12: 0
A13: Information Technology | D13: 0 | E13: 0 | I13: 0
A14: Property Services | D14: 0 | E14: 0 | I14: 0
A15: Other Admin | D15: 0 | E15: 0 | I15: 0
A16: Community and public safety | C16: =C21+C29+C26 -> 55535 | D16: =D17+D27 -> 1446755 | E16: =E17+E27 -> 1446755 | F16: =F17+F27+F34 -> 1333 | G16: =G17+G27+G34 -> 11049 | H16: =H17+H27+H34 -> 723318.71 | I16: -712269.71 | J16: -0.984724576 | K16: 1446755
A17: Community and social services | C17: =C21+C26 -> 54855 | D17: =D18+D21+D26 -> 1446050 | E17: =E18+E21+E26 -> 1446050 | F17: =F18+F19+F20+F21+F22+F23+F24+F25+F26 -> 1333 | G17: =G18+G19+G21+G26 -> 10049 | H17: =H18+H19+H20+H21+H22+H23+H24+H25+H26 -> 723024.96 | I17: -712975.96 | J17: -0.986101448 | K17: 1446050
A18: Libraries and Archives | D18: 1422730 | E18: 1422730 | F18: 40 | G18: =120+368+409+134+40 -> 1071 | H18: =118560.83*6 -> 711364.98 | I18: -710293.98 | J18: -0.9984944437 | K18: 1422730
A19: Museums & Art Galleries etc | F19: 0 | G19: 0 | I19: 0
A20: Community halls and Facilities | I20: 0
A21: Cemeteries & Crematoriums | C21: 16929 | D21: 5920 | E21: 5920 | F21: 900 | G21: =5175+780+900 -> 6855 | H21: =493.33*6 -> 2959.98 | I21: 3895.02 | J21: 1.315894026 | K21: 5920
A22: Child Care | I22: 0
A23: Aged Care | I23: 0
A24: Other Community | I24: 0
A25: Other Social | I25: 0
A26: Sport and recreation | C26: 37926 | D26: 17400 | E26: 17400 | F26: 393 | G26: =1390+340+393 -> 2123 | H26: =1450*6 -> 8700 | I26: -6577 | J26: -0.7559770115 | K26: 17400
A27: Public safety | C27: 1 | D27: 705 | E27: 705 | F27: =F28+F29+F30+F31+F32+F33 -> 0 | G27: =G29+G30+G32 -> 1000 | H27: =H28+H29+H30+H31+H32+H33 -> 293.75 | I27: 706.25 | J27: 2.404255319 | K27: 705
A28: Police | D28: 0 | E28: 0 | I28: 0 | K28: 0
A29: Fire | C29: 680 | D29: 0 | E29: 0 | F29: 0 | G29: 0 | I29: 0 | K29: 0
A30: Civil Defence | D30: 0 | E30: 0 | F30: 0 | G30: 0 | I30: 0 | K30: 0
A31: Street Lighting | D31: 0 | E31: 0 | I31: 0 | K31: 0
A32: Other | D32: 705 | E32: 705 | F32: 0 | G32: =1000 -> 1000 | H32: =58.75*5 -> 293.75 | I32: 706.25 | J32: 2.404255319 | K32: 705
A33: Housing | D33: 0 | E33: 0 | G33: 0 | I33: 0 | K33: 0
A34: Health | D34: 0 | E34: 0 | G34: =G35+G36+G37 -> 0 | H34: =H35+H36+H37 -> 0 | I34: 0 | K34: 0
A35: Clinics | D35: 0 | E35: 0 | F35: 0 | G35: 0 | I35: 0 | K35: 0
A36: Ambulance | D36: 0 | E36: 0 | G36: 0 | I36: 0 | K36: 0
A37: Other | D37: 0 | E37: 0 | F37: 0 | G37: 0 | I37: 0 | K37: 0
A38: Economic and environmental services | D38: =D43 -> 1500 | E38: =E43 -> 1500 | F38: =F39+F43+F49 -> 180 | G38: =G39+G43+G49 -> 2210 | H38: =H39+H43+H49 -> 1585 | I38: 625 | J38: 0.3943217666 | K38: 1500
A39: Planning and development | F39: =F40+F41+F42 -> 0 | G39: 0 | H39: =H40+H41+H42 -> 0 | I39: 0
A40: Economic Development/Planning | I40: 0
A41: Town Planning/Building enforcement | I41: 0
A42: Licensing & Regulation | I42: 0
A43: Road transport | C43: =C47 -> 4760 | D43: 1500 | E43: 1500 | F43: =F44+F45+F46+F47+F48 -> 180 | G43: =G44+G45+G46+G47+G48 -> 2210 | H43: =H44+H45+H46+H47+H48 -> 1585 | I43: 625 | J43: 0.3943217666 | K43: 1500
A44: Roads | D44: 400 | E44: 400 | I44: 0 | K44: 400
A45: Public Buses | I45: 0
A46: Parking Garages | I46: 0
A47: Vehicle Licensing and Testing | C47: 4760 | D47: 1500 | E47: 1500 | F47: 180 | G47: =1620+360+180 -> 2160 | H47: =250*6 -> 1500 | I47: 660 | J47: 0.44 | K47: 1500
A48: Other | D48: 100 | E48: 100 | G48: 50 | H48: =17*5 -> 85 | I48: -35 | J48: -0.4117647059 | K48: 100
A49: Environmental protection | F49: =F50+F51+F52 -> 0 | G49: =G50+G51+G52 -> 0 | H49: =H50+H51+H52 -> 0 | I49: 0
A50: Pollution Control | I50: 0
A51: Biodiversity & Landscape | I51: 0
A52: Other | I52: 0
A53: Trading services | C53: =C55+C58+C61+C65 -> 30341090 | D53: =D54+D57+D60+D64 -> 41167870 | E53: =E54+E57+E60+E64 -> 41167870 | F53: =F54+F57+F60+F64 -> 1701987 | G53: =G54+G57+G60+G64 -> 10628436.02 | H53: =H54+H57+H60+H64 -> 21366728 | I53: -10738291.98 | J53: -0.5025707249 | K53: 41167870
A54: Electricity | C54: =C55 -> 10798412 | D54: 10047442 | E54: 10047442 | F54: =F55+F56 -> 744814.54 | G54: =G55 -> 4672785 | H54: =H55+H56 -> 5023500 | I54: -350715 | J54: -0.06981487011 | K54: 10047442
A55: Electricity Distribution | C55: 10798412 | D55: 10047442 | E55: 10047442 | F55: 744814.54 | G55: =3080785+847000+745000 -> 4672785 | H55: =837250*6 -> 5023500 | I55: -350715 | J55: -0.06981487011 | K55: 10047442
A56: Electricity Generation | I56: 0
A57: Water | C57: =C58 -> 7360464 | D57: 23997496 | E57: 23997496 | F57: =F58+F59 -> 380244.63 | G57: =G58+G59 -> 2358879.02 | H57: =H58+H59 -> 12781728.02 | I57: -10422849 | J57: -0.8154491305 | K57: 23997496
A58: Water Distribution | C58: 7360464 | D58: 23997496 | E58: 23997496 | G58: 1575651 | H58: =1999750*6 -> 11998500 | I58: -10422849 | J58: -0.8686793349 | K58: 23997496
A59: Water Storage | F59: 380244.63 | G59: =403228.02+380000 -> 783228.02 | H59: =403228.02+380000 -> 783228.02 | I59: 0
A60: Waste water management | C60: =C61 -> 5743947 | D60: 2975575 | E60: 2975575 | F60: =F61+F62+F63 -> 248779.8 | G60: =G61+G62+G63 -> 1604689 | H60: =H61+H62+H63 -> 1488000 | I60: 116689 | J60: 0.07842002688 | K60: 2975575
A61: Sewerage | C61: 5743947 | D61: 2975575 | E61: 2975575 | F61: 248779.8 | G61: =1088689+267000+249000 -> 1604689 | H61: =248000*6 -> 1488000 | I61: 116689 | J61: 0.07842002688 | K61: 2975575
A62: Storm Water Management | I62: 0
A63: Public Toilets | I63: 0
A64: Waste management | C64: =C65 -> 6438267 | D64: 4147357 | E64: 4147357 | F64: =F65 -> 328148.03 | G64: =G65 -> 1992083 | H64: =H65 -> 2073499.98 | I64: -81416.98 | J64: -0.03926548386 | K64: 4147357
A65: Solid Waste | C65: 6438267 | D65: 4147357 | E65: 4147357 | F65: 328148.03 | G65: =1337083+327000+328000 -> 1992083 | H65: =345583.33*6 -> 2073499.98 | I65: -81416.98 | J65: -0.03926548386 | K65: 4147357
A66: Other | F66: =F67+F68+F69+F70+F71 -> 0 | G66: =G67+G68+G69+G70+G71 -> 0 | H66: =H67+H68+H69+H70+H71 -> 0 | I66: 0
A67: Air Transport | I67: 0
A68: Abattoirs | I68: 0
A69: Tourism | I69: =G69-H69 -> 0
A70: Forestry | I70: 0 | J70: =IF(I70=0,"",I70/H70) -> 
A71: Markets | I71: 0
A72: ="Total "&A5 -> Total Revenue - Standard | B72: 2 | C72: =C66+C53+C38+C16+C6 -> 65649110 | D72: 89153129 | E72: 89153129 | F72: 2265144.47 | G72: 24353345.95 | H72: 45360131.69 | I72: -21006785.74 | J72: -0.4631112159
I73: 0
A74: Expenditure - Standard | I74: 0
A75: =A6 -> Municipal governance and administration | C75: =C77+C79+C81 -> 33009203 | D75: =D76+D80 -> 25793904.34 | E75: =E76+E80 -> 25793904.34 | F75: =F76+F80 -> 2393358.9 | G75: =G76+G80 -> 15675591.27 | H75: =H76+H80 -> 12896499.96 | I75: 2779091.31 | J75: 0.2154919023 | K75: 25793904.34
A76: =A7 -> Executive and council | D76: =D77+D79 -> 22686530.34 | E76: =E77+E78+E79 -> 22686530.34 | F76: =F77+F78+F79 -> 2351528.2 | G76: =G77+G78+G79 -> 14375316.16 | H76: =H77+H78+H79 -> 11343000 | I76: 3032316.16 | J76: 0.2673292921 | K76: 22686530.34
A77: Mayor and Council | C77: 18728381 | D77: 11847084.34 | E77: 11847084.34 | F77: 829582.9 | G77: =8126824.63+894313+830000 -> 9851137.63 | H77: =987250*6 -> 5923500 | I77: 3927637.63 | J77: 0.6630602904 | K77: 11847084.34
A78: Municipal Manager | I78: 0
A79: Budget and treasury office | C79: 11767158 | D79: 10839446 | E79: 10839446 | F79: 1521945.3 | G79: =2091649.53+910529+1522000 -> 4524178.53 | H79: =903250*6 -> 5419500 | I79: -895321.47 | J79: -0.1652037033 | K79: 10839446
A80: Corporate services | C80: =C81 -> 2513664 | D80: 3107374 | E80: =E81+E82+E83+E84 -> 3107374 | F80: =F81+F82+F83+F84 -> 41830.7 | G80: =G81+G82+G83+G84 -> 1300275.11 | H80: =H81+H82+H83+H84 -> 1553499.96 | I80: -253224.85 | J80: -0.1630028043 | K80: 3107374
A81: Human Resources | C81: 2513664 | D81: 3107374 | E81: 3107374 | F81: 41830.7 | G81: =1032275.11+226000+42000 -> 1300275.11 | H81: =258916.66*6 -> 1553499.96 | I81: -253224.85 | J81: -0.1630028043 | K81: 3107374
A82: Information Technology | I82: 0
A83: Property Services | I83: 0
A84: Other Admin | I84: 0
A85: Community and public safety | C85: =C87+C95+C98+C106 -> 2877848 | D85: =D86+D96+D103 -> 2916666 | E85: =E86+E96+E103 -> 2916666 | F85: =F86+F96+F103 -> 72866.57 | G85: =G86+G96+G103 -> 506230.57 | H85: =H86+H96+H103 -> 1478826.2 | I85: -972595.63 | J85: -0.6576808215 | K85: 2916666
A86: Community and social services | C86: =C87+C95 -> 2810033 | D86: =D87+D88+D95 -> 2842559 | E86: =E87+E88+E95 -> 2842559 | F86: =F87+F88+F89+F90+F91 -> 20954.33 | G86: =G87+G88+G89+G90+G91+G92+G93+G94+G95 -> 389272.21 | H86: =H87+H88+H89+H90+H91+H92+H93+H94+H95 -> 1441772.78 | I86: -1052500.57 | J86: -0.7300044671 | K86: 2842559
A87: Libraries and Archives | C87: 2044095 | D87: 2070381 | E87: 2070381 | F87: 8585.86 | G87: =35623.21+18481+9000 -> 63104.21 | H87: =172500*6 -> 1035000 | I87: -971895.79 | J87: -0.9390297488 | K87: 2070381
A88: Museums & Art Galleries etc | D88: 30702 | E88: 30702 | F88: 277.46 | G88: =4149.68+172+277 -> 4598.68 | H88: =2558.5*6 -> 15351 | I88: -10752.32 | J88: -0.7004312423 | K88: 30702
A89: Community halls and Facilities | I89: 0
A90: Cemeteries & Crematoriums | D90: 164947 | E90: 164947 | F90: 12091.01 | G90: =51828.32+12508+12000 -> 76336.32 | H90: =13745.58*6 -> 82473.48 | I90: -6137.16 | J90: -0.07441373882
A91: Child Care | I91: 0
A92: Aged Care | I92: 0
A93: Other Community | I93: 0
A94: Other Social | I94: 0
A95: Sport and recreation | C95: 765938 | D95: 741476 | E95: 741476 | G95: =178524+66709 -> 245233 | H95: =61789.66*5 -> 308948.3 | I95: -63715.3 | J95: -0.2062328875 | K95: 741476
A96: Public safety | C96: =C98 -> 20690 | D96: =D98+D99+D101 -> 52032 | E96: =E98+E99+E101 -> 52032 | F96: =F97+F98+F99+F100+F101 -> 51618.5 | G96: =G97+G98+G99+G100+G101+G102 -> 112286.36 | H96: =H97+H98+H99+H100+H101+H102 -> 26015.94 | I96: 86270.42 | J96: 3.316060077 | K96: 52032
A97: Police | I97: 0
A98: Fire | C98: 20690 | D98: 6117 | E98: 6117 | F98: 44308.3 | G98: =44880.3+44308 -> 89188.3 | H98: =509.75*6 -> 3058.5 | I98: 86129.8 | J98: 28.16079778 | K98: 6117
A99: Civil Defence | D99: 5665 | E99: 5665 | G99: =750+0 -> 750 | H99: =472.08*6 -> 2832.48 | I99: -2082.48 | J99: -0.7352143704 | K99: 5665
A100: Street Lighting | I100: 0
A101: Other | D101: 40250 | E101: 40250 | F101: 7310.2 | G101: =13551.06+1487+7310 -> 22348.06 | H101: =3354.16*6 -> 20124.96 | I101: 2223.1 | J101: 0.1104648158 | K101: 40250
A102: Housing | F102: 0 | G102: 0 | I102: 0
A103: Health | C103: =C106 -> 47125 | D103: =D106 -> 22075 | E103: =E106 -> 22075 | F103: =F104+F105+F106 -> 293.74 | G103: =G104+G105+G106 -> 4672 | H103: =H104+H105+H106 -> 11037.48 | I103: -6365.48 | J103: -0.5767149748 | K103: 22075
A104: Clinics | I104: 0
A105: Ambulance | I105: 0
A106: Other | C106: 47125 | D106: 22075 | E106: 22075 | F106: 293.74 | G106: =4378+294 -> 4672 | H106: =1839.58*6 -> 11037.48 | I106: -6365.48 | J106: -0.5767149748 | K106: 22075
A107: Economic and environmental services | C107: =C113 -> 3959658 | D107: =D112 -> 5755273 | E107: =E112 -> 5755273 | F107: =F108+F112+F118 -> 405754.87 | G107: =G108+G112+G118 -> 1852263.74 | H107: =H108+H112+H118 -> 2873304.48 | I107: -1021040.74 | J107: -0.355354174 | K107: 5755273
A108: Planning and development | F108: =F109+F110+F111 -> 0 | G108: =G109+G110+G111 -> 0 | H108: =H109+H110+H111 -> 0 | I108: 0
A109: Economic Development/Planning | I109: 0
A110: Town Planning/Building enforcement | I110: 0
A111: Licensing & Regulation | I111: 0
A112: Road transport | C112: =C113 -> 3959658 | D112: =D113+D116+D117 -> 5755273 | E112: =E113+E116+E117 -> 5755273 | F112: =F113+F114+F115+F116+F117 -> 405754.87 | G112: =G113+G114+G115+G116+G117 -> 1852263.74 | H112: =H113+H114+H115+H116+H117 -> 2873304.48 | I112: -1021040.74 | J112: -0.355354174 | K112: 5755273
A113: Roads | C113: 3959658 | D113: 984573 | E113: 984573 | F113: 77899.21 | G113: =196471.1+49906+77889 -> 324266.1 | H113: =82047.75*6 -> 492286.5 | I113: -168020.4 | J113: -0.3413061297 | K113: 984573
A114: Public Buses | I114: 0
A115: Parking Garages | I115: 0
A116: Vehicle Licensing and Testing | D116: 441072 | E116: 441072 | F116: 16530.88 | G116: =68732.68+16714+16530 -> 101976.68 | H116: =36756*6 -> 220536 | I116: -118559.32 | J116: -0.5375962201 | K116: 441072
A117: Other | D117: 4329628 | E117: 4329628 | F117: 311324.78 | G117: =865348.96+249347+311325 -> 1426020.96 | H117: =360080.33*6 -> 2160481.98 | I117: -734461.02 | J117: -0.3399523934 | K117: 4329628
A118: Environmental protection | F118: =F119+F120+F121 -> 0 | G118: =G119+G120+G121 -> 0 | H118: =H119+H120+H121 -> 0 | I118: 0
A119: Pollution Control | F119: 0 | G119: 0 | I119: 0
A120: Biodiversity & Landscape | F120: 0 | G120: 0 | I120: 0
A121: Other | F121: 0 | G121: 0 | I121: 0
A122: Trading services | C122: =C127+C130+C134 -> 8180569 | D122: =D123+D126+D129+D133 -> 21992412 | E122: =E123+E126+E129+E133 -> 21992412 | F122: =F123+F126+F129+F133 -> 1496355.47 | G122: =G123+G126+G129+G133 -> 8663345.293 | H122: =H123+H126+H129+H133 -> 16503666.06 | I122: -7840320.767 | J122: -0.475065403 | K122: 21992412
A123: Electricity | D123: =D124 -> 12070337 | E123: =E124 -> 12070337 | F123: =F124+F125 -> 821453.47 | G123: =G124+G125 -> 5593124.35 | H123: =H124+H125 -> 11258245.33 | I123: -5665120.98 | J123: -0.5031975067 | K123: 12070337
A124: Electricity Distribution | D124: 12070337 | E124: 12070337 | F124: 63623 | G124: =240983+65273+63623 -> 369879 | H124: =1005833.33*6 -> 6034999.98 | I124: -5665120.98 | J124: -0.9387110189 | K124: 12070337
A125: Electricity Generation | F125: 757830.47 | G125: =3710232.35+755013+758000 -> 5223245.35 | H125: =3710232.35+755013+758000 -> 5223245.35 | I125: 0
A126: Water | C126: =C127 -> 1200289 | D126: =D127 -> 2447784 | E126: =E127 -> 2447784 | F126: =F127+F128 -> 177273.34 | G126: =G127+G128 -> 671649.65 | H126: =H127+H128 -> 1508420.75 | I126: -836771.1 | J126: -0.5547332202 | K126: 2447784
A127: Water Distribution | C127: 1200289 | D127: 2447784 | E127: 2447784 | F127: 155712.43 | G127: =135354.9+95874+156000 -> 387228.9 | H127: =204000*6 -> 1224000 | I127: -836771.1 | J127: -0.6836365196 | K127: 2447784
A128: Water Storage | F128: 21560.91 | G128: =208050.75+54810+21560 -> 284420.75 | H128: =208050.75+54810+21560 -> 284420.75 | I128: 0
A129: Waste water management | C129: =C130 -> 3601134 | D129: =D130 -> 4131075 | E129: =E130 -> 4131075 | F129: =F130+F131+F132 -> 372715.25 | G129: =G130 -> 2044679.203 | H129: =H130+H131+H132 -> 2065500 | I129: -20820.797 | J129: -0.01008026967 | K129: 4131075
A130: Sewerage | C130: 3601134 | D130: 4131075 | E130: 4131075 | F130: 372715.25 | G130: =1316069.203+355610+373000 -> 2044679.203 | H130: =344250*6 -> 2065500 | I130: -20820.797 | J130: -0.01008026967 | K130: 4131075
A131: Storm Water Management | I131: 0
A132: Public Toilets | I132: 0
A133: Waste management | C133: =C134 -> 3379146 | D133: 3343216 | E133: 3343216 | F133: 124913.41 | G133: 353892.09 | H133: 1671499.98 | I133: =G133-H133 -> -1317607.89 | J133: -0.7882787351 | K133: 3343216
A134: Solid Waste | C134: 3379146 | D134: 3343216 | E134: 3343216 | F134: 124913.41 | G134: =189387.09+39505+125000 -> 353892.09 | H134: =278583.33*6 -> 1671499.98 | I134: -1317607.89 | J134: =IF(I134=0,"",I134/H134) -> -0.7882787351 | K134: 3343216
A135: Other | F135: =F136+F137+F138+F139+F140 -> 0 | G135: 0 | H135: =H136+H137+H138+H139+H140 -> 0 | I135: 0
A136: Air Transport | I136: 0
A137: Abattoirs | I137: 0
A138: Tourism | I138: 0
A139: Forestry | I139: 0
A140: =A71 -> Markets | I140: 0
A141: ="Total "&A74 -> Total Expenditure - Standard | B141: 3 | C141: =C75+C85+C107+C122+C135 -> 48027278 | D141: =D75+D85+D107+D122+D135 -> 56458255.34 | E141: =E75+E85+E107+E122+E135 -> 56458255.34 | F141: =F135+F122+F107+F85+F75 -> 4368335.81 | G141: =G135+G122+G107+G85+G75 -> 26697430.87 | H141: =H135+H122+H107+H85+H75 -> 33752296.7 | I141: -7054865.827 | J141: -0.2090188377 | K141: 56458255.34
A142: =result -> Surplus/ (Deficit) for the year | C142: =C72-C141 -> 17621832 | D142: 32694873.66 | E142: =E72-E141 -> 32694873.66 | F142: -2103191.34 | G142: -2344084.923 | H142: 11607834.99 | I142: -13951919.91 | J142: -1.20193989 | K142: -56458255.34
A143: =head27a -> References
A144: 1. Government Finance Statistics Functions and Sub-functions are standardised to assist national and international accounts and comparison
A145: 2. Total Revenue by Standard Classification must reconcile to total operating revenue shown in Financial Performance (revenue and expenditure)
A146: 3. Total Expenditure by Standard Classification must reconcile to total operating expenditure shown in Financial Performance (revenue and expenditure)
A147: 4. All amounts must be classified under a Standard (modified GFS) classification. The GFS function 'Other' is only for Abbatoirs, Air Transport, Markets and Tourism - and if used must be supported by footnotes. Nothing else may be placed under 'Other'. Assign associate share to relevant classification
A150: check oprev balance | C150: =C72 -> 65649110 | D150: 0 | E150: 0 | F150: 0 | G150: 0 | H150: 0 | I150: 0 | K150: 0
A151: check opexp balance | C151: 0 | D151: 0 | E151: 0 | F151: 0 | G151: 0 | H151: 0 | I151: 0 | K151: 0

Sheet C3-FinPerf V
A1: =muni& " - "&S71C& " - "&date -> NC074 Kareeberg - Table C3 Monthly Budget Statement - Financial Performance (revenue and expenditure by municipal vote) - Mid-Year Assessment
A2: =Vdesc -> Vote Description | B2: =head27 -> Ref | C2: =Head1 -> 2016/17 | D2: =Head2 -> Budget Year 2017/18
C3: =Head5 -> Audited Outcome | D3: =Head6 -> Original Budget | E3: =Head7 -> Adjusted Budget | F3: =Head38 -> Monthly actual | G3: =Head39 -> YearTD actual | H3: =Head40 -> YearTD budget | I3: =Head41 -> YTD variance | J3: =Head41 -> YTD variance | K3: =Head8 -> Full Year Forecast
A4: R thousands | J4: %
A5: Revenue by Vote | B5: 1
A6: ='Org structure'!A2 -> Vote 1 - Executive and Council | C6: ='C3C'!C6 -> 19112656 | D6: ='C3C'!D6 -> 33751464 | E6: ='C3C'!E6 -> 33751464 | F6: ='C3C'!F6 -> 334052.96 | G6: ='C3C'!G6 -> 11518004.35 | H6: ='C3C'!H6 -> 16875499.98 | I6: =G6-H6 -> -5357495.63 | J6: =IF(I6=0,"",I6/H6) -> -0.3174718163 | K6: ='C3C'!K6 -> 33751464
A7: ='Org structure'!A3 -> Vote 2 - Budget and Treasury | C7: ='C3C'!C17 -> 16139829 | D7: ='C3C'!D17 -> 12785540 | E7: ='C3C'!E17 -> 12785540 | F7: ='C3C'!F17 -> 227591.51 | G7: ='C3C'!G17 -> 5881183.58 | H7: ='C3C'!H17 -> 6395439.9 | I7: =G7-H7 -> -514256.32 | J7: =IF(I7=0,"",I7/H7) -> -0.08040984327 | K7: ='C3C'!K17 -> 12785540
A8: ='Org structure'!A4 -> Vote 3 - Corporate Services | C8: ='C3C'!C28 -> 0 | D8: ='C3C'!D28 -> 0 | E8: ='C3C'!E28 -> 0 | F8: ='C3C'!F28 -> 0 | G8: ='C3C'!G28 -> 0 | H8: ='C3C'!H28 -> 0 | I8: 0 | K8: ='C3C'!K28 -> 0
A9: ='Org structure'!A5 -> Vote 4 - Planning and Development | C9: ='C3C'!C39 -> 0 | D9: ='C3C'!D39 -> 0 | E9: ='C3C'!E39 -> 0 | F9: ='C3C'!F39 -> 0 | G9: ='C3C'!G39 -> 0 | H9: ='C3C'!H39 -> 0 | I9: 0 | K9: ='C3C'!K39 -> 0
A10: ='Org structure'!A6 -> Vote 5 - Health | C10: ='C3C'!C50 -> 0 | D10: ='C3C'!D50 -> 0 | E10: ='C3C'!E50 -> 0 | F10: ='C3C'!F50 -> 0 | G10: ='C3C'!G50 -> 0 | H10: ='C3C'!H50 -> 0 | I10: 0 | K10: ='C3C'!K50 -> 0
A11: ='Org structure'!A7 -> Vote 6 - Community and Social Services | C11: ='C3C'!C61 -> 16929 | D11: ='C3C'!D61 -> 1428650 | E11: ='C3C'!E61 -> 1428650 | F11: ='C3C'!F61 -> 940 | G11: ='C3C'!G61 -> 8047 | H11: ='C3C'!H61 -> 715059.96 | I11: -707012.96 | J11: -0.9887463983 | K11: ='C3C'!K61 -> 1428650
A12: ='Org structure'!A8 -> Vote 7 - Housing | C12: ='C3C'!C72 -> 0 | D12: ='C3C'!D72 -> 0 | E12: ='C3C'!E72 -> 0 | F12: ='C3C'!F72 -> 0 | G12: ='C3C'!G72 -> 0 | H12: ='C3C'!H72 -> 0 | I12: 0 | K12: ='C3C'!K72 -> 0
A13: ='Org structure'!A9 -> Vote 8 - Public Safety | C13: ='C3C'!C83 -> 680 | D13: ='C3C'!D83 -> 705 | E13: ='C3C'!E83 -> 705 | F13: ='C3C'!F83 -> 0 | G13: ='C3C'!G83 -> 800 | H13: ='C3C'!H83 -> 352.5 | I13: 447.5 | J13: 1.269503546 | K13: ='C3C'!K83 -> 705
A14: ='Org structure'!A10 -> Vote 9 - Sport and Recreation | C14: ='C3C'!C94 -> 37926 | D14: ='C3C'!D94 -> 17400 | E14: ='C3C'!E94 -> 17400 | F14: ='C3C'!F94 -> 393 | G14: ='C3C'!G94 -> 1502 | H14: ='C3C'!H94 -> 8699.94 | I14: -7197.94 | J14: -0.8273551312 | K14: ='C3C'!K94 -> 17400
A15: ='Org structure'!A11 -> Vote 10 - Environmental Protection | C15: ='C3C'!C105 -> 0 | D15: ='C3C'!D105 -> 0 | E15: ='C3C'!E105 -> 0 | F15: ='C3C'!F105 -> 0 | G15: ='C3C'!G105 -> 0 | H15: ='C3C'!H105 -> 0 | I15: 0 | K15: ='C3C'!K105 -> 0
A16: ='Org structure'!A12 -> Vote 11 - Solid Waste Management | C16: ='C3C'!C116 -> 6438267 | D16: ='C3C'!D116 -> 4147357 | E16: ='C3C'!E116 -> 4147357 | F16: ='C3C'!F116 -> 328148.03 | G16: ='C3C'!G116 -> 1993288.31 | H16: ='C3C'!H116 -> 2073678.48 | I16: -80390.17 | J16: -0.03876694038 | K16: ='C3C'!K116 -> 4147357
A17: ='Org structure'!A13 -> Vote 12 - Waste Water Management | C17: ='C3C'!C127 -> 5743947 | D17: ='C3C'!D127 -> 2975575 | E17: ='C3C'!E127 -> 2975575 | F17: ='C3C'!F127 -> 248779.8 | G17: ='C3C'!G127 -> 1604564.22 | H17: ='C3C'!H127 -> 1488287.46 | I17: 116276.76 | J17: 0.0781278907 | K17: ='C3C'!K127 -> 2975575
A18: ='Org structure'!A14 -> Vote 13 - Road Transport | C18: ='C3C'!C138 -> 4760 | D18: ='C3C'!D138 -> 2000 | E18: ='C3C'!E138 -> 2000 | F18: ='C3C'!F138 -> 180 | G18: ='C3C'!G138 -> 2210 | H18: ='C3C'!H138 -> 999.96 | I18: 1210.04 | J18: 1.210088404 | K18: ='C3C'!K138 -> 2000
A19: ='Org structure'!A15 -> Vote 14 - Water | C19: ='C3C'!C149 -> 7360464 | D19: ='C3C'!D149 -> 23997496 | E19: ='C3C'!E149 -> 23997496 | F19: ='C3C'!F149 -> 380244.63 | G19: ='C3C'!G149 -> 2359274.34 | H19: ='C3C'!H149 -> 13593823.98 | I19: -11234549.64 | J19: -0.826445131 | K19: ='C3C'!K149 -> 23997496
A20: ='Org structure'!A16 -> Vote 15 - Electricity | C20: ='C3C'!C160 -> 10798412 | D20: ='C3C'!D160 -> 10047442 | E20: ='C3C'!E160 -> 10047442 | F20: ='C3C'!F160 -> 744814.54 | G20: ='C3C'!G160 -> 4672203.65 | H20: ='C3C'!H160 -> 5023720.98 | I20: -351517.33 | J20: -0.06997150745 | K20: ='C3C'!K160 -> 10047442
A21: Total Revenue by Vote | B21: 2 | C21: =SUM(C6:C20) -> 65653870 | D21: =SUM(D6:D20) -> 89153629 | E21: 89153629 | F21: 2265144.47 | G21: 28041077.45 | H21: 46175563.14 | I21: -18134485.69 | J21: -0.392729064 | K21: =SUM(K6:K20) -> 89153629
A23: Expenditure by Vote | B23: 1
A24: ='Org structure'!A2 -> Vote 1 - Executive and Council | C24: ='C3C'!C174 -> 18728381 | D24: ='C3C'!D174 -> 11847084.34 | E24: ='C3C'!E174 -> 11847084.34 | F24: ='C3C'!F174 -> 829582.9 | G24: ='C3C'!G174 -> 3095153.97 | H24: ='C3C'!H174 -> 5923542 | I24: =G24-H24 -> -2828388.03 | J24: =IF(I24=0,"",I24/H24) -> -0.4774825653 | K24: ='C3C'!K174 -> 11847084.34
A25: ='Org structure'!A3 -> Vote 2 - Budget and Treasury | C25: ='C3C'!C185 -> 11767158 | D25: ='C3C'!D185 -> 10839446 | E25: ='C3C'!E185 -> 10839446 | F25: ='C3C'!F185 -> 1521945.3 | G25: ='C3C'!G185 -> 4524814.6 | H25: ='C3C'!H185 -> 5419722.9 | I25: -894908.3 | J25: -0.1651206743 | K25: ='C3C'!K185 -> 10839446
A26: ='Org structure'!A4 -> Vote 3 - Corporate Services | C26: ='C3C'!C196 -> 2513664 | D26: ='C3C'!D196 -> 3107374 | E26: ='C3C'!E196 -> 3107374 | F26: ='C3C'!F196 -> -41830.7 | G26: ='C3C'!G196 -> 1215860.88 | H26: ='C3C'!H196 -> 1553686.98 | I26: -337826.1 | J26: -0.2174351104 | K26: ='C3C'!K196 -> 3107374
A27: ='Org structure'!A5 -> Vote 4 - Planning and Development | C27: ='C3C'!C207 -> 0 | D27: ='C3C'!D207 -> 0 | E27: ='C3C'!E207 -> 0 | F27: ='C3C'!F207 -> 0 | G27: ='C3C'!G207 -> 0 | H27: ='C3C'!H207 -> 0 | I27: 0 | K27: ='C3C'!K207 -> 0
A28: ='Org structure'!A6 -> Vote 5 - Health | C28: ='C3C'!C218 -> 47125 | D28: ='C3C'!D218 -> 22075 | E28: ='C3C'!E218 -> 22075 | F28: ='C3C'!F218 -> 293.74 | G28: ='C3C'!G218 -> 4669 | H28: ='C3C'!H218 -> 11037.48 | I28: -6368.48 | J28: -0.576986776 | K28: ='C3C'!K218 -> 22075
A29: ='Org structure'!A7 -> Vote 6 - Community and Social Services | C29: ='C3C'!C229 -> 2044096 | D29: ='C3C'!D229 -> 2266030 | E29: ='C3C'!E229 -> 2266030 | F29: ='C3C'!F229 -> 20954.33 | G29: ='C3C'!G229 -> 144253.61 | H29: ='C3C'!H229 -> 1133014.98 | I29: -988761.37 | J29: -0.8726816392 | K29: ='C3C'!K229 -> 2266030
A30: ='Org structure'!A8 -> Vote 7 - Housing | C30: ='C3C'!C240 -> 0 | D30: ='C3C'!D240 -> 0 | E30: ='C3C'!E240 -> 0 | F30: ='C3C'!F240 -> 0 | G30: ='C3C'!G240 -> 0 | H30: ='C3C'!H240 -> 0 | I30: 0 | J30: =IF(I30=0,"",I30/H30) ->  | K30: ='C3C'!K240 -> 0
A31: ='Org structure'!A9 -> Vote 8 - Public Safety | C31: ='C3C'!C251 -> 20690 | D31: ='C3C'!D251 -> 52032 | E31: ='C3C'!E251 -> 52032 | F31: ='C3C'!F251 -> -36998.1 | G31: ='C3C'!G251 -> 23977 | H31: ='C3C'!H251 -> 26015.94 | I31: -2038.94 | J31: -0.07837272072 | K31: ='C3C'!K251 -> 52032
A32: ='Org structure'!A10 -> Vote 9 - Sport and Recreation | C32: ='C3C'!C262 -> 756938 | D32: ='C3C'!D262 -> 741476 | E32: ='C3C'!E262 -> 741476 | F32: ='C3C'!F262 -> 96063.63 | G32: ='C3C'!G262 -> 337471.14 | H32: ='C3C'!H262 -> 370737.9 | I32: -33266.76 | J32: -0.08973120903 | K32: ='C3C'!K262 -> 741476
A33: ='Org structure'!A11 -> Vote 10 - Environmental Protection | C33: ='C3C'!C273 -> 0 | D33: ='C3C'!D273 -> 0 | E33: ='C3C'!E273 -> 0 | F33: ='C3C'!F273 -> 0 | G33: ='C3C'!G273 -> 0 | H33: ='C3C'!H273 -> 0 | I33: 0 | J33: =IF(I33=0,"",I33/H33) ->  | K33: ='C3C'!K273 -> 0
A34: ='Org structure'!A12 -> Vote 11 - Solid Waste Management | C34: ='C3C'!C284 -> 3379146 | D34: ='C3C'!D284 -> 3343216 | E34: ='C3C'!E284 -> 3343216 | F34: ='C3C'!F284 -> 124913.41 | G34: ='C3C'!G284 -> 353802.49 | H34: ='C3C'!H284 -> 1071607.98 | I34: -717805.49 | J34: =IF(I34=0,"",I34/H34) -> -0.6698396274 | K34: ='C3C'!K284 -> 3343216
A35: ='Org structure'!A13 -> Vote 12 - Waste Water Management | C35: ='C3C'!C295 -> 3601134 | D35: ='C3C'!D295 -> 4131075 | E35: ='C3C'!E295 -> 4131075 | F35: ='C3C'!F295 -> 372715.25 | G35: ='C3C'!G295 -> 2044434.27 | H35: ='C3C'!H295 -> 2065537.5 | I35: -21103.23 | J35: =IF(I35=0,"",I35/H35) -> -0.0102168225 | K35: ='C3C'!K295 -> 4131075
A36: ='Org structure'!A14 -> Vote 13 - Road Transport | C36: ='C3C'!C306 -> 3959658 | D36: ='C3C'!D306 -> 5755273 | E36: ='C3C'!E306 -> 5755273 | F36: ='C3C'!F306 -> 405754.87 | G36: ='C3C'!G306 -> 1852478.5 | H36: ='C3C'!H306 -> 7308216.48 | I36: -5455737.98 | J36: =IF(I36=0,"",I36/H36) -> -0.7465211239 | K36: ='C3C'!K306 -> 5755273
A37: ='Org structure'!A15 -> Vote 14 - Water | C37: ='C3C'!C317 -> 1200289 | D37: ='C3C'!D317 -> 2447784 | E37: ='C3C'!E317 -> 2447784 | F37: ='C3C'!F317 -> 177273.34 | G37: ='C3C'!G317 -> 673564.36 | H37: ='C3C'!H317 -> 1823891.94 | I37: -1150327.58 | J37: =IF(I37=0,"",I37/H37) -> -0.6306994152 | K37: ='C3C'!K317 -> 2447784
A38: ='Org structure'!A16 -> Vote 15 - Electricity | C38: ='C3C'!C328 -> 11868988 | D38: ='C3C'!D328 -> 12070337 | E38: ='C3C'!E328 -> 12070337 | F38: ='C3C'!F328 -> 821453.09 | G38: ='C3C'!G328 -> 5593364.84 | H38: ='C3C'!H328 -> 6035168.4 | I38: -441803.56 | J38: -0.0732048438 | K38: ='C3C'!K328 -> 12070337
A39: Total Expenditure by Vote | B39: 2 | C39: =SUM(C24:C38) -> 59887267 | D39: =SUM(D24:D38) -> 56623202.34 | E39: 56623202.34 | F39: 4292121.06 | G39: 19863844.66 | H39: 32742180.48 | I39: -12878335.82 | J39: =IF(I39=0,"",I39/H39) -> -0.3933255401 | K39: =SUM(K24:K38) -> 56623202.34
A40: =result -> Surplus/ (Deficit) for the year | B40: 2 | C40: =C21-C39 -> 5766603 | D40: 32530426.66 | E40: 32530426.66 | F40: -2026976.59 | G40: 8177232.79 | H40: 13433382.66 | I40: =I21-I39 -> -5256149.87 | J40: =IF(I40=0,"",I40/H40) -> -0.3912752285 | K40: =K21-K39 -> 32530426.66
A41: =head27a -> References
A42: 1. Insert 'Vote'; e.g. Department, if different to standard classification structure
A43: 2. Must reconcile to Monthly Budget Statement - Financial Performance Statement (standard classification)

Sheet C3C
A1: =muni& " - "&S71C& " - "&"A"& " - "&date -> NC074 Kareeberg - Table C3 Monthly Budget Statement - Financial Performance (revenue and expenditure by municipal vote) - A - Mid-Year Assessment
A2: =Vdesc -> Vote Description | B2: =head27 -> Ref | C2: =Head1 -> 2016/17 | D2: =Head2 -> Budget Year 2017/18 | L2: =Head4 -> 
A3: R thousand | C3: =Head5 -> Audited Outcome | D3: =Head6 -> Original Budget | E3: =Head7 -> Adjusted Budget | F3: =Head38 -> Monthly actual | G3: =Head39 -> YearTD actual | H3: =Head40 -> YearTD budget | I3: =Head41 -> YTD variance | J3: =Head41 -> YTD variance | K3: =Head8 -> Full Year Forecast | L3: =Head12 -> Forecast 2010/11 | M3: =Head13 -> Forecast 2011/12 | N3: =Head14 -> Forecast 2012/13 | O3: =Head15 -> Forecast 2013/14 | P3: =Head16 -> Forecast 2014/15 | Q3: =Head17 -> Forecast 2015/16 | R3: =Head18 -> Forecast 2016/17 | S3: =Head19 -> Forecast 2017/18 | T3: =Head20 -> Forecast 2018/19 | U3: =Head21 -> Forecast 2019/20 | V3: =Head22 -> Forecast 2020/21 | W3: =Head23 -> Forecast 2021/22
J4: %
A5: Revenue by Vote | B5: 1 | J5: =IF(I5=0,"",I5/H5) -> 
A6: ='Org structure'!A2 -> Vote 1 - Executive and Council | C6: =C7 -> 19112656 | D6: =D7 -> 33751464 | E6: 33751464 | F6: =F7 -> 334052.96 | G6: =G7 -> 11518004.35 | H6: =H7 -> 16875499.98 | K6: 33751464
A7: ='Org structure'!E3 -> 1,1 - Executive and Council | C7: 19112656 | D7: 33751464 | E7: 33751464 | F7: 334052.96 | G7: =8499372.35+252000+756000+852000+824632+334000 -> 11518004.35 | H7: =2812583.33*6 -> 16875499.98 | I7: =G7-H7 -> -5357495.63 | J7: -0.3174718163 | K7: 33751464
A8: ='Org structure'!E4 -> 0
A9: ='Org structure'!E5 -> 0
A10: ='Org structure'!E6 -> 0
A11: ='Org structure'!E7 -> 0
A12: ='Org structure'!E8 -> 0
A13: ='Org structure'!E9 -> 0
A14: ='Org structure'!E10 -> 0
A15: ='Org structure'!E11 -> 0
A16: ='Org structure'!E12 -> 0
A17: ='Org structure'!A3 -> Vote 2 - Budget and Treasury | C17: =C18+C19+C20+C21+C22+C23 -> 16139829 | D17: =D18+D19+D20+D21+D22+D23+D24 -> 12785540 | E17: 12785540 | F17: =F18+F19+F20+F21+F22+F23+F24 -> 227591.51 | G17: =G18+G19+G20+G21+G22+G23+G24 -> 5881183.58 | H17: =H18+H19+H20+H21+H22+H23+H24 -> 6395439.9 | I17: -514256.32 | J17: -0.08040984327 | K17: 12785540
A18: ='Org structure'!E14 -> 2,1 - Official Housing | C18: 6000 | D18: 6000 | E18: 6000 | F18: 700 | G18: =1400+700+1000+700+700+700 -> 5200 | H18: =1000*6 -> 6000 | K18: 6000
A19: ='Org structure'!E15 -> 2,2 - Rates | C19: 12320616 | D19: 5006305 | E19: 5006305 | G19: 5059843.54 | H19: =417166.66*6 -> 2502999.96 | K19: 5006305
A20: ='Org structure'!E16 -> 2,3 - Commonage | C20: 246807 | D20: 270355 | E20: 270355 | F20: 315 | G20: =112173.98+1100+1102+1202+315+315 -> 116207.98 | H20: =22500*6 -> 135000 | K20: 270355
A21: ='Org structure'!E17 -> 2,4 - Municipal Buildings | C21: 81746 | D21: 84715 | E21: 84715 | F21: 1402 | G21: =1972+1992+2412+1972+1582+1402 -> 11332 | H21: =7059.58*6 -> 42357.48 | K21: 84715
A22: ='Org structure'!E18 -> 2,5 - Budget and Treasury Office | C22: 3484331 | D22: 7417865 | E22: 7417865 | F22: 225174.51 | G22: =37589.06+79000+139800+89212+117825+225174 -> 688600.06 | H22: =618155.41*6 -> 3708932.46 | K22: 7417865
A23: ='Org structure'!E19 -> 2,6 - Airport | C23: 329 | D23: 300 | E23: 300 | F23: 0 | G23: 0 | H23: =25*6 -> 150 | K23: 300
A24: ='Org structure'!E20 -> 2.7 - Abattoir | C24: 0 | D24: 0 | E24: 0 | F24: 0 | G24: 0 | K24: 0
A25: ='Org structure'!E21 -> 0
A26: ='Org structure'!E22 -> 0
A27: ='Org structure'!E23 -> 0
A28: ='Org structure'!A4 -> Vote 3 - Corporate Services | D28: 0 | E28: 0 | F28: 0 | G28: =G29 -> 0 | H28: =H29+H30+H31+H32 -> 0 | I28: 0
A29: ='Org structure'!E25 -> 3,1 - Corporate Services | D29: 0 | E29: 0 | F29: 0 | G29: 0 | I29: 0 | K29: 0
A30: ='Org structure'!E26 -> 0
A31: ='Org structure'!E27 -> 0
A32: ='Org structure'!E28 -> 0
A33: ='Org structure'!E29 -> 0
A34: ='Org structure'!E30 -> 0
A35: ='Org structure'!E31 -> 0
A36: ='Org structure'!E32 -> 0
A37: ='Org structure'!E33 -> 0
A38: ='Org structure'!E34 -> 0
A39: ='Org structure'!A5 -> Vote 4 - Planning and Development | D39: 0 | E39: 0 | F39: 0 | G39: =G40 -> 0 | H39: =H40 -> 0 | I39: 0
A40: ='Org structure'!E36 -> 4.1 - [Name of sub-vote] | D40: 0 | E40: 0 | F40: 0 | G40: 0 | I40: 0
A41: ='Org structure'!E37 -> 0
A42: ='Org structure'!E38 -> 0
A43: ='Org structure'!E39 -> 0
A44: ='Org structure'!E40 -> 0
A45: ='Org structure'!E41 -> 0
A46: ='Org structure'!E42 -> 0
A47: ='Org structure'!E43 -> 0
A48: ='Org structure'!E44 -> 0
A49: ='Org structure'!E45 -> 0
A50: ='Org structure'!A6 -> Vote 5 - Health | D50: 0 | E50: 0 | F50: 0 | G50: =G51+G52 -> 0 | H50: =H51+H52 -> 0
A51: ='Org structure'!E47 -> 5,1 - Health | D51: 0 | E51: 0 | F51: 0 | G51: 0
A52: ='Org structure'!E48 -> 5,2 - Clinics | D52: 0 | E52: 0 | F52: 0 | G52: 0
A53: ='Org structure'!E49 -> 0
A54: ='Org structure'!E50 -> 0
A55: ='Org structure'!E51 -> 0
A56: ='Org structure'!E52 -> 0
A57: ='Org structure'!E53 -> 0
A58: ='Org structure'!E54 -> 0
A59: ='Org structure'!E55 -> 0
A60: ='Org structure'!E56 -> 0
A61: ='Org structure'!A7 -> Vote 6 - Community and Social Services | C61: =C62+C63 -> 16929 | D61: =D62+D63+D64 -> 1428650 | E61: 1428650 | F61: =F62+F63+F64 -> 940 | G61: =G62+G63+G64 -> 8047 | H61: =H62+H63+H64 -> 715059.96 | I61: -707012.96 | J61: -0.9887463983 | K61: 1428650
A62: ='Org structure'!E58 -> 6,1 - Cemetry | C62: 15155 | D62: 0 | E62: 0 | F62: 900 | G62: =1180+920+1280+1795+780+900 -> 6855 | H62: =100*6 -> 600 | I62: 6255 | J62: 10.425 | K62: 0
A63: ='Org structure'!E59 -> 6,2 - Library | C63: 1774 | D63: 1422730 | E63: 1422730 | F63: 40 | G63: =120+368+123+407+134+40 -> 1192 | H63: =118583.33*6 -> 711499.98 | I63: -710307.98 | J63: -0.9983246662 | K63: 1422730
A64: ='Org structure'!E60 -> 6,3 - Museum | D64: 5920 | E64: 5920 | F64: 0 | G64: 0 | H64: =493.33*6 -> 2959.98 | I64: -2959.98 | J64: -1 | K64: 5920
A65: ='Org structure'!E61 -> 0
A66: ='Org structure'!E62 -> 0
A67: ='Org structure'!E63 -> 0
A68: ='Org structure'!E64 -> 0
A69: ='Org structure'!E65 -> 0 | J69: =IF(I69=0,"",I69/H69) -> 
A70: ='Org structure'!E66 -> 0
A71: ='Org structure'!E67 -> 0
A72: ='Org structure'!A8 -> Vote 7 - Housing | D72: 0 | E72: 0 | F72: 0 | G72: =G73 -> 0 | H72: =H73 -> 0 | I72: 0
A73: ='Org structure'!E69 -> 7.1 - [Name of sub-vote] | C73: 0 | D73: 0 | E73: 0 | G73: 0 | I73: =G73-H73 -> 0
A74: ='Org structure'!E70 -> 0
A75: ='Org structure'!E71 -> 0
A76: ='Org structure'!E72 -> 0
A77: ='Org structure'!E73 -> 0
A78: ='Org structure'!E74 -> 0
A79: ='Org structure'!E75 -> 0
A80: ='Org structure'!E76 -> 0
A81: ='Org structure'!E77 -> 0
A82: ='Org structure'!E78 -> 0
A83: ='Org structure'!A9 -> Vote 8 - Public Safety | C83: =C86 -> 680 | D83: =D86 -> 705 | E83: 705 | F83: =F84+F85+F86 -> 0 | G83: =G84+G85+G86 -> 800 | H83: =H84+H85+H86 -> 352.5 | I83: =G83-H83 -> 447.5 | J83: 1.269503546 | K83: 705
A84: ='Org structure'!E80 -> 8,1 - Fire Service | D84: 0 | E84: 0 | G84: 0 | H84: 0 | I84: 0
A85: ='Org structure'!E81 -> 8,2 - Civil Defence | D85: 0 | E85: 0 | G85: 0 | H85: 0 | I85: 0
A86: ='Org structure'!E82 -> 8,3 - Pound | C86: 680 | D86: 705 | E86: 705 | G86: =800 -> 800 | H86: =58.75*6 -> 352.5 | I86: 447.5 | J86: 1.269503546 | K86: 705
A87: ='Org structure'!E83 -> 0
A88: ='Org structure'!E84 -> 0
A89: ='Org structure'!E85 -> 0
A90: ='Org structure'!E86 -> 0
A91: ='Org structure'!E87 -> 0
A92: ='Org structure'!E88 -> 0
A93: ='Org structure'!E89 -> 0
A94: ='Org structure'!A10 -> Vote 9 - Sport and Recreation | C94: =C95+C96+C97+C98 -> 37926 | D94: =D95+D96+D97+D98 -> 17400 | E94: 17400 | F94: =F95+F96+F97+F98 -> 393 | G94: =G95+G96+G97+G98 -> 1502 | H94: =H95+H96+H97+H98 -> 8699.94 | I94: =G94-H94 -> -7197.94 | J94: -0.8273551312 | K94: 17400
A95: ='Org structure'!E91 -> 9,1 - Nature Reserve | C95: 31664 | D95: 5100 | E95: 5100 | G95: 0 | H95: =425*6 -> 2550 | I95: -2550 | J95: -1 | K95: 5100
A96: ='Org structure'!E92 -> 9,2 - Parks and Gardens | C96: 320 | D96: 200 | E96: 200 | G96: 0 | H96: =16.66*6 -> 99.96 | I96: -99.96 | J96: -1 | K96: 200
A97: ='Org structure'!E93 -> 9,3 - Swimming Pool | C97: 0 | D97: 9000 | E97: 9000 | G97: 0 | H97: =750*6 -> 4500 | I97: -4500 | J97: -1 | K97: 9000
A98: ='Org structure'!E94 -> 9,4 - Caravan Park | C98: 5942 | D98: 3100 | E98: 3100 | F98: 393 | G98: =100+600+69+340+393 -> 1502 | H98: =258.33*6 -> 1549.98 | I98: -47.98 | J98: -0.03095523813 | K98: 3100
A99: ='Org structure'!E95 -> 0
A100: ='Org structure'!E96 -> 0
A101: ='Org structure'!E97 -> 0
A102: ='Org structure'!E98 -> 0
A103: ='Org structure'!E99 -> 0
A104: ='Org structure'!E100 -> 0
A105: ='Org structure'!A11 -> Vote 10 - Environmental Protection | G105: =G106 -> 0 | H105: =H106 -> 0
A106: ='Org structure'!E102 -> 10.1 - [Name of sub-vote]
A107: ='Org structure'!E103 -> 0
A108: ='Org structure'!E104 -> 0
A109: ='Org structure'!E105 -> 0
A110: ='Org structure'!E106 -> 0
A111: ='Org structure'!E107 -> 0
A112: ='Org structure'!E108 -> 0
A113: ='Org structure'!E109 -> 0
A114: ='Org structure'!E110 -> 0
A115: ='Org structure'!E111 -> 0
A116: ='Org structure'!A12 -> Vote 11 - Solid Waste Management | C116: =C117 -> 6438267 | D116: =D117 -> 4147357 | E116: 4147357 | F116: =F117 -> 328148.03 | G116: =G117 -> 1993288.31 | H116: =H117 -> 2073678.48 | I116: =G116-H116 -> -80390.17 | J116: -0.03876694038 | K116: 4147357
A117: ='Org structure'!E113 -> 11,1 - Refuse removal | C117: 6438267 | D117: 4147357 | E117: 4147357 | F117: 328148.03 | G117: =339500.31+337000+331751+329000+328037+328000 -> 1993288.31 | H117: =345613.08*6 -> 2073678.48 | I117: -80390.17 | J117: -0.03876694038 | K117: 4147357
A118: ='Org structure'!E114 -> 0
A119: ='Org structure'!E115 -> 0
A120: ='Org structure'!E116 -> 0
A121: ='Org structure'!E117 -> 0
A122: ='Org structure'!E118 -> 0
A123: ='Org structure'!E119 -> 0
A124: ='Org structure'!E120 -> 0
A125: ='Org structure'!E121 -> 0
A126: ='Org structure'!E122 -> 0
A127: ='Org structure'!A13 -> Vote 12 - Waste Water Management | C127: =C128 -> 5743947 | D127: =D128 -> 2975575 | E127: 2975575 | F127: =F128 -> 248779.8 | G127: =G128 -> 1604564.22 | H127: =H128 -> 1488287.46 | I127: =G127-H127 -> 116276.76 | J127: 0.0781278907 | K127: 2975575
A128: ='Org structure'!E124 -> 12,1 - Sewerage | C128: 5743947 | D128: 2975575 | E128: 2975575 | F128: 248779.8 | G128: =264202.22+279000+285210+260000+267152+249000 -> 1604564.22 | H128: =248047.91*6 -> 1488287.46 | I128: 116276.76 | J128: 0.0781278907 | K128: 2975575
A129: ='Org structure'!E125 -> 0
A130: ='Org structure'!E126 -> 0
A131: ='Org structure'!E127 -> 0
A132: ='Org structure'!E128 -> 0
A133: ='Org structure'!E129 -> 0 | J133: =IF(I133=0,"",I133/H133) -> 
A134: ='Org structure'!E130 -> 0
A135: ='Org structure'!E131 -> 0
A136: ='Org structure'!E132 -> 0
A137: ='Org structure'!E133 -> 0
A138: ='Org structure'!A14 -> Vote 13 - Road Transport | C138: =C139+C140+C141+C142 -> 4760 | D138: =D140+D141+D142 -> 2000 | E138: 2000 | F138: =F139+F140+F141+F142 -> 180 | G138: =G139+G140+G141+G142 -> 2210 | H138: =H139+H140+H141+H142 -> 999.96 | I138: =G138-H138 -> 1210.04 | J138: 1.210088404 | K138: 2000
A139: ='Org structure'!E135 -> 13,1 - Main Roads | C139: 0 | G139: 0 | H139: 0 | I139: 0
A140: ='Org structure'!E136 -> 13,2 - Public Works | C140: 500 | D140: 100 | E140: 100 | G140: 50 | H140: =8.33*6 -> 49.98 | I140: 0.02 | J140: 0.000400160064 | K140: 100
A141: ='Org structure'!E137 -> 13,3 - Streets and Pavements | C141: 0 | D141: 400 | E141: 400 | G141: 0 | H141: =33.33*6 -> 199.98 | I141: -199.98 | J141: -1 | K141: 400
A142: ='Org structure'!E138 -> 13,4 - Traffic and licencing | C142: 4260 | D142: 1500 | E142: 1500 | F142: 180 | G142: =300+360+420+540+360+180 -> 2160 | H142: =125*6 -> 750 | I142: 1410 | J142: 1.88 | K142: 1500
A143: ='Org structure'!E139 -> 0
A144: ='Org structure'!E140 -> 0
A145: ='Org structure'!E141 -> 0
A146: ='Org structure'!E142 -> 0
A147: ='Org structure'!E143 -> 0
A148: ='Org structure'!E144 -> 0
A149: ='Org structure'!A15 -> Vote 14 - Water | C149: =C150+C151 -> 7360464 | D149: =D150 -> 23997496 | E149: 23997496 | F149: =F150+F151 -> 380244.63 | G149: =G150+G151 -> 2359274.34 | H149: =H150+H151 -> 13593823.98 | I149: =G149-H149 -> -11234549.64 | J149: -0.826445131 | K149: 23997496
A150: ='Org structure'!E146 -> 14,1 - Water Distribution | C150: 0 | D150: 23997496 | E150: 23997496 | G150: =380198.34+384000 -> 764198.34 | H150: =1999791.33*6 -> 11998747.98 | I150: -11234549.64 | J150: -0.9363101599 | K150: 23997496
A151: ='Org structure'!E147 -> 14,2 - Water Storage | C151: 7360464 | F151: 380244.63 | G151: =411855+400000+403221+380000 -> 1595076 | H151: =411855+400000+403221+380000 -> 1595076 | I151: 0
A152: ='Org structure'!E148 -> 0
A153: ='Org structure'!E149 -> 0
A154: ='Org structure'!E150 -> 0
A155: ='Org structure'!E151 -> 0
A156: ='Org structure'!E152 -> 0
A157: ='Org structure'!E153 -> 0
A158: ='Org structure'!E154 -> 0
A159: ='Org structure'!E155 -> 0
A160: ='Org structure'!A16 -> Vote 15 - Electricity | C160: =C161+C162+C163 -> 10798412 | D160: =D161 -> 10047442 | E160: 10047442 | F160: =F161+F162+F163 -> 744814.54 | G160: =G161+G162+G163 -> 4672203.65 | H160: =H161+H162+H163 -> 5023720.98 | I160: =G160-H160 -> -351517.33 | J160: -0.06997150745 | K160: 10047442
A161: ='Org structure'!E157 -> 15,1 - Electricity Administration | C161: 10798412 | D161: 10047442 | E161: 10047442 | F161: 744814.54 | G161: =646142.65+872000+824058+738000+847003+745000 -> 4672203.65 | H161: =837286.83*6 -> 5023720.98 | I161: -351517.33 | J161: -0.06997150745 | K161: 10047442
A162: ='Org structure'!E158 -> 15,2 - Electricity Distribution | C162: 0 | D162: 0 | E162: 0 | G162: 0 | H162: 0 | I162: 0
A163: ='Org structure'!E159 -> 15,3 - Electricity Generation | C163: 0 | D163: 0 | E163: 0 | G163: 0 | H163: 0 | I163: 0
A164: ='Org structure'!E160 -> 0
A165: ='Org structure'!E161 -> 0
A166: ='Org structure'!E162 -> 0
A167: ='Org structure'!E163 -> 0
A168: ='Org structure'!E164 -> 0
A169: ='Org structure'!E165 -> 0
A170: ='Org structure'!E166 -> 0 | L170: =SUM(L78:L81) -> 0 | M170: 0 | N170: 0 | O170: 0 | P170: 0 | Q170: 0 | R170: 0 | S170: 0 | T170: 0 | U170: 0 | V170: 0 | W170: 0
A171: Total Revenue by Vote | B171: 2 | C171: =C160+C149+C138+C127+C116+C105+C94+C83+C72+C61+C50+C39+C28+C17+C6 -> 65653870 | D171: =D160+D149+D138+D127+D116+D94+D83+D61+D17+D6 -> 89153629 | E171: 89153629 | F171: =F160+F149+F138+F127+F116+F105+F94+F83+F72+F61+F50+F39+F28+F17+F6 -> 2265144.47 | G171: =G6+G17+G28+G39+G50+G61+G72+G83+G94+G116+G127+G138+G149+G160 -> 28041077.45 | H171: =H160+H149+H138+H127+H116+H105+H94+H83+H72+H61+H50+H39+H28+H17+H6 -> 46175563.14 | I171: =G171-H171 -> -18134485.69 | J171: -0.392729064 | K171: 89153629
A173: Expenditure by Vote | B173: 1
A174: ='Org structure'!A2 -> Vote 1 - Executive and Council | C174: =C175 -> 18728381 | D174: =D175 -> 11847084.34 | E174: 11847084.34 | F174: =F175 -> 829582.9 | G174: 3095153.97 | H174: =H175 -> 5923542 | I174: =G174-H174 -> -2828388.03 | J174: -0.4774825653 | K174: 11847084.34
A175: ='Org structure'!E3 -> 1,1 - Executive and Council | C175: 18728381 | D175: 11847084.34 | E175: 11847084.34 | F175: 829582.9 | G175: =3095153.97+733000+1437950+2860000+984313+830000 -> 9940416.97 | H175: =987257*6 -> 5923542 | I175: 4016874.97 | J175: 0.6781204506 | K175: 11847084.34
A176: ='Org structure'!E4 -> 0 | I176: 0
A177: ='Org structure'!E5 -> 0
A178: ='Org structure'!E6 -> 0
A179: ='Org structure'!E7 -> 0
A180: ='Org structure'!E8 -> 0
A181: ='Org structure'!E9 -> 0
A182: ='Org structure'!E10 -> 0
A183: ='Org structure'!E11 -> 0
A184: ='Org structure'!E12 -> 0
A185: ='Org structure'!A3 -> Vote 2 - Budget and Treasury | C185: =C186+C188+C189+C190+C191+C192 -> 11767158 | D185: =D186+D187+D188+D189+D190+D191+D192 -> 10839446 | E185: 10839446 | F185: =F186+F187+F188+F189+F190+F191+F192 -> 1521945.3 | G185: =G186+G187+G188+G189+G190+G191+G192 -> 4524814.6 | H185: =H186+H187+H188+H189+H190+H191+H192 -> 5419722.9 | I185: =G185-H185 -> -894908.3 | J185: -0.1651206743 | K185: 10839446
A186: ='Org structure'!E14 -> 2,1 - Official Housing | C186: 450 | D186: 4055 | E186: 4055 | G186: 205 | H186: =337.91*6 -> 2027.46 | I186: -1822.46 | J186: -0.8988882641 | K186: 4055
A187: ='Org structure'!E15 -> 2,2 - Rates | G187: 0 | H187: 0 | I187: 0
A188: ='Org structure'!E16 -> 2,3 - Commonage | C188: 68218 | D188: 33937 | E188: 33937 | G188: =1447.37+432+977 -> 2856.37 | H188: =2828.08*6 -> 16968.48 | I188: -14112.11 | J188: -0.8316661245 | K188: 33937
A189: ='Org structure'!E17 -> 2,4 - Municipal Buildings | C189: 293136 | D189: 51448 | E189: 51448 | F189: 5167.49 | G189: =3414.95+4262+2384+3948+851+5167 -> 20026.95 | H189: =4287.33*6 -> 25723.98 | I189: -5697.03 | J189: -0.2214676734 | K189: 51448
A190: ='Org structure'!E18 -> 2,5 - Budget and Treasury Office | C190: 11345715 | D190: 10724410 | E190: 10724410 | F190: 1515747.81 | G190: =275787.4+394000+492506+895000+909678+1516000 -> 4482971.4 | H190: =893700.83*6 -> 5362204.98 | I190: -879233.58 | J190: -0.1639686628 | K190: 10724410
A191: ='Org structure'!E19 -> 2,6 - Airport | C191: 59613 | D191: 25056 | E191: 25056 | F191: 1030 | G191: =12865.88+4819+1030 -> 18714.88 | H191: =2088*6 -> 12528 | I191: 6186.88 | J191: 0.493844189 | K191: 25056
A192: ='Org structure'!E20 -> 2.7 - Abattoir | C192: 26 | D192: 540 | E192: 540 | G192: 40 | H192: =45*6 -> 270 | I192: -230 | J192: -0.8518518519 | K192: 540
A193: ='Org structure'!E21 -> 0
A194: ='Org structure'!E22 -> 0
A195: ='Org structure'!E23 -> 0
A196: ='Org structure'!A4 -> Vote 3 - Corporate Services | C196: =C197 -> 2513664 | D196: =D197 -> 3107374 | E196: 3107374 | F196: =F197 -> -41830.7 | G196: =G197 -> 1215860.88 | H196: =H197 -> 1553686.98 | I196: =G196-H196 -> -337826.1 | J196: -0.2174351104 | K196: 3107374
A197: ='Org structure'!E25 -> 3,1 - Corporate Services | C197: 2513664 | D197: 3107374 | E197: 3107374 | F197: -41830.7 | G197: =194917.88+320000+288245+229000+225698-42000 -> 1215860.88 | H197: =258947.83*6 -> 1553686.98 | I197: -337826.1 | J197: =IF(I197=0,"",I197/H197) -> -0.2174351104 | K197: 3107374
A198: ='Org structure'!E26 -> 0
A199: ='Org structure'!E27 -> 0
A200: ='Org structure'!E28 -> 0
A201: ='Org structure'!E29 -> 0
... 146 more rows

Sheet C4-FinPerf RE
A1: =muni& " - "&S71B& " - "&date -> NC074 Kareeberg - Table C4 Monthly Budget Statement - Financial Performance (revenue and expenditure) - Mid-Year Assessment
A2: =desc -> Description | B2: =head27 -> Ref | C2: =Head1 -> 2016/17 | D2: =Head2 -> Budget Year 2017/18
C3: =Head5 -> Audited Outcome | D3: =Head6 -> Original Budget | E3: =Head7 -> Adjusted Budget | F3: =Head38 -> Monthly actual | G3: =Head39 -> YearTD actual | H3: =Head40 -> YearTD budget | I3: =Head41 -> YTD variance | J3: =Head41 -> YTD variance | K3: =Head8 -> Full Year Forecast
A4: R thousands | J4: %
A5: Revenue By Source
A6: Property rates | C6: 4690890 | D6: 5006305 | E6: 5006305 | G6: =5059843.54+0+0 -> 5059843.54 | H6: =417192.08*6 -> 2503152.48 | I6: =G6-H6 -> 2556691.06 | J6: =IF(I6=0,"",I6/H6) -> 1.021388461 | K6: 5006305
A7: Property rates - penalties & collection charges | D7: 199113 | E7: 199113 | F7: 20143.63 | G7: =12081.29+12000+10883+24000+21712 -> 80676.29 | H7: =16592.75*6 -> 99556.5 | I7: -18880.21 | J7: -0.1896431674 | K7: 199113
A8: Service charges - electricity revenue | C8: 9595910 | D8: 9046742 | E8: 9046742 | F8: 744814.54 | G8: =646142.65+872000+824058+738000+846992 -> 3927192.65 | H8: =753978.5*6 -> 4523871 | I8: -596678.35 | J8: -0.1318955271 | K8: 9046742
A9: Service charges - water revenue | C9: 4715158 | D9: 4997056 | E9: 4997056 | F9: 380244.63 | G9: =380198.34+384000+411855+400000+403288 -> 1979341.34 | H9: =416421.33*6 -> 2498527.98 | I9: -519186.64 | J9: -0.2077970085 | K9: 4997056
A10: Service charges - sanitation revenue | C10: 3035028 | D10: 2975575 | E10: 2975575 | F10: 248779.8 | G10: =264202.22+279000+285210+260000+267251 -> 1355663.22 | H10: =248047.91*6 -> 1488287.46 | I10: -132624.24 | J10: -0.08911197841 | K10: 2975575
A11: Service charges - refuse revenue | C11: 3819245 | D11: 4146577 | E11: 4146577 | F11: 327927.03 | G11: =339213.01+33700+331751+329000+327927 -> 1361591.01 | H11: =345548.08*6 -> 2073288.48 | I11: -711697.47 | J11: -0.3432698714 | K11: 4146577
A12: Service charges - other | I12: 0
A13: Rental of facilities and equipment | C13: 341974 | D13: 374970 | E13: 374970 | F13: 2937 | G13: =115365.98+5000+5334+5000+3327 -> 134026.98 | H13: =31247.5*6 -> 187485 | I13: -53458.02 | J13: -0.2851322506 | K13: 374970
A14: Interest earned - external investments | C14: 2573398 | D14: 1297000 | E14: 1297000 | F14: 330869.67 | G14: =250058.52+0+270124+720000+81916 -> 1322098.52 | H14: =108083.33*6 -> 648499.98 | I14: 673598.54 | J14: 1.038702484 | K14: 1297000
A15: Interest earned - outstanding debtors | C15: 1984 | D15: 3300 | E15: 3300 | F15: 103.29 | G15: =109.57+108+108+105+105 -> 535.57 | H15: =275*6 -> 1650 | I15: -1114.43 | J15: -0.6754121212 | K15: 3300
A16: Dividends received | C16: 0 | I16: 0
A17: Fines | C17: 14134 | D17: 12230 | E17: 12230 | F17: 3020 | G17: =500+1558+47+7414 -> 9519 | H17: =1019.16*6 -> 6114.96 | I17: 3404.04 | J17: 0.5566741238 | K17: 12230
A18: Licences and permits | C18: 18471 | D18: 7420 | E18: 7420 | F18: 1313 | G18: =1316+2212+2875+1109+2008 -> 9520 | H18: =618.33*6 -> 3709.98 | I18: 5810.02 | J18: 1.566051569 | K18: 7420
A19: Agency services | C19: 221835 | D19: 22000 | E19: 22000 | F19: 13486.55 | G19: =16643.57+20120+22169+21000+20115 -> 100047.57 | H19: =1833.33*6 -> 10999.98 | I19: 89047.59 | J19: 8.095250173 | K19: 22000
A20: Transfers recognised - operational | C20: 23057417 | D20: 50814000 | E20: 50814000 | G20: =8498000+0+485085+130000+735150 -> 9848235 | H20: =4234500*6 -> 25407000 | I20: -15558765 | J20: -0.6123810367 | K20: 50814000
A21: Other revenue | C21: 2650944 | D21: 10251341 | E21: 10251341 | F21: 191505.33 | G21: =9778.28+45976+106148+45182+75050 -> 282134.28 | H21: =854278.41*6 -> 5125670.46 | I21: -4843536.18 | J21: -0.9449566096 | K21: 10251341
A22: Gains on disposal of PPE | I22: 0 | K22: 0
A23: Total Revenue (excluding capital transfers and contributions) | C23: =SUM(C6:C22) -> 54736388 | D23: 89153629 | E23: 89153629 | F23: 2265144.47 | G23: 25470424.97 | H23: 44577814.26 | I23: -19107389.29 | J23: -0.4286300171 | K23: =SUM(K6:K22) -> 89153629
A25: Expenditure By Type
A26: Employee related costs | C26: 16766577 | D26: 24347377 | E26: 24347377 | F26: 1684877 | G26: =1284382+1292000+1351079+1401342+1510010+1685000 -> 8523813 | H26: =2028948.08*6 -> 12173688.48 | I26: =G26-H26 -> -3649875.48 | J26: =IF(I26=0,"",I26/H26) -> -0.2998167306 | K26: 24347377
A27: Remuneration of councillors | C27: 2178625 | D27: 2490137 | E27: 2490137 | F27: 184074.9 | G27: =172060.85+182000+182057+182057+182070+184000 -> 1084244.85 | H27: =207511.41*6 -> 1245068.46 | I27: -160823.61 | J27: -0.1291684877 | K27: 2490137
A28: Debt impairment | C28: 1314378 | D28: 2393527 | E28: 2393527 | G28: 0 | H28: =199460.58*6 -> 1196763.48 | I28: -1196763.48 | J28: -1 | K28: 2393527
A29: Depreciation & asset impairment | C29: 3415819 | D29: 3681354 | E29: 3681354 | G29: 0 | H29: =306779.5*6 -> 1840677 | I29: -1840677 | J29: -1 | K29: 3681354
A30: Finance charges | C30: 2266958 | D30: 144742 | E30: 144742 | G30: 0 | H30: =12061.83*6 -> 72370.98 | I30: -72370.98 | J30: -1 | K30: 144742
A31: Bulk purchases | C31: 8981296 | D31: 11309210 | E31: 11309210 | F31: 755830.47 | G31: =970301.8+1040000+942703+730993+753071+75600 -> 4512668.8 | H31: =942434.16*6 -> 5654604.96 | I31: -1141936.16 | J31: -0.2019479996 | K31: 11309210
A32: Other materials | D32: 1474170.06 | E32: 1474170.06 | F32: 103475.4 | G32: =30411.42+34000+64232+705302+32177+103 -> 866225.42 | H32: =122847.5*6 -> 737085 | I32: 129140.42 | J32: 0.1752042437 | K32: 1474170.06
A33: Contracted services | C33: 1616075 | D33: 3742957.34 | E33: 3742957.34 | F33: 152093.69 | G33: =179756.71+242000+597184+318998+269540+152000 -> 1759478.71 | H33: =311913.11*6 -> 1871478.66 | I33: -111999.95 | J33: -0.05984569976 | K33: 3742957.34
A34: Transfers and grants | C34: 9193102 | D34: 5823854.05 | E34: 5823854.05 | F34: 88666.43 | G34: =1928932.49+54000+403866+2071342+96421+89000 -> 4643561.49 | H34: =485321.17*6 -> 2911927.02 | I34: 1731634.47 | J34: 0.5946695979 | K34: 5823854.05
A35: Other expenditure | C35: 10613704 | D35: 8982282.75 | E35: 8982282.75 | F35: 1627290.12 | G35: =868176.17+497000+494207+909451+968721+1627000 -> 5364555.17 | H35: =748523.56*6 -> 4491141.36 | I35: 873413.81 | J35: 0.1944747983 | K35: 8982282.75
A36: Loss on disposal of PPE | D36: 2000 | E36: 2000 | G36: =15554+0+0+0 -> 15554 | H36: =166.66*6 -> 999.96 | I36: 14554.04 | J36: 14.55462218 | K36: 2000
A37: Total Expenditure | C37: =SUM(C26:C36) -> 56346534 | D37: =SUM(D26:D36) -> 64391611.2 | E37: =SUM(E26:E36) -> 64391611.2 | F37: 4596308.01 | G37: 26770101.44 | H37: 32195805.36 | I37: -5425703.92 | J37: -0.1685220748 | K37: 64391611.2
A39: Surplus/(Deficit) | C39: =C23-C37 -> -1610146 | D39: 24762017.8 | E39: 24762017.8 | F39: -2331163.54 | G39: -1299676.47 | H39: 12382008.9 | I39: =I23-I37 -> -13681685.37 | J39: -1.104964912 | K39: =K23-K37 -> 24762017.8
A40: Transfers recognised - capital | C40: 10914278 | D40: 26095000 | E40: 26095000 | F40: 1357545.21 | G40: =49530+123000+336800+169714+80557+1358000 -> 2117601 | H40: =2174583.33*6 -> 13047499.98 | I40: =G40-H40 -> -10929898.98 | J40: -0.8377006321 | K40: 26095000
A41: Contributions recognised - capital | D41: 0 | E41: 0 | G41: 0 | I41: =G41-H41 -> 0 | K41: 0
A42: Contributed assets | D42: 0 | E42: 0 | G42: 0 | I42: =G42-H42 -> 0 | K42: 0
A43: Surplus/(Deficit) after capital transfers & contributions | C43: =C39+SUM(C40:C42) -> 9304132 | D43: 50857017.8 | E43: 50857017.8 | F43: -973618.33 | G43: 817924.53 | H43: 25429508.88 | K43: =K39+SUM(K40:K42) -> 50857017.8
A44: Taxation | I44: =G44-H44 -> 0 | J44: =IF(I44=0,"",I44/H44) -> 
A45: Surplus/(Deficit) after taxation | C45: =C43-C44 -> 9304132 | D45: 50857017.8 | E45: 50857017.8 | F45: -973618.33 | G45: 817924.53 | H45: 25429508.88 | K45: =K43-K44 -> 50857017.8
A46: Attributable to minorities
A47: Surplus/(Deficit) attributable to municipality | C47: =SUM(C45:C46) -> 9304132 | D47: 50857017.8 | E47: 50857017.8 | F47: -973618.33 | G47: 817924.53 | H47: 25429508.88 | K47: =SUM(K45:K46) -> 50857017.8
A48: Share of surplus/ (deficit) of associate
A49: Surplus/ (Deficit) for the year | C49: =C47+C48 -> 9304132 | D49: 50857017.8 | E49: 50857017.8 | F49: -973618.33 | G49: 817924.53 | H49: 25429508.88 | K49: =K47+K48 -> 50857017.8
A50: =head27a -> References
A51: 1. Material variances to be explained on Table SC1
A54: =A23&" including capital transfers/contributions etc" -> Total Revenue (excluding capital transfers and contributions) including capital transfers/contributions etc | C54: =C23+SUM(C40:C42) -> 65650666 | D54: 115248629 | E54: 115248629 | F54: 3622689.68 | G54: 27588025.97 | H54: 57625314.24 | K54: =K23+SUM(K40:K42) -> 115248629

Sheet C5-Capex
A1: =muni& " - "&S71D& " - "&date -> NC074 Kareeberg - Table C5 Monthly Budget Statement - Capital Expenditure (municipal vote, standard classification and funding) - Mid-Year Assessment
A2: =Vdesc -> Vote Description | B2: =head27 -> Ref | C2: =Head1 -> 2016/17 | D2: =Head2 -> Budget Year 2017/18
C3: =Head5 -> Audited Outcome | D3: =Head6 -> Original Budget | E3: =Head7 -> Adjusted Budget | F3: =Head38 -> Monthly actual | G3: =Head39 -> YearTD actual | H3: =Head40 -> YearTD budget | I3: =Head41 -> YTD variance | J3: =Head41 -> YTD variance | K3: =Head8 -> Full Year Forecast
A4: R thousands | B4: 1 | J4: %
A5: Multi-Year expenditure appropriation | B5: 2
A6: ='Org structure'!A2 -> Vote 1 - Executive and Council | C6: ='C5C'!C7 -> 0 | D6: ='C5C'!D7 -> 0 | E6: ='C5C'!E7 -> 0 | F6: ='C5C'!F7 -> 0 | G6: ='C5C'!G7 -> 0 | H6: ='C5C'!H7 -> 0 | I6: =G6-H6 -> 0 | J6: =IF(I6=0,"",I6/H6) ->  | K6: ='C5C'!K7 -> 0
A7: ='Org structure'!A3 -> Vote 2 - Budget and Treasury | C7: ='C5C'!C18 -> 0 | D7: ='C5C'!D18 -> 0 | E7: ='C5C'!E18 -> 0 | F7: ='C5C'!F18 -> 0 | G7: ='C5C'!G18 -> 0 | H7: ='C5C'!H18 -> 0 | I7: =G7-H7 -> 0 | J7: =IF(I7=0,"",I7/H7) ->  | K7: ='C5C'!K18 -> 0
A8: ='Org structure'!A4 -> Vote 3 - Corporate Services | C8: ='C5C'!C29 -> 0 | D8: ='C5C'!D29 -> 0 | E8: ='C5C'!E29 -> 0 | F8: ='C5C'!F29 -> 0 | G8: ='C5C'!G29 -> 0 | H8: ='C5C'!H29 -> 0 | I8: =G8-H8 -> 0 | J8: =IF(I8=0,"",I8/H8) ->  | K8: ='C5C'!K29 -> 0
A9: ='Org structure'!A5 -> Vote 4 - Planning and Development | C9: ='C5C'!C40 -> 0 | D9: ='C5C'!D40 -> 0 | E9: ='C5C'!E40 -> 0 | F9: ='C5C'!F40 -> 0 | G9: ='C5C'!G40 -> 0 | H9: ='C5C'!H40 -> 0 | I9: 0 | K9: ='C5C'!K40 -> 0
A10: ='Org structure'!A6 -> Vote 5 - Health | C10: ='C5C'!C51 -> 0 | D10: ='C5C'!D51 -> 0 | E10: ='C5C'!E51 -> 0 | F10: ='C5C'!F51 -> 0 | G10: ='C5C'!G51 -> 0 | H10: ='C5C'!H51 -> 0 | I10: 0 | K10: ='C5C'!K51 -> 0
A11: ='Org structure'!A7 -> Vote 6 - Community and Social Services | C11: ='C5C'!C62 -> 0 | D11: ='C5C'!D62 -> 0 | E11: ='C5C'!E62 -> 0 | F11: ='C5C'!F62 -> 0 | G11: ='C5C'!G62 -> 0 | H11: ='C5C'!H62 -> 0 | I11: 0 | K11: ='C5C'!K62 -> 0
A12: ='Org structure'!A8 -> Vote 7 - Housing | C12: ='C5C'!C73 -> 0 | D12: ='C5C'!D73 -> 0 | E12: ='C5C'!E73 -> 0 | F12: ='C5C'!F73 -> 0 | G12: ='C5C'!G73 -> 0 | H12: ='C5C'!H73 -> 0 | I12: 0 | K12: ='C5C'!K73 -> 0
A13: ='Org structure'!A9 -> Vote 8 - Public Safety | C13: ='C5C'!C84 -> 0 | D13: ='C5C'!D84 -> 0 | E13: ='C5C'!E84 -> 0 | F13: ='C5C'!F84 -> 0 | G13: ='C5C'!G84 -> 0 | H13: ='C5C'!H84 -> 0 | I13: 0 | K13: ='C5C'!K84 -> 0
A14: ='Org structure'!A10 -> Vote 9 - Sport and Recreation | C14: ='C5C'!C95 -> 0 | D14: ='C5C'!D95 -> 0 | E14: ='C5C'!E95 -> 0 | F14: ='C5C'!F95 -> 0 | G14: ='C5C'!G95 -> 0 | H14: ='C5C'!H95 -> 0 | I14: 0 | K14: ='C5C'!K95 -> 0
A15: ='Org structure'!A11 -> Vote 10 - Environmental Protection | C15: ='C5C'!C106 -> 0 | D15: ='C5C'!D106 -> 0 | E15: ='C5C'!E106 -> 0 | F15: ='C5C'!F106 -> 0 | G15: ='C5C'!G106 -> 0 | H15: ='C5C'!H106 -> 0 | I15: 0 | K15: ='C5C'!K106 -> 0
A16: ='Org structure'!A12 -> Vote 11 - Solid Waste Management | C16: ='C5C'!C117 -> 0 | D16: ='C5C'!D117 -> 0 | E16: ='C5C'!E117 -> 0 | F16: ='C5C'!F117 -> 0 | G16: ='C5C'!G117 -> 0 | H16: ='C5C'!H117 -> 0 | I16: 0 | K16: ='C5C'!K117 -> 0
A17: ='Org structure'!A13 -> Vote 12 - Waste Water Management | C17: ='C5C'!C128 -> 0 | D17: ='C5C'!D128 -> 0 | E17: ='C5C'!E128 -> 0 | F17: ='C5C'!F128 -> 0 | G17: ='C5C'!G128 -> 0 | H17: ='C5C'!H128 -> 0 | I17: 0 | K17: ='C5C'!K128 -> 0
A18: ='Org structure'!A14 -> Vote 13 - Road Transport | C18: ='C5C'!C139 -> 0 | D18: ='C5C'!D139 -> 0 | E18: ='C5C'!E139 -> 0 | F18: ='C5C'!F139 -> 0 | G18: ='C5C'!G139 -> 0 | H18: ='C5C'!H139 -> 0 | I18: =G18-H18 -> 0 | J18: =IF(I18=0,"",I18/H18) ->  | K18: ='C5C'!K139 -> 0
A19: ='Org structure'!A15 -> Vote 14 - Water | C19: ='C5C'!C150 -> 2946000 | D19: ='C5C'!D150 -> 0 | E19: ='C5C'!E150 -> 0 | F19: ='C5C'!F150 -> 0 | G19: ='C5C'!G150 -> 0 | H19: ='C5C'!H150 -> 0 | I19: =G19-H19 -> 0 | J19: =IF(I19=0,"",I19/H19) ->  | K19: ='C5C'!K150 -> 0
A20: ='Org structure'!A16 -> Vote 15 - Electricity | C20: ='C5C'!C161 -> 0 | D20: ='C5C'!D161 -> 0 | E20: ='C5C'!E161 -> 0 | F20: ='C5C'!F161 -> 0 | G20: ='C5C'!G161 -> 0 | H20: ='C5C'!H161 -> 0 | I20: =G20-H20 -> 0 | J20: =IF(I20=0,"",I20/H20) ->  | K20: ='C5C'!K161 -> 0
A21: Total Capital Multi-year expenditure | B21: 4,7 | C21: =SUM(C6:C20) -> 2946000 | D21: =SUM(D6:D20) -> 0 | E21: 0 | F21: 0 | G21: 0 | H21: 0 | I21: 0 | J21: =IF(I21=0,"",I21/H21) ->  | K21: =SUM(K6:K20) -> 0
A23: Single Year expenditure appropriation | B23: 2
A24: ='Org structure'!A2 -> Vote 1 - Executive and Council | C24: ='C5C'!C176 -> 0 | D24: ='C5C'!D176 -> 8095000 | E24: ='C5C'!E176 -> 0 | F24: ='C5C'!F176 -> 1298961.94 | G24: ='C5C'!G176 -> 1441560.05 | H24: ='C5C'!H176 -> 4047500 | I24: ='C5C'!I176 -> -2605939.95 | J24: =IF(I24=0,"",I24/H24) -> -0.6438393947 | K24: ='C5C'!K176 -> 8095000
A25: ='Org structure'!A3 -> Vote 2 - Budget and Treasury | C25: ='C5C'!C187 -> 681000 | D25: ='C5C'!D187 -> 0 | E25: ='C5C'!E187 -> 0 | F25: ='C5C'!F187 -> 0 | G25: ='C5C'!G187 -> 0 | H25: ='C5C'!H187 -> 0 | I25: ='C5C'!I187 -> 0 | J25: =IF(I25=0,"",I25/H25) ->  | K25: ='C5C'!K187 -> 0
A26: ='Org structure'!A4 -> Vote 3 - Corporate Services | C26: ='C5C'!C198 -> 0 | D26: ='C5C'!D198 -> 0 | E26: ='C5C'!E198 -> 0 | F26: ='C5C'!F198 -> 0 | G26: ='C5C'!G198 -> 0 | H26: ='C5C'!H198 -> 0 | I26: ='C5C'!I198 -> 0 | K26: ='C5C'!K198 -> 0
A27: ='Org structure'!A5 -> Vote 4 - Planning and Development | C27: ='C5C'!C209 -> 0 | D27: ='C5C'!D209 -> 0 | E27: ='C5C'!E209 -> 0 | F27: ='C5C'!F209 -> 0 | G27: ='C5C'!G209 -> 0 | H27: ='C5C'!H209 -> 0 | I27: ='C5C'!I209 -> 0 | K27: ='C5C'!K209 -> 0
A28: ='Org structure'!A6 -> Vote 5 - Health | C28: ='C5C'!C220 -> 0 | D28: ='C5C'!D220 -> 0 | E28: ='C5C'!E220 -> 0 | F28: ='C5C'!F220 -> 0 | G28: ='C5C'!G220 -> 0 | H28: ='C5C'!H220 -> 0 | I28: ='C5C'!I220 -> 0 | K28: ='C5C'!K220 -> 0
A29: ='Org structure'!A7 -> Vote 6 - Community and Social Services | C29: ='C5C'!C231 -> 254000 | D29: ='C5C'!D231 -> 0 | E29: ='C5C'!E231 -> 0 | F29: ='C5C'!F231 -> 0 | G29: ='C5C'!G231 -> 0 | H29: ='C5C'!H231 -> 0 | I29: ='C5C'!I231 -> 0 | K29: ='C5C'!K231 -> 0
A30: ='Org structure'!A8 -> Vote 7 - Housing | C30: ='C5C'!C242 -> 0 | D30: ='C5C'!D242 -> 0 | E30: ='C5C'!E242 -> 0 | F30: ='C5C'!F242 -> 0 | G30: ='C5C'!G242 -> 0 | H30: ='C5C'!H242 -> 0 | I30: ='C5C'!I242 -> 0 | K30: ='C5C'!K242 -> 0
A31: ='Org structure'!A9 -> Vote 8 - Public Safety | C31: ='C5C'!C253 -> 0 | D31: ='C5C'!D253 -> 0 | E31: ='C5C'!E253 -> 0 | F31: ='C5C'!F253 -> 0 | G31: ='C5C'!G253 -> 0 | H31: ='C5C'!H253 -> 0 | I31: ='C5C'!I253 -> 0 | K31: ='C5C'!K253 -> 0
A32: ='Org structure'!A10 -> Vote 9 - Sport and Recreation | C32: ='C5C'!C264 -> 1042546 | D32: ='C5C'!D264 -> 0 | E32: ='C5C'!E264 -> 0 | F32: ='C5C'!F264 -> 0 | G32: ='C5C'!G264 -> 0 | H32: ='C5C'!H264 -> 0 | I32: ='C5C'!I264 -> 0 | K32: ='C5C'!K264 -> 0
A33: ='Org structure'!A11 -> Vote 10 - Environmental Protection | C33: ='C5C'!C275 -> 0 | D33: ='C5C'!D275 -> 0 | E33: ='C5C'!E275 -> 0 | F33: ='C5C'!F275 -> 0 | G33: ='C5C'!G275 -> 0 | H33: ='C5C'!H275 -> 0 | I33: ='C5C'!I275 -> 0 | K33: ='C5C'!K275 -> 0
A34: ='Org structure'!A12 -> Vote 11 - Solid Waste Management | C34: ='C5C'!C286 -> 0 | D34: ='C5C'!D286 -> 0 | E34: ='C5C'!E286 -> 0 | F34: ='C5C'!F286 -> 0 | G34: ='C5C'!G286 -> 0 | H34: ='C5C'!H286 -> 0 | I34: ='C5C'!I286 -> 0 | K34: ='C5C'!K286 -> 0
A35: ='Org structure'!A13 -> Vote 12 - Waste Water Management | C35: ='C5C'!C297 -> 2132000 | D35: ='C5C'!D297 -> 0 | E35: ='C5C'!E297 -> 0 | F35: ='C5C'!F297 -> 0 | G35: ='C5C'!G297 -> 0 | H35: ='C5C'!H297 -> 0 | I35: ='C5C'!I297 -> 0 | K35: ='C5C'!K297 -> 0
A36: ='Org structure'!A14 -> Vote 13 - Road Transport | C36: ='C5C'!C308 -> 0 | D36: ='C5C'!D308 -> 0 | E36: ='C5C'!E308 -> 0 | F36: ='C5C'!F308 -> 0 | G36: ='C5C'!G308 -> 0 | H36: ='C5C'!H308 -> 0 | I36: ='C5C'!I308 -> 0 | K36: ='C5C'!K308 -> 0
A37: ='Org structure'!A15 -> Vote 14 - Water | C37: ='C5C'!C319 -> 0 | D37: ='C5C'!D319 -> 34000000 | E37: ='C5C'!E319 -> 34000000 | F37: ='C5C'!F319 -> 51623.27 | G37: ='C5C'!G319 -> 592271 | H37: ='C5C'!H319 -> 16999999.98 | I37: ='C5C'!I319 -> -16407728.98 | J37: -0.9651605294 | K37: ='C5C'!K319 -> 34000000
A38: ='Org structure'!A16 -> Vote 15 - Electricity | C38: ='C5C'!C330 -> 886000 | D38: ='C5C'!D330 -> 1000000 | E38: ='C5C'!E330 -> 1000000 | F38: ='C5C'!F330 -> 6960 | G38: ='C5C'!G330 -> 108226 | H38: ='C5C'!H330 -> 499999.98 | I38: ='C5C'!I330 -> -391773.98 | J38: -0.7835479913 | K38: ='C5C'!K330 -> 1000000
A39: Total Capital single-year expenditure | B39: 4 | C39: =SUM(C24:C38) -> 4995546 | D39: 43095000 | E39: 35000000 | F39: 1357545.21 | G39: 2142057.05 | H39: 21547499.96 | I39: -19405442.91 | J39: -0.9005890682 | K39: =SUM(K24:K38) -> 43095000
A40: Total Capital Expenditure | C40: =C39+C21 -> 7941546 | D40: 43095000 | E40: 35000000 | F40: 1357545.21 | G40: 2142057.05 | H40: 21547499.96 | I40: -19405442.91 | J40: =IF(I40=0,"",I40/H40) -> -0.9005890682 | K40: =K39+K21 -> 43095000
A42: Capital Expenditure - Standard Classification
A43: ='C2-FinPerf SC'!A29 -> Governance and administration | C43: =SUM(C44:C46) -> 681000 | D43: 8095000 | E43: 8095000 | F43: 1298961.94 | G43: 1441560.05 | H43: 4047500 | I43: =G43-H43 -> -2605939.95 | J43: =IF(I43=0,"",I43/H43) -> -0.6438393947 | K43: =SUM(K44:K46) -> 8095000
A44: ='C2-FinPerf SC'!A30 -> Executive and council | D44: 8095000 | E44: 8095000 | F44: 1298961.94 | G44: =101357.05+41203+1299000 -> 1441560.05 | H44: =E44/12*6 -> 4047500 | I44: -2605939.95 | J44: =IF(I44=0,"",I44/H44) -> -0.6438393947 | K44: 8095000
A45: ='C2-FinPerf SC'!A31 -> Budget and treasury office | C45: 681000 | I45: 0
A46: ='C2-FinPerf SC'!A32 -> Corporate services | I46: 0
A47: ='C2-FinPerf SC'!A33 -> Community and public safety | C47: =SUM(C48:C52) -> 1297000 | D47: 0 | E47: 0 | F47: 0 | G47: 0 | H47: 0 | I47: 0 | K47: =SUM(K48:K52) -> 0
A48: ='C2-FinPerf SC'!A34 -> Community and social services | C48: 254000 | I48: 0
A49: ='C2-FinPerf SC'!A35 -> Sport and recreation | C49: 1043000 | I49: 0
A50: ='C2-FinPerf SC'!A36 -> Public safety | I50: 0
A51: ='C2-FinPerf SC'!A37 -> Housing | I51: 0
A52: ='C2-FinPerf SC'!A38 -> Health | I52: 0
A53: ='C2-FinPerf SC'!A39 -> Economic and environmental services | C53: =SUM(C54:C56) -> 3704000 | D53: 0 | E53: 0 | F53: 0 | G53: 0 | H53: 0 | I53: 0 | K53: =SUM(K54:K56) -> 0
A54: ='C2-FinPerf SC'!A40 -> Planning and development | I54: 0
A55: ='C2-FinPerf SC'!A41 -> Road transport | C55: 3704000 | I55: 0
A56: ='C2-FinPerf SC'!A42 -> Environmental protection | I56: 0
A57: ='C2-FinPerf SC'!A43 -> Trading services | C57: =SUM(C58:C61) -> 5964000 | D57: 35000000 | E57: 35000000 | F57: 58583.27 | G57: 700497 | H57: 17499999.96 | I57: -16799502.96 | J57: -0.9599715999 | K57: =SUM(K58:K61) -> 35000000
A58: ='C2-FinPerf SC'!A44 -> Electricity | C58: 886000 | D58: 1000000 | E58: 1000000 | F58: 6960 | G58: =61911+39355+6960 -> 108226 | H58: =83333.33*6 -> 499999.98 | I58: -391773.98 | J58: -0.7835479913 | K58: 1000000
A59: ='C2-FinPerf SC'!A45 -> Water | C59: 2946000 | D59: 34000000 | E59: 34000000 | F59: 51623.27 | G59: =515811+24460+52000 -> 592271 | H59: =2833333.33*6 -> 16999999.98 | I59: -16407728.98 | J59: -0.9651605294 | K59: 34000000
A60: ='C2-FinPerf SC'!A46 -> Waste water management | C60: 2132000 | I60: 0
A61: ='C2-FinPerf SC'!A47 -> Waste management | I61: 0
A62: ='C2-FinPerf SC'!A48 -> Other | I62: 0
A63: Total Capital Expenditure - Standard Classification | B63: 3 | C63: =C43+C47+C53+C57+C62 -> 11646000 | D63: =D43+D47+D53+D57+D62 -> 43095000 | E63: 43095000 | F63: 1357545.21 | G63: 2142057.05 | H63: 21547499.96 | I63: -19405442.91 | J63: -0.9005890682 | K63: =K43+K47+K53+K57+K62 -> 43095000
A65: Funded by:
A66: National Government | C66: 10914000 | D66: 43095000 | E66: 43095000 | F66: 1357545.21 | G66: 2142057.05 | H66: 21547499.96 | I66: =G66-H66 -> -19405442.91 | J66: =IF(I66=0,"",I66/H66) -> -0.9005890682 | K66: 26095000
A67: Provincial Government | I67: 0
A68: District Municipality | I68: 0
A69: Other transfers and grants | C69: 732000 | I69: 0
A70: Transfers recognised - capital | C70: =SUM(C66:C69) -> 11646000 | D70: 43095000 | E70: 43095000 | F70: 1357545.21 | G70: 2142057.05 | H70: 21547499.96 | I70: -19405442.91 | J70: -0.9005890682 | K70: =SUM(K66:K69) -> 26095000
A71: Public contributions & donations | B71: 5 | I71: 0
A72: Borrowing | B72: 6 | I72: 0
A73: Internally generated funds | I73: 0
A74: Total Capital Funding | C74: =SUM(C70:C73) -> 11646000 | D74: 43095000 | E74: 43095000 | F74: =SUM(F70:F73) -> 1357545.21 | G74: =SUM(G70:G73) -> 2142057.05 | H74: =SUM(H70:H73) -> 21547499.96 | I74: -19405442.91 | J74: -0.9005890682 | K74: 26095000
A75: =head27a -> References
A76: 1. Municipalities may choose to appropriate for capital expenditure for three years or for one year (if one year appropriation projected expenditure required for yr2 and yr3).
A77: 2. Include capital component of PPP unitary payment
A78: 3. Capital expenditure by standard classification must reconcile to the total of multi-year and single year appropriations
A79: 4. Include expenditure on investment property, intangible and biological assets
A80: 5. Must reconcile to Monthly Budget Statement Financial Performance (revenue and expenditure)
A81: 6. Include finance leases and PPP capital funding component of unitary payment - total borrowing/repayments to reconcile to changes in Table SA17
A86: check balance | C86: =C40-C74 -> -3704454 | D86: =D40-D74 -> 0 | E86: -8095000 | F86: 0 | G86: 0 | H86: 0 | K86: 17000000

Sheet C5C
A1: =muni& " - "&S71D& " - "&"A"& " - "&date -> NC074 Kareeberg - Table C5 Monthly Budget Statement - Capital Expenditure (municipal vote, standard classification and funding) - A - Mid-Year Assessment
A2: =Vdesc -> Vote Description | B2: =head27 -> Ref | C2: =Head1 -> 2016/17 | D2: =Head2 -> Budget Year 2017/18 | L2: =Head4 -> 
A3: R thousand | C3: =Head5 -> Audited Outcome | D3: =Head6 -> Original Budget | E3: =Head7 -> Adjusted Budget | F3: =Head38 -> Monthly actual | G3: =Head39 -> YearTD actual | H3: =Head40 -> YearTD budget | I3: =Head41 -> YTD variance | J3: =Head41 -> YTD variance | K3: =Head8 -> Full Year Forecast | L3: =Head12 -> Forecast 2010/11 | M3: =Head13 -> Forecast 2011/12 | N3: =Head14 -> Forecast 2012/13 | O3: =Head15 -> Forecast 2013/14 | P3: =Head16 -> Forecast 2014/15 | Q3: =Head17 -> Forecast 2015/16 | R3: =Head18 -> Forecast 2016/17 | S3: =Head19 -> Forecast 2017/18 | T3: =Head20 -> Forecast 2018/19 | U3: =Head21 -> Forecast 2019/20 | V3: =Head22 -> Forecast 2020/21 | W3: =Head23 -> Forecast 2021/22
J4: %
A5: Capital expenditure - Municipal Vote
A6: Expenditure of multi-year capital appropriation | B6: 1
A7: ='Org structure'!A2 -> Vote 1 - Executive and Council | C7: =SUM(C8:C17) -> 0 | D7: =SUM(D8:D17) -> 0 | E7: 0 | F7: 0 | G7: 0 | H7: 0 | I7: =G7-H7 -> 0 | J7: =IF(I7=0,"",I7/H7) ->  | K7: 0
A8: ='Org structure'!E3 -> 1,1 - Executive and Council | I8: 0
A9: ='Org structure'!E4 -> 0 | I9: 0
A10: ='Org structure'!E5 -> 0 | I10: 0
A11: ='Org structure'!E6 -> 0 | I11: 0
A12: ='Org structure'!E7 -> 0 | I12: 0
A13: ='Org structure'!E8 -> 0 | I13: 0
A14: ='Org structure'!E9 -> 0 | I14: 0
A15: ='Org structure'!E10 -> 0 | I15: 0
A16: ='Org structure'!E11 -> 0 | I16: 0
A17: ='Org structure'!E12 -> 0 | I17: 0
A18: ='Org structure'!A3 -> Vote 2 - Budget and Treasury | C18: =SUM(C19:C28) -> 0 | D18: =SUM(D19:D28) -> 0 | E18: 0 | F18: 0 | G18: 0 | H18: 0 | I18: 0 | K18: 0
A19: ='Org structure'!E14 -> 2,1 - Official Housing | I19: 0
A20: ='Org structure'!E15 -> 2,2 - Rates | I20: 0
A21: ='Org structure'!E16 -> 2,3 - Commonage | I21: 0
A22: ='Org structure'!E17 -> 2,4 - Municipal Buildings | I22: 0
A23: ='Org structure'!E18 -> 2,5 - Budget and Treasury Office | I23: 0
A24: ='Org structure'!E19 -> 2,6 - Airport | I24: 0
A25: ='Org structure'!E20 -> 2.7 - Abattoir | I25: 0
A26: ='Org structure'!E21 -> 0 | I26: 0
A27: ='Org structure'!E22 -> 0 | I27: 0
A28: ='Org structure'!E23 -> 0 | I28: 0
A29: ='Org structure'!A4 -> Vote 3 - Corporate Services | C29: =SUM(C30:C39) -> 0 | D29: 0 | E29: 0 | F29: 0 | G29: 0 | H29: 0 | I29: 0 | K29: 0
A30: ='Org structure'!E25 -> 3,1 - Corporate Services | I30: 0
A31: ='Org structure'!E26 -> 0 | I31: 0
A32: ='Org structure'!E27 -> 0 | I32: 0
A33: ='Org structure'!E28 -> 0 | I33: 0
A34: ='Org structure'!E29 -> 0 | I34: 0
A35: ='Org structure'!E30 -> 0 | I35: 0
A36: ='Org structure'!E31 -> 0 | I36: 0
A37: ='Org structure'!E32 -> 0 | I37: 0
A38: ='Org structure'!E33 -> 0 | I38: 0
A39: ='Org structure'!E34 -> 0 | I39: 0
A40: ='Org structure'!A5 -> Vote 4 - Planning and Development | C40: =SUM(C41:C50) -> 0 | D40: 0 | E40: 0 | F40: 0 | G40: 0 | H40: 0 | I40: 0 | K40: 0
A41: ='Org structure'!E36 -> 4.1 - [Name of sub-vote] | I41: 0
A42: ='Org structure'!E37 -> 0 | I42: 0
A43: ='Org structure'!E38 -> 0 | I43: 0
A44: ='Org structure'!E39 -> 0 | I44: 0
A45: ='Org structure'!E40 -> 0 | I45: 0
A46: ='Org structure'!E41 -> 0 | I46: 0
A47: ='Org structure'!E42 -> 0 | I47: 0
A48: ='Org structure'!E43 -> 0 | I48: 0
A49: ='Org structure'!E44 -> 0 | I49: 0
A50: ='Org structure'!E45 -> 0 | I50: 0
A51: ='Org structure'!A6 -> Vote 5 - Health | C51: =SUM(C52:C61) -> 0 | D51: =SUM(D52:D61) -> 0 | E51: 0 | F51: 0 | G51: 0 | H51: 0 | I51: 0 | K51: 0
A52: ='Org structure'!E47 -> 5,1 - Health | I52: 0
A53: ='Org structure'!E48 -> 5,2 - Clinics | I53: 0
A54: ='Org structure'!E49 -> 0 | I54: 0
A55: ='Org structure'!E50 -> 0 | I55: 0
A56: ='Org structure'!E51 -> 0 | I56: 0
A57: ='Org structure'!E52 -> 0 | I57: 0
A58: ='Org structure'!E53 -> 0 | I58: 0
A59: ='Org structure'!E54 -> 0 | I59: 0
A60: ='Org structure'!E55 -> 0 | I60: 0
A61: ='Org structure'!E56 -> 0 | I61: 0
A62: ='Org structure'!A7 -> Vote 6 - Community and Social Services | C62: =SUM(C63:C72) -> 0 | D62: =SUM(D63:D72) -> 0 | E62: 0 | F62: 0 | G62: 0 | H62: 0 | I62: 0 | K62: 0
A63: ='Org structure'!E58 -> 6,1 - Cemetry | I63: 0
A64: ='Org structure'!E59 -> 6,2 - Library | I64: 0
A65: ='Org structure'!E60 -> 6,3 - Museum | I65: 0
A66: ='Org structure'!E61 -> 0 | I66: 0
A67: ='Org structure'!E62 -> 0 | I67: 0
A68: ='Org structure'!E63 -> 0 | I68: 0
A69: ='Org structure'!E64 -> 0 | I69: 0
A70: ='Org structure'!E65 -> 0 | I70: 0
A71: ='Org structure'!E66 -> 0 | I71: =G71-H71 -> 0 | J71: =IF(I71=0,"",I71/H71) -> 
A72: ='Org structure'!E67 -> 0 | I72: 0
A73: ='Org structure'!A8 -> Vote 7 - Housing | C73: =SUM(C74:C83) -> 0 | D73: 0 | E73: 0 | F73: 0 | G73: 0 | H73: 0 | I73: 0 | K73: 0
A74: ='Org structure'!E69 -> 7.1 - [Name of sub-vote] | I74: 0
A75: ='Org structure'!E70 -> 0 | I75: 0
A76: ='Org structure'!E71 -> 0 | I76: 0
A77: ='Org structure'!E72 -> 0 | I77: 0
A78: ='Org structure'!E73 -> 0 | I78: 0
A79: ='Org structure'!E74 -> 0 | I79: 0
A80: ='Org structure'!E75 -> 0 | I80: 0
A81: ='Org structure'!E76 -> 0 | I81: 0
A82: ='Org structure'!E77 -> 0 | I82: 0
A83: ='Org structure'!E78 -> 0 | I83: 0
A84: ='Org structure'!A9 -> Vote 8 - Public Safety | C84: =SUM(C85:C94) -> 0 | D84: =SUM(D85:D94) -> 0 | E84: 0 | F84: 0 | G84: 0 | H84: 0 | I84: 0 | K84: 0
A85: ='Org structure'!E80 -> 8,1 - Fire Service | I85: 0
A86: ='Org structure'!E81 -> 8,2 - Civil Defence | I86: 0
A87: ='Org structure'!E82 -> 8,3 - Pound | I87: 0
A88: ='Org structure'!E83 -> 0 | I88: 0
A89: ='Org structure'!E84 -> 0 | I89: 0
A90: ='Org structure'!E85 -> 0 | I90: 0
A91: ='Org structure'!E86 -> 0 | I91: 0
A92: ='Org structure'!E87 -> 0 | I92: 0
A93: ='Org structure'!E88 -> 0 | I93: 0
A94: ='Org structure'!E89 -> 0 | I94: 0
A95: ='Org structure'!A10 -> Vote 9 - Sport and Recreation | C95: =SUM(C96:C105) -> 0 | D95: =SUM(D96:D105) -> 0 | E95: 0 | F95: 0 | G95: 0 | H95: 0 | I95: 0 | K95: 0
A96: ='Org structure'!E91 -> 9,1 - Nature Reserve | I96: 0
A97: ='Org structure'!E92 -> 9,2 - Parks and Gardens | I97: 0
A98: ='Org structure'!E93 -> 9,3 - Swimming Pool | I98: 0
A99: ='Org structure'!E94 -> 9,4 - Caravan Park | I99: 0
A100: ='Org structure'!E95 -> 0 | I100: 0
A101: ='Org structure'!E96 -> 0 | I101: 0
A102: ='Org structure'!E97 -> 0 | I102: 0
A103: ='Org structure'!E98 -> 0 | I103: 0
A104: ='Org structure'!E99 -> 0 | I104: 0
A105: ='Org structure'!E100 -> 0 | I105: 0
A106: ='Org structure'!A11 -> Vote 10 - Environmental Protection | C106: =SUM(C107:C116) -> 0 | D106: =SUM(D107:D116) -> 0 | E106: 0 | F106: 0 | G106: 0 | H106: 0 | I106: 0 | K106: 0
A107: ='Org structure'!E102 -> 10.1 - [Name of sub-vote] | I107: 0
A108: ='Org structure'!E103 -> 0 | I108: 0
A109: ='Org structure'!E104 -> 0 | I109: 0
A110: ='Org structure'!E105 -> 0 | I110: 0
A111: ='Org structure'!E106 -> 0 | I111: 0
A112: ='Org structure'!E107 -> 0 | I112: 0
A113: ='Org structure'!E108 -> 0 | I113: 0
A114: ='Org structure'!E109 -> 0 | I114: 0
A115: ='Org structure'!E110 -> 0 | I115: 0
A116: ='Org structure'!E111 -> 0 | I116: 0
A117: ='Org structure'!A12 -> Vote 11 - Solid Waste Management | C117: =SUM(C118:C127) -> 0 | D117: =SUM(D118:D127) -> 0 | E117: 0 | F117: 0 | G117: 0 | H117: 0 | I117: 0 | K117: 0
A118: ='Org structure'!E113 -> 11,1 - Refuse removal | I118: 0
A119: ='Org structure'!E114 -> 0 | I119: 0
A120: ='Org structure'!E115 -> 0 | I120: 0
A121: ='Org structure'!E116 -> 0 | I121: 0
A122: ='Org structure'!E117 -> 0 | I122: 0
A123: ='Org structure'!E118 -> 0 | I123: 0
A124: ='Org structure'!E119 -> 0 | I124: 0
A125: ='Org structure'!E120 -> 0 | I125: 0
A126: ='Org structure'!E121 -> 0 | I126: 0
A127: ='Org structure'!E122 -> 0 | I127: 0
A128: ='Org structure'!A13 -> Vote 12 - Waste Water Management | C128: =SUM(C129:C138) -> 0 | D128: =SUM(D129:D138) -> 0 | E128: 0 | F128: 0 | G128: 0 | H128: 0 | I128: 0 | K128: 0
A129: ='Org structure'!E124 -> 12,1 - Sewerage | I129: 0
A130: ='Org structure'!E125 -> 0 | I130: 0
A131: ='Org structure'!E126 -> 0 | I131: 0
A132: ='Org structure'!E127 -> 0 | I132: 0
A133: ='Org structure'!E128 -> 0 | I133: 0
A134: ='Org structure'!E129 -> 0 | I134: 0
A135: ='Org structure'!E130 -> 0 | I135: =G135-H135 -> 0 | J135: =IF(I135=0,"",I135/H135) -> 
A136: ='Org structure'!E131 -> 0 | I136: 0
A137: ='Org structure'!E132 -> 0 | I137: 0
A138: ='Org structure'!E133 -> 0 | I138: 0
A139: ='Org structure'!A14 -> Vote 13 - Road Transport | C139: =SUM(C140:C149) -> 0 | D139: =SUM(D140:D149) -> 0 | E139: 0 | F139: 0 | G139: 0 | H139: 0 | I139: 0 | K139: 0
A140: ='Org structure'!E135 -> 13,1 - Main Roads | I140: 0
A141: ='Org structure'!E136 -> 13,2 - Public Works | I141: 0
A142: ='Org structure'!E137 -> 13,3 - Streets and Pavements | I142: 0
A143: ='Org structure'!E138 -> 13,4 - Traffic and licencing | I143: 0
A144: ='Org structure'!E139 -> 0 | I144: 0
A145: ='Org structure'!E140 -> 0 | I145: 0
A146: ='Org structure'!E141 -> 0 | I146: 0
A147: ='Org structure'!E142 -> 0 | I147: 0
A148: ='Org structure'!E143 -> 0 | I148: 0
A149: ='Org structure'!E144 -> 0 | I149: 0
A150: ='Org structure'!A15 -> Vote 14 - Water | C150: =SUM(C151:C160) -> 2946000 | D150: =SUM(D151:D160) -> 0 | E150: 0 | F150: 0 | G150: 0 | H150: 0 | I150: 0 | K150: 0
A151: ='Org structure'!E146 -> 14,1 - Water Distribution | C151: 2946000 | I151: 0
A152: ='Org structure'!E147 -> 14,2 - Water Storage | I152: 0
A153: ='Org structure'!E148 -> 0 | I153: 0
A154: ='Org structure'!E149 -> 0 | I154: 0
A155: ='Org structure'!E150 -> 0 | I155: 0
A156: ='Org structure'!E151 -> 0 | I156: 0
A157: ='Org structure'!E152 -> 0 | I157: 0
A158: ='Org structure'!E153 -> 0 | I158: 0
A159: ='Org structure'!E154 -> 0 | I159: 0
A160: ='Org structure'!E155 -> 0 | I160: 0
A161: ='Org structure'!A16 -> Vote 15 - Electricity | C161: =SUM(C162:C171) -> 0 | D161: =SUM(D162:D171) -> 0 | E161: 0 | F161: 0 | G161: 0 | H161: 0 | I161: 0 | K161: 0
A162: ='Org structure'!E157 -> 15,1 - Electricity Administration | I162: 0
A163: ='Org structure'!E158 -> 15,2 - Electricity Distribution | I163: 0
A164: ='Org structure'!E159 -> 15,3 - Electricity Generation | I164: 0
A165: ='Org structure'!E160 -> 0 | I165: 0
A166: ='Org structure'!E161 -> 0 | I166: 0
A167: ='Org structure'!E162 -> 0 | I167: 0
A168: ='Org structure'!E163 -> 0 | I168: 0
A169: ='Org structure'!E164 -> 0 | I169: 0
A170: ='Org structure'!E165 -> 0 | I170: 0
A171: ='Org structure'!E166 -> 0 | I171: 0 | L171: =SUM(L79:L82) -> 0 | M171: 0 | N171: 0 | O171: 0 | P171: 0 | Q171: 0 | R171: 0 | S171: 0 | T171: 0 | U171: 0 | V171: 0 | W171: 0
A172: Total multi-year capital expenditure | C172: =C7+C18+C29+C40+C51+C62+C73+C84+C95+C106+C117+C128+C139+C150+C161 -> 2946000 | D172: =D7+D18+D29+D40+D51+D62+D73+D84+D95+D106+D117+D128+D139+D150+D161 -> 0 | E172: 0 | F172: 0 | G172: 0 | H172: 0 | I172: 0 | K172: 0
I173: 0
A174: Capital expenditure - Municipal Vote
A175: Expenditue of single-year capital appropriation | B175: 1 | I175: 0
A176: ='Org structure'!A2 -> Vote 1 - Executive and Council | C176: =SUM(C177:C186) -> 0 | D176: 8095000 | E176: 0 | F176: 1298961.94 | G176: 1441560.05 | H176: 4047500 | I176: -2605939.95 | J176: -0.6438393947 | K176: 8095000
A177: ='Org structure'!E3 -> 1,1 - Executive and Council | C177: 0 | D177: 8095000 | F177: 1298961.94 | G177: 1441560.05 | H177: 4047500 | I177: -2605939.95 | J177: -0.6438393947 | K177: 8095000
A178: ='Org structure'!E4 -> 0 | I178: 0
A179: ='Org structure'!E5 -> 0 | I179: 0
A180: ='Org structure'!E6 -> 0 | I180: 0
A181: ='Org structure'!E7 -> 0 | I181: 0
A182: ='Org structure'!E8 -> 0 | I182: 0
A183: ='Org structure'!E9 -> 0 | I183: 0
A184: ='Org structure'!E10 -> 0 | I184: 0
A185: ='Org structure'!E11 -> 0 | I185: 0
A186: ='Org structure'!E12 -> 0 | I186: 0
A187: ='Org structure'!A3 -> Vote 2 - Budget and Treasury | C187: =C192 -> 681000 | D187: =SUM(D188:D197) -> 0 | E187: =SUM(E188:E197) -> 0 | F187: 0 | G187: 0 | H187: 0 | I187: 0 | K187: 0
A188: ='Org structure'!E14 -> 2,1 - Official Housing | I188: 0
A189: ='Org structure'!E15 -> 2,2 - Rates | I189: 0
A190: ='Org structure'!E16 -> 2,3 - Commonage | I190: 0
A191: ='Org structure'!E17 -> 2,4 - Municipal Buildings | I191: 0
A192: ='Org structure'!E18 -> 2,5 - Budget and Treasury Office | C192: 681000 | I192: 0
A193: ='Org structure'!E19 -> 2,6 - Airport | I193: 0
A194: ='Org structure'!E20 -> 2.7 - Abattoir | I194: 0
A195: ='Org structure'!E21 -> 0 | I195: 0
A196: ='Org structure'!E22 -> 0 | I196: 0
A197: ='Org structure'!E23 -> 0 | I197: 0
A198: ='Org structure'!A4 -> Vote 3 - Corporate Services | C198: =SUM(C199:C208) -> 0 | D198: 0 | E198: 0 | F198: 0 | G198: 0 | H198: 0 | I198: 0 | K198: 0
A199: ='Org structure'!E25 -> 3,1 - Corporate Services | I199: 0
A200: ='Org structure'!E26 -> 0 | I200: =G200-H200 -> 0 | J200: =IF(I200=0,"",I200/H200) -> 
... 145 more rows

Sheet C6-FinPos
A1: =muni& " - "&S71E& " - "&date -> NC074 Kareeberg - Table C6 Monthly Budget Statement - Financial Position - Mid-Year Assessment
A2: =desc -> Description | B2: =head27 -> Ref | C2: =Head1 -> 2016/17 | D2: =Head2 -> Budget Year 2017/18
C3: =Head5 -> Audited Outcome | D3: =Head6 -> Original Budget | E3: =Head7 -> Adjusted Budget | F3: =Head39 -> YearTD actual | G3: =Head8 -> Full Year Forecast
A4: R thousands | B4: 1
A5: ASSETS
A6: Current assets
A7: Cash | C7: 475339 | D7: 1538120 | E7: 1538120 | F7: 64975516.83 | G7: 1538120
A8: Call investment deposits | C8: 37705925 | D8: 48728212 | E8: 48728212 | F8: 27112924.83 | G8: 48728212
A9: Consumer debtors | C9: 5241179 | D9: 2894188 | E9: 2894188 | F9: 4672134.89 | G9: 2894188
A10: Other debtors | C10: 36810 | D10: 29515 | E10: 29515 | F10: 36809.51 | G10: 29515
A11: Current portion of long-term receivables | C11: 4586 | D11: 8490 | E11: 8490 | F11: 2696.32 | G11: 8490
A12: Inventory | C12: 527836 | F12: 527835.58
A13: Total current assets | C13: =SUM(C7:C12) -> 43991675 | D13: =SUM(D7:D12) -> 53198525 | E13: =SUM(E7:E12) -> 53198525 | F13: =SUM(F7:F12) -> 97327917.96 | G13: =SUM(G7:G12) -> 53198525
A15: Non current assets
A16: Long-term receivables | C16: 23284 | D16: 30816 | E16: 30816 | F16: 23283.59 | G16: 30816
A17: Investments
A18: Investment property | C18: 15438087 | D18: 15482392 | E18: 15482392 | F18: 15438087.22 | G18: 15482392
A19: Investments in Associate
A20: Property, plant and equipment | C20: 160983802 | D20: 160983802 | E20: 160983802 | F20: 120909671.9 | G20: 160983802
A21: Agricultural
A22: Biological assets
A23: Intangible assets | C23: 643882 | D23: 3700 | E23: 3700 | F23: 649759.36 | G23: 3700
A24: Other non-current assets | C24: 2250611 | D24: 933487 | E24: 933487 | F24: 2250611 | G24: 933487
A25: Total non current assets | C25: =SUM(C16:C24) -> 179339666 | D25: =SUM(D16:D24) -> 177434197 | E25: =SUM(E16:E24) -> 177434197 | F25: =SUM(F16:F24) -> 139271413.1 | G25: =SUM(G16:G24) -> 177434197
A26: TOTAL ASSETS | C26: =C13+C25 -> 223331341 | D26: =D13+D25 -> 230632722 | E26: =E13+E25 -> 230632722 | F26: =F13+F25 -> 236599331 | G26: =G13+G25 -> 230632722
A28: LIABILITIES
A29: Current liabilities
A30: Bank overdraft | F30: 0
A31: Borrowing | F31: 0
A32: Consumer deposits | C32: 324139 | D32: 380388 | E32: 380388 | F32: 322874 | G32: 380388
A33: Trade and other payables | C33: 16736862 | D33: 7221964 | E33: 7221964 | F33: 39677766 | G33: 7221964
A34: Provisions | C34: 1869676 | D34: 1659144 | E34: 1659144 | F34: 1670176.81 | G34: 1659144
A35: Total current liabilities | C35: =SUM(C30:C34) -> 18930677 | D35: =SUM(D30:D34) -> 9261496 | E35: =SUM(E30:E34) -> 9261496 | F35: =SUM(F30:F34) -> 41670816.81 | G35: =SUM(G30:G34) -> 9261496
A37: Non current liabilities
A38: Borrowing | F38: 0
A39: Provisions | C39: 32414978 | D39: 11737552 | E39: 11737552 | F39: 32414977.99 | G39: 11737552
A40: Total non current liabilities | C40: =SUM(C38:C39) -> 32414978 | D40: =SUM(D38:D39) -> 11737552 | E40: =SUM(E38:E39) -> 11737552 | F40: =SUM(F38:F39) -> 32414977.99 | G40: =SUM(G38:G39) -> 11737552
A41: TOTAL LIABILITIES | C41: =C35+C40 -> 51345655 | D41: =D35+D40 -> 20999048 | E41: =E35+E40 -> 20999048 | F41: =F35+F40 -> 74085794.8 | G41: =G35+G40 -> 20999048
A43: NET ASSETS | B43: 2 | C43: =C26-C41 -> 171985686 | D43: =D26-D41 -> 209633674 | E43: =E26-E41 -> 209633674 | F43: =F26-F41 -> 162513536.2 | G43: =G26-G41 -> 209633674
A45: COMMUNITY WEALTH/EQUITY
A46: Accumulated Surplus/(Deficit) | C46: 160594813 | D46: 198247851 | E46: 198247851 | F46: 151123015.2 | G46: 198247851
A47: Reserves | C47: 11390873 | D47: 11385823 | E47: 11385823 | F47: 11390521 | G47: 11385823
A48: TOTAL COMMUNITY WEALTH/EQUITY | B48: 2 | C48: =SUM(C46:C47) -> 171985686 | D48: =SUM(D46:D47) -> 209633674 | E48: =SUM(E46:E47) -> 209633674 | F48: =SUM(F46:F47) -> 162513536.2 | G48: =SUM(G46:G47) -> 209633674
A49: =head27a -> References
A50: 1. Material variances to be explained in Table SC1
A51: 2. Net assets must balance with Total Community Wealth/Equity
A54: check balance | C54: =C43-C48 -> 0 | D54: =D43-D48 -> 0 | E54: =E43-E48 -> 0 | F54: =F43-F48 -> 0 | G54: =G43-G48 -> 0

Sheet C7-CFlow
A1: =muni& " - "&S71F& " - "&date -> NC074 Kareeberg - Table C7 Monthly Budget Statement - Cash Flow - Mid-Year Assessment
A2: =desc -> Description | B2: =head27 -> Ref | C2: =Head1 -> 2016/17 | D2: =Head2 -> Budget Year 2017/18
C3: =Head5 -> Audited Outcome | D3: =Head6 -> Original Budget | E3: =Head7 -> Adjusted Budget | F3: =Head38 -> Monthly actual | G3: =Head39 -> YearTD actual | H3: =Head40 -> YearTD budget | I3: =Head41 -> YTD variance | J3: =Head41 -> YTD variance | K3: =Head8 -> Full Year Forecast
A4: R thousands | B4: 1 | J4: %
A5: CASH FLOW FROM OPERATING ACTIVITIES
A6: Receipts
A7: Property rates, penalties & collection charges | C7: 4271961 | D7: 3674513 | E7: 3674513 | F7: 184080 | G7: =179584+783000+1588967+742000+318000 -> 3611551 | H7: =306209.41*6 -> 1837256.46 | I7: =G7-H7 -> 1774294.54 | J7: =IF(I7=0,"",I7/H7) -> 0.9657304675 | K7: 3674513
A8: Service charges | C8: 10786644 | D8: 20451166 | E8: 20451166 | F8: 1107020 | G8: =201632.55+232000+212351+1002000+1145306 -> 2793289.55 | H8: =1704263.83*6 -> 10225582.98 | I8: -7432293.43 | J8: =IF(I8=0,"",I8/H8) -> -0.7268332226 | K8: 20451166
A9: Other revenue | C9: 9107928 | D9: 12679077 | E9: 12679077 | F9: 216225 | G9: =32643+91000+138274+798000+78326 -> 1138243 | H9: =1056589.75*6 -> 6339538.5 | I9: -5201295.5 | J9: =IF(I9=0,"",I9/H9) -> -0.8204533343 | K9: 12679077
A10: Government - operating | C10: 23411000 | D10: 24718997 | E10: 24718997 | F10: 0 | G10: =8498000+358000+485086+130000+735151 -> 10206237 | H10: =2059916.41*6 -> 12359498.46 | I10: -2153261.46 | J10: =IF(I10=0,"",I10/H10) -> -0.1742191616 | K10: 24718997
A11: Government - capital | C11: 26669000 | D11: 43095000 | E11: 43095000 | F11: 1357545 | G11: =49530+123000+336801+17000+815709 -> 1342040 | H11: =3591250*6 -> 21547500 | I11: -20205460 | J11: =IF(I11=0,"",I11/H11) -> -0.9377171366 | K11: 43095000
A12: Interest | C12: 2456396 | D12: 1565521 | E12: 1565521 | F12: 327015 | G12: =110+108+73296 -> 73514 | H12: =130460.08*6 -> 782760.48 | I12: -709246.48 | J12: -0.9060836592 | K12: 1565521
A13: Dividends | I13: 0
A14: Payments
A15: Suppliers and employees | C15: -38657759 | D15: -47310444 | E15: -47310444 | F15: -4507642 | G15: =-3333028-3101000-3631465-3619000-3716000 -> -17400493 | H15: =-3942537*6 -> -23655222 | I15: =H15-G15 -> -6254729 | J15: 0.2644121877 | K15: -47310444
A16: Finance charges | C16: -2266958 | D16: -144742 | E16: -144742 | F16: 0 | G16: 0 | H16: =-12061.83*6 -> -72370.98 | I16: =H16-G16 -> -72370.98 | J16: 1 | K16: -144742
A17: Transfers and Grants | C17: -9193102 | D17: -10094545 | E17: -10094545 | F17: -88666 | G17: =-1928932.49-54000-403867-2071000-96000 -> -4553799.49 | H17: =-841212.08*6 -> -5047272.48 | I17: =H17-G17 -> -493472.99 | J17: 0.09777022975 | K17: -10094545
A18: NET CASH FROM/(USED) OPERATING ACTIVITIES | C18: =SUM(C7:C13)+SUM(C15:C17) -> 26585110 | D18: 48634543 | E18: 48634543 | F18: -1404423 | G18: -2789417.94 | H18: 24317271.42 | I18: =H18-G18 -> 27106689.36 | J18: 1.114709331 | K18: =SUM(K7:K13)+SUM(K15:K17) -> 48634543
A20: CASH FLOWS FROM INVESTING ACTIVITIES
A21: Receipts
A22: Proceeds on disposal of PPE | G22: =0+F22 -> 0 | I22: =G22-H22 -> 0 | J22: =IF(I22=0,"",I22/H22) ->  | K22: 0
A23: Decrease (Increase) in non-current debtors | D23: 8490 | E23: 8490 | F23: 0 | G23: 0 | H23: =707.5*6 -> 4245 | I23: =G23-H23 -> -4245 | J23: -1 | K23: 8490
A24: Decrease (increase) other non-current receivables | C24: 17110 | G24: =0+F24 -> 0 | I24: =G24-H24 -> 0
A25: Decrease (increase) in non-current investments | G25: 0 | I25: =G25-H25 -> 0
A26: Payments
A27: Capital assets | D27: -43095000 | E27: -43095000 | F27: -1357545 | G27: =-509116.99-170000-816000 -> -1495116.99 | H27: =-3658750*6 -> -21952500 | I27: =H27-G27 -> -20457383.01 | J27: 0.9318930878 | K27: -43095000
A28: NET CASH FROM/(USED) INVESTING ACTIVITIES | C28: =SUM(C22:C25)+C27 -> 17110 | D28: =SUM(D22:D25)+D27 -> -43086510 | E28: -43086510 | F28: -1357545 | G28: -1495116.99 | H28: -21948255 | I28: =H28-G28 -> -20453138.01 | J28: 0.9318799153 | K28: =SUM(K22:K25)+K27 -> -43086510
A30: CASH FLOWS FROM FINANCING ACTIVITIES
A31: Receipts
A32: Short term loans | I32: =G32-H32 -> 0 | J32: =IF(I32=0,"",I32/H32) -> 
A33: Borrowing long term/refinancing | I33: =G33-H33 -> 0
A34: Increase (decrease) in consumer deposits | C34: 3800 | D34: 10000 | E34: 10000 | F34: 0 | G34: 0 | H34: =833.33*6 -> 4999.98 | I34: =G34-H34 -> -4999.98 | J34: -1 | K34: 10000
A35: Payments
A36: Repayment of borrowing | I36: =H36-G36 -> 0
A37: NET CASH FROM/(USED) FINANCING ACTIVITIES | C37: =SUM(C32:C34)+C36 -> 3800 | D37: 10000 | E37: 10000 | F37: 0 | G37: 0 | H37: 4999.98 | I37: =H37-G37 -> 4999.98 | J37: 1 | K37: =SUM(K32:K34)+K36 -> 10000
A39: NET INCREASE/ (DECREASE) IN CASH HELD | C39: =C18+C28+C37 -> 26606020 | D39: 5558033 | E39: 5558033 | F39: -2761968 | G39: -4284534.93 | H39: 2374016.4 | K39: =K18+K28+K37 -> 5558033
A40: Cash/cash equivalents at beginning: | C40: 23253650 | D40: 25282302 | E40: 25282302 | G40: =C41 -> 49859670 | H40: =IF(E40=0, D40, E40) -> 25282302 | K40: =G40 -> 49859670
A41: Cash/cash equivalents at month/year end: | C41: =C39+C40 -> 49859670 | D41: =D39+D40 -> 30840335 | E41: =E39+E40 -> 30840335 | G41: =G39+G40 -> 45575135.07 | H41: =H39+H40 -> 27656318.4 | K41: =K39+K40 -> 55417703
A42: References
A43: 1. Material variances to be explained in Table SC1

Sheet SC1
A1: =muni& " - "&S71G& " - "&date -> NC074 Kareeberg - Supporting Table SC1 Material variance explanations - Mid-Year Assessment
A2: =head27 -> Ref | B2: =desc -> Description
C3: Variance | D3: Reasons for material deviations | E3: Remedial or corrective steps/remarks
B4: R thousands
A5: 1 | B5: ='C4-FinPerf RE'!A5 -> Revenue By Source
A17: 2 | B17: ='C4-FinPerf RE'!A25 -> Expenditure By Type
A25: 3 | B25: =RIGHT('C5-Capex'!A40,19) -> Capital Expenditure
A33: 4 | B33: Financial Position
A38: 5 | B38: Cash Flow
A43: 6 | B43: Measureable performance
A48: 7 | B48: Municipal Entities
A54: =head27a -> References
A55: 1. Revenue for each source, vote and standard classification
A56: 2. Expenditure for each type, vote and standard classification
A57: 3. Capital expenditure for each vote and standard classification
A58: 4. Explain any material variances between the annual budget and the expected financial position based on current trends
A59: 5. Cash receipts by source and cash payments by type where not explained under revenue and expenditure
A60: 6. For Sept, Dec, Mar and Jun statements explain any material variances in achievement of measurable performance objectives

Sheet SC2
A1: =muni& " - "&S71H& " - "&Head57 -> NC074 Kareeberg - Supporting Table SC2 Monthly Budget Statement - performance indicators - Mid-Year Assessment
A2: Description of financial indicator | B2: Basis of calculation | C2: =head27 -> Ref | D2: =Head1 -> 2016/17 | E2: =Head2 -> Budget Year 2017/18
D3: =Head5 -> Audited Outcome | E3: =Head6 -> Original Budget | F3: =Head7 -> Adjusted Budget | G3: =Head39 -> YearTD actual | H3: =Head8 -> Full Year Forecast
A5: Borrowing Management
A7: Capital Charges to Operating Expenditure | B7: Interest & principal paid/Operating Expenditure | D7: =IF(ISERROR((D42-D43)/D45),0,((D42-D43)/D45)) -> 0.04023243027 | E7: =IF(ISERROR((E42+E44)/E45),0,((E42+E44)/E45)) -> 0.05941916856 | F7: =IF(ISERROR((F42+F44)/F45),0,((F42+F44)/F45)) -> 0.05941916856 | G7: =IF(ISERROR((G42+G44)/G45),0,((G42+G44)/G45)) -> 0 | H7: =IF(ISERROR((H42+H44)/H45),0,((H42+H44)/H45)) -> 0.04091960041
A8: Borrowed funding of 'own' capital expenditure | B8: Borrowings/Capital expenditure excl. transfers and grants | D8: =IF(ISERROR(D47/D46),0,(D47/D46)) -> 0 | E8: =IF(ISERROR(E47/E46),0,(E47/E46)) -> 0 | F8: =IF(ISERROR(F47/F46),0,(F47/F46)) -> 0 | G8: =IF(ISERROR(G47/G46),0,(G47/G46)) -> 0 | H8: =IF(ISERROR(H47/H46),0,(H47/H46)) -> 0
A9: Safety of Capital
A10: Debt to Equity | B10: Loans, Accounts Payable, Overdraft & Tax Provision/ Funds & Reserves | D10: =IF(ISERROR(D48/D49),0,(D48/D49)) -> 0.09731543589 | E10: =IF(ISERROR(E48/E49),0,(E48/E49)) -> 0.03445040037 | F10: =IF(ISERROR(F48/F49),0,(F48/F49)) -> 0.03445040037 | G10: =IF(ISERROR(G48/G49),0,(G48/G49)) -> 0.24415053 | H10: =IF(ISERROR(H48/H49),0,(H48/H49)) -> 0.03445040037
A11: Gearing | B11: Long Term Borrowing/ Funds & Reserves | D11: =IF(ISERROR(D51/D50),0,(D51/D50)) -> 0 | E11: =IF(ISERROR(E51/E50),0,(E51/E50)) -> 0 | F11: =IF(ISERROR(F51/F50),0,(F51/F50)) -> 0 | G11: =IF(ISERROR(G51/G50),0,(G51/G50)) -> 0 | H11: =IF(ISERROR(H51/H50),0,(H51/H50)) -> 0
A12: Liquidity
A13: Current Ratio | B13: Current assets/current liabilities | C13: 1 | D13: =IF(ISERROR(D52/D53),0,(D52/D53)) -> 2.323829993 | E13: =IF(ISERROR(E52/E53),0,(E52/E53)) -> 5.744053121 | F13: =IF(ISERROR(F52/F53),0,(F52/F53)) -> 5.744053121 | G13: =IF(ISERROR(G52/G53),0,(G52/G53)) -> 2.335637394 | H13: =IF(ISERROR(H52/H53),0,(H52/H53)) -> 5.744053121
A14: Liquidity Ratio | B14: Monetary Assets/Current Liabilities | D14: =IF(ISERROR(D54/D53),0,(D54/D53)) -> 2.016899026 | E14: =IF(ISERROR(E54/E53),0,(E54/E53)) -> 5.427452757 | F14: =IF(ISERROR(F54/F53),0,(F54/F53)) -> 5.427452757 | G14: =IF(ISERROR(G54/G53),0,(G54/G53)) -> 2.209902486 | H14: =IF(ISERROR(H54/H53),0,(H54/H53)) -> 5.427452757
A15: Revenue Management
A16: Annual Debtors Collection Rate (Payment Level %) | B16: Last 12 Mths Receipts/ Last 12 Mths Billing
A17: Outstanding Debtors to Revenue | B17: Total Outstanding Debtors to Annual Revenue | D17: =IF(ISERROR(D59/D55),0,(D59/D55)) -> 0.09693476669 | E17: =IF(ISERROR(E59/E55),0,(E59/E55)) -> 0.03323486697 | F17: =IF(ISERROR(F59/F55),0,(F59/F55)) -> 0.03323486697 | G17: =IF(ISERROR(G59/G55),0,(G59/G55)) -> 0.1858989128 | H17: =IF(ISERROR(H59/H55),0,(H59/H55)) -> 0.03323486697
A18: Longstanding Debtors Recovered | B18: Debtors > 12 Mths Recovered/Total Debtors > 12 Months Old | D18: =IF(ISERROR(D64/D63),0,(D64/D63)) -> 0.1969592853 | E18: =IF(ISERROR(E64/E63),0,(E64/E63)) -> 0.2755062305 | F18: =IF(ISERROR(F64/F63),0,(F64/F63)) -> 0.2755062305 | G18: =IF(ISERROR(G64/G63),0,(G64/G63)) -> 0 | H18: =IF(ISERROR(H64/H63),0,(H64/H63)) -> 0
A19: Creditors Management
A20: Creditors System Efficiency | B20: % of Creditors Paid Within Terms (within MFMA s 65(e)) | D20: 1 | E20: 1 | F20: 1 | G20: 1 | H20: 1
A21: Funding of Provisions
A22: Percentage Of Provisions Not Funded | B22: Unfunded Provisions/Total Provisions
A23: Other Indicators
A24: Electricity Distribution Losses | B24: % Volume (units purchased and generated less units sold)/units purchased and generated | C24: 2 | D24: 0.093 | E24: 0.1409 | F24: 0.1409 | G24: 0.1195119568 | H24: 0.1409
A25: Water Distribution Losses | B25: % Volume (units purchased and own source less units sold)/Total units purchased and own source | C25: 2
A26: Employee costs | B26: Employee costs/Total Revenue - capital revenue | D26: =IF(ISERROR(D40/D55),0,(D40/D55)) -> 0.3063150057 | E26: =IF(ISERROR(E40/E55),0,(E40/E55)) -> 0.2730946264 | F26: =IF(ISERROR(F40/F55),0,(F40/F55)) -> 0.2730946264 | G26: =IF(ISERROR(G40/G55),0,(G40/G55)) -> 0.3346553114 | H26: =IF(ISERROR(H40/H55),0,(H40/H55)) -> 0.2730946264
A27: Repairs & Maintenance | B27: R&M/Total Revenue - capital revenue | D27: =IF(ISERROR(D41/D55),0,(D41/D55)) -> 0.02952469206 | E27: =IF(ISERROR(E41/E55),0,(E41/E55)) -> 0.05851839637 | F27: =IF(ISERROR(F41/F55),0,(F41/F55)) -> 0.05851839637 | G27: =IF(ISERROR(G41/G55),0,(G41/G55)) -> 0.1030883518 | H27: =IF(ISERROR(H41/H55),0,(H41/H55)) -> 0.05851839637
A28: Interest & Depreciation | B28: I&D/Total Revenue - capital revenue | D28: =IF(ISERROR((D42+D44)/D55),0,((D42+D44)/D55)) -> 0.1038208257 | E28: =IF(ISERROR((E42+E44)/E55),0,((E42+E44)/E55)) -> 0.04291576286 | F28: =IF(ISERROR((F42+F44)/F55),0,((F42+F44)/F55)) -> 0.04291576286 | G28: =IF(ISERROR((G42+G44)/G55),0,((G42+G44)/G55)) -> 0 | H28: =IF(ISERROR((H42+H44)/H55),0,((H42+H44)/H55)) -> 0.02955436621
A29: IDP regulation financial viability indicators
A30: i. Debt coverage | B30: (Total Operating Revenue - Operating Grants)/Debt service payments due within financial year) | D30: 25.5854267 | E30: 56.04989801 | F30: 56.04989801 | G30: 0 | H30: 56.04989801
A31: ii. O/S Service Debtors to Revenue | B31: Total outstanding service debtors/annual revenue received for services | D31: 0.1679096863 | E31: 0.142102633 | F31: 0.142102633 | G31: 4.362517536 | H31: 0.142102633
A32: iii. Cost coverage | B32: (Available cash + Investments)/monthly fixed operational expenditure | D32: 5.18362891 | E32: 5.240287289 | F32: 5.240287289 | G32: 7.164772687 | H32: 5.240287289
A33: References
A34: 1. Consumer debtors > 12 months old are excluded from current assets.
A35: 2. Material variances to be explained.
A37: Calculations
A38: ='C6-FinPos'!A38 -> Borrowing | D38: ='C6-FinPos'!C38 -> 0 | E38: ='C6-FinPos'!D38 -> 0 | F38: ='C6-FinPos'!E38 -> 0 | G38: ='C6-FinPos'!F38 -> 0 | H38: 0
A39: Total Assets | D39: ='C6-FinPos'!C26 -> 223331341 | E39: ='C6-FinPos'!D26 -> 230632722 | F39: ='C6-FinPos'!E26 -> 230632722 | G39: ='C6-FinPos'!F26 -> 236599331 | H39: ='C6-FinPos'!G26 -> 230632722
A40: ='C4-FinPerf RE'!A26 -> Employee related costs | D40: ='C4-FinPerf RE'!C26 -> 16766577 | E40: ='C4-FinPerf RE'!D26 -> 24347377 | F40: ='C4-FinPerf RE'!E26 -> 24347377 | G40: ='C4-FinPerf RE'!G26 -> 8523813 | H40: ='C4-FinPerf RE'!K26 -> 24347377
A41: =A27 -> Repairs & Maintenance | D41: ='C4-FinPerf RE'!C32+'C4-FinPerf RE'!C33 -> 1616075 | E41: ='C4-FinPerf RE'!D32+'C4-FinPerf RE'!D33 -> 5217127.4 | F41: ='C4-FinPerf RE'!E32+'C4-FinPerf RE'!E33 -> 5217127.4 | G41: ='C4-FinPerf RE'!G32+'C4-FinPerf RE'!G33 -> 2625704.13 | H41: ='C4-FinPerf RE'!K32+'C4-FinPerf RE'!K33 -> 5217127.4
A42: Interest (finance charges) | D42: ='C4-FinPerf RE'!C30 -> 2266958 | E42: ='C4-FinPerf RE'!D30 -> 144742 | F42: ='C4-FinPerf RE'!E30 -> 144742 | G42: ='C4-FinPerf RE'!G30 -> 0 | H42: ='C4-FinPerf RE'!K30 -> 144742
A43: Principal paid | D43: =-'C7-CFlow'!C36 -> 0 | E43: =-'C7-CFlow'!D36 -> 0 | F43: =-'C7-CFlow'!E36 -> 0 | G43: =-'C7-CFlow'!G36 -> 0 | H43: =-'C7-CFlow'!K36 -> 0
A44: Depreciation | D44: ='C4-FinPerf RE'!C29 -> 3415819 | E44: ='C4-FinPerf RE'!D29 -> 3681354 | F44: ='C4-FinPerf RE'!E29 -> 3681354 | H44: ='C4-FinPerf RE'!K27 -> 2490137
A45: Operating expenditure | D45: ='C4-FinPerf RE'!C37 -> 56346534 | E45: ='C4-FinPerf RE'!D37 -> 64391611.2 | F45: ='C4-FinPerf RE'!E37 -> 64391611.2 | G45: ='C4-FinPerf RE'!G37 -> 26770101.44 | H45: ='C4-FinPerf RE'!K37 -> 64391611.2
A46: ='C5-Capex'!A40 -> Total Capital Expenditure | D46: ='C5-Capex'!C40 -> 7941546 | E46: ='C5-Capex'!D40 -> 43095000 | F46: ='C5-Capex'!E40 -> 35000000 | G46: ='C5-Capex'!G40 -> 2142057.05 | H46: ='C5-Capex'!K40 -> 43095000
A47: Borrowed funding for capital | D47: ='C5-Capex'!C72 -> 0 | E47: ='C5-Capex'!D72 -> 0 | F47: ='C5-Capex'!E72 -> 0 | G47: ='C5-Capex'!G72 -> 0 | H47: ='C5-Capex'!K72 -> 0
A48: Debt | D48: ='C6-FinPos'!C30+'C6-FinPos'!C31+'C6-FinPos'!C33+'C6-FinPos'!C38 -> 16736862 | E48: ='C6-FinPos'!D30+'C6-FinPos'!D31+'C6-FinPos'!D33+'C6-FinPos'!D38 -> 7221964 | F48: ='C6-FinPos'!E30+'C6-FinPos'!E31+'C6-FinPos'!E33+'C6-FinPos'!E38 -> 7221964 | G48: ='C6-FinPos'!F30+'C6-FinPos'!F31+'C6-FinPos'!F33+'C6-FinPos'!F38 -> 39677766 | H48: ='C6-FinPos'!G30+'C6-FinPos'!G31+'C6-FinPos'!G33+'C6-FinPos'!G38 -> 7221964
A49: Equity | D49: ='C6-FinPos'!C48 -> 171985686 | E49: ='C6-FinPos'!D48 -> 209633674 | F49: ='C6-FinPos'!E48 -> 209633674 | G49: ='C6-FinPos'!F48 -> 162513536.2 | H49: ='C6-FinPos'!G48 -> 209633674
A50: ='C6-FinPos'!A47 -> Reserves | D50: ='C6-FinPos'!C47 -> 11390873 | E50: ='C6-FinPos'!D47 -> 11385823 | F50: ='C6-FinPos'!E47 -> 11385823 | G50: ='C6-FinPos'!F47 -> 11390521 | H50: ='C6-FinPos'!G47 -> 11385823
A51: ='C6-FinPos'!A38 -> Borrowing | D51: ='C6-FinPos'!C38 -> 0 | E51: ='C6-FinPos'!D38 -> 0 | F51: ='C6-FinPos'!E38 -> 0 | G51: ='C6-FinPos'!F38 -> 0 | H51: ='C6-FinPos'!G38 -> 0
A52: ='C6-FinPos'!A6 -> Current assets | D52: ='C6-FinPos'!C13 -> 43991675 | E52: ='C6-FinPos'!D13 -> 53198525 | F52: ='C6-FinPos'!E13 -> 53198525 | G52: ='C6-FinPos'!F13 -> 97327917.96 | H52: ='C6-FinPos'!G13 -> 53198525
A53: ='C6-FinPos'!A29 -> Current liabilities | D53: ='C6-FinPos'!C35 -> 18930677 | E53: ='C6-FinPos'!D35 -> 9261496 | F53: ='C6-FinPos'!E35 -> 9261496 | G53: ='C6-FinPos'!F35 -> 41670816.81 | H53: ='C6-FinPos'!G35 -> 9261496
A54: Monetary assets | D54: ='C6-FinPos'!C7+'C6-FinPos'!C8 -> 38181264 | E54: ='C6-FinPos'!D7+'C6-FinPos'!D8 -> 50266332 | F54: ='C6-FinPos'!E7+'C6-FinPos'!E8 -> 50266332 | G54: ='C6-FinPos'!F7+'C6-FinPos'!F8 -> 92088441.66 | H54: ='C6-FinPos'!G7+'C6-FinPos'!G8 -> 50266332
A55: ='C4-FinPerf RE'!A23 -> Total Revenue (excluding capital transfers and contributions) | D55: ='C4-FinPerf RE'!C23 -> 54736388 | E55: ='C4-FinPerf RE'!D23 -> 89153629 | F55: ='C4-FinPerf RE'!E23 -> 89153629 | G55: ='C4-FinPerf RE'!G23 -> 25470424.97 | H55: ='C4-FinPerf RE'!K23 -> 89153629
A56: ='C4-FinPerf RE'!A20 -> Transfers recognised - operational | D56: ='C4-FinPerf RE'!C20 -> 23057417 | E56: ='C4-FinPerf RE'!D20 -> 50814000 | F56: ='C4-FinPerf RE'!E20 -> 50814000 | G56: ='C4-FinPerf RE'!G20 -> 9848235 | H56: ='C4-FinPerf RE'!K20 -> 50814000
A57: ='C4-FinPerf RE'!A40 -> Transfers recognised - capital | D57: ='C4-FinPerf RE'!C40 -> 10914278 | E57: ='C4-FinPerf RE'!D40 -> 26095000 | F57: ='C4-FinPerf RE'!E40 -> 26095000 | G57: ='C4-FinPerf RE'!G40 -> 2117601 | H57: ='C4-FinPerf RE'!K40 -> 26095000
A58: Debt service payments | D58: ='C7-CFlow'!C12+'C7-CFlow'!C36 -> 2456396 | E58: ='C7-CFlow'!D12+'C7-CFlow'!D36 -> 1565521 | F58: ='C7-CFlow'!E12+'C7-CFlow'!E36 -> 1565521 | G58: ='C7-CFlow'!G16+'C7-CFlow'!G36 -> 0 | H58: ='C7-CFlow'!K16+'C7-CFlow'!K36 -> -144742
A59: Outstanding debtors (receivables) | D59: ='C6-FinPos'!C9+'C6-FinPos'!C10+'C6-FinPos'!C11+'C6-FinPos'!C16 -> 5305859 | E59: ='C6-FinPos'!D9+'C6-FinPos'!D10+'C6-FinPos'!D11+'C6-FinPos'!D16 -> 2963009 | F59: ='C6-FinPos'!E9+'C6-FinPos'!E10+'C6-FinPos'!E11+'C6-FinPos'!E16 -> 2963009 | G59: ='C6-FinPos'!F9+'C6-FinPos'!F10+'C6-FinPos'!F11+'C6-FinPos'!F16 -> 4734924.31 | H59: ='C6-FinPos'!G9+'C6-FinPos'!G10+'C6-FinPos'!G11+'C6-FinPos'!G16 -> 2963009
A60: Annual services revenue | D60: =SUM('C4-FinPerf RE'!C8:C12) -> 21165341 | E60: =SUM('C4-FinPerf RE'!D8:D12) -> 21165950 | F60: =SUM('C4-FinPerf RE'!E8:E12) -> 21165950 | G60: =SUM('C4-FinPerf RE'!G8:G12) -> 8623788.22
A61: Cash + investments | B61: Including LT investments | D61: ='C6-FinPos'!C7+'C6-FinPos'!C8+'C6-FinPos'!C17-'C6-FinPos'!C30 -> 38181264 | E61: ='C6-FinPos'!D7+'C6-FinPos'!D8+'C6-FinPos'!D17-'C6-FinPos'!D30 -> 50266332 | F61: ='C6-FinPos'!E7+'C6-FinPos'!E8+'C6-FinPos'!E17-'C6-FinPos'!E30 -> 50266332 | G61: ='C6-FinPos'!F7+'C6-FinPos'!F8+'C6-FinPos'!F17-'C6-FinPos'!F30 -> 92088441.66 | H61: ='C6-FinPos'!G7+'C6-FinPos'!G8+'C6-FinPos'!G17-'C6-FinPos'!G30 -> 50266332
A62: Fixed operational expend. (monthly) | D62: ='C4-FinPerf RE'!C37/12 -> 4695544.5 | E62: ='C4-FinPerf RE'!D37/12 -> 5365967.6 | F62: ='C4-FinPerf RE'!E37/12 -> 5365967.6 | G62: ='C4-FinPerf RE'!G37/1 -> 26770101.44 | H62: ='C4-FinPerf RE'!K37/12 -> 5365967.6
A63: Longstanding debtors outstanding | D63: ='C6-FinPos'!C16 -> 23284 | E63: ='C6-FinPos'!D16 -> 30816 | F63: ='C6-FinPos'!E16 -> 30816 | G63: ='C6-FinPos'!F16 -> 23283.59 | H63: ='C6-FinPos'!G16 -> 30816
A64: Longstanding debtors recovered | D64: ='C6-FinPos'!C11 -> 4586 | E64: ='C6-FinPos'!D11 -> 8490 | F64: ='C6-FinPos'!E11 -> 8490 | G64: =F64-'C6-FinPos'!G11 -> 0 | H64: ='C6-FinPos'!H11 -> 0
A65: Attorney collections

Sheet SC3
A1: =muni& " - "&S71I& " - "&Head57 -> NC074 Kareeberg - Supporting Table SC3 Monthly Budget Statement - aged debtors - Mid-Year Assessment
A2: =desc -> Description | C2: =Head2 -> Budget Year 2017/18
A3: R thousands | B3: NT Code | C3: 0-30 Days | D3: 31-60 Days | E3: 61-90 Days | F3: 91-120 Days | G3: 121-150 Dys | H3: 151-180 Dys | I3: 181 Dys-1 Yr | J3: Over 1Yr | K3: Total | L3: Total over 90 days | M3: Actual Bad Debts Written Off against Debtors | N3: Impairment - Bad Debts i.t.o Council Policy
A4: Debtors Age Analysis By Income Source
A5: Trade and Other Receivables from Exchange Transactions - Water | B5: 1200 | C5: -317402.28 | D5: 112315.3 | E5: 97895.72 | F5: 87573.21 | G5: 73008.54 | H5: 64092.32 | I5: 59905.27 | J5: 619473.28 | K5: =SUM(C5:J5) -> 796861.36 | L5: =SUM(F5:J5) -> 904052.62
A6: Trade and Other Receivables from Exchange Transactions - Electricity | B6: 1300 | C6: 357384.8 | D6: 175832.51 | E6: 107495.26 | F6: 57155.59 | G6: 61446.38 | H6: 41318.28 | I6: 49917.09 | J6: 390136.92 | K6: =SUM(C6:J6) -> 1240686.83 | L6: =SUM(F6:J6) -> 599974.26
A7: Receivables from Non-exchange Transactions - Property Rates | B7: 1400 | C7: 0 | D7: 0 | E7: 0 | F7: 0 | G7: 0 | H7: 0 | I7: 0 | J7: 0 | K7: =SUM(C7:J7) -> 0 | L7: 0 | M7: 0 | N7: 0
A8: Receivables from Exchange Transactions - Waste Water Management | B8: 1500 | C8: -426650.12 | D8: 85719.02 | E8: 42432.78 | F8: 37127.33 | G8: 31586.56 | H8: 34147.56 | I8: 37772.75 | J8: 269317.43 | K8: 111453.31 | L8: 409951.63 | M8: 0 | N8: 0
A9: Receivables from Exchange Transactions - Waste Management | B9: 1600 | C9: -194831.7 | D9: 92996.16 | E9: 72565.46 | F9: 59352.65 | G9: 51885.91 | H9: 52299.48 | I9: 46912.09 | J9: 414639.98 | K9: 595820.03 | L9: =SUM(F9:J9) -> 625090.11 | M9: 0 | N9: 0
A10: Receivables from Exchange Transactions - Property Rental Debtors | B10: 1700 | C10: 0 | D10: 0 | E10: 0 | F10: 0 | G10: 0 | H10: 0 | I10: 0 | J10: 0 | K10: 0 | L10: =SUM(F10:J10) -> 0 | M10: 0 | N10: 0
A11: Interest on Arrear Debtor Accounts | B11: 1810 | C11: 0 | D11: 0 | E11: 0 | F11: 0 | G11: 0 | H11: 0 | I11: 0 | J11: 0 | K11: 0 | L11: 0 | M11: 0 | N11: 0
A12: Recoverable unauthorised, irregular, fruitless and wasteful expenditure | B12: 1820 | C12: 0 | D12: 0 | E12: 0 | F12: 0 | G12: 0 | H12: 0 | I12: 0 | J12: 0 | K12: 0 | L12: 0 | M12: 0 | N12: 0
A13: Other | B13: 1900 | C13: 22150.89 | D13: 6110.43 | E13: 2099.27 | F13: 2030.72 | G13: 1574 | H13: 1552.18 | I13: 2585.27 | J13: 16112.67 | K13: 54215.43 | L13: =SUM(F13:J13) -> 23854.84 | M13: 0 | N13: 0
A14: Total By Income Source | B14: 2000 | C14: =SUM(C5:C13) -> -559348.41 | D14: 472973.42 | E14: 322488.49 | F14: 243239.5 | G14: 219501.39 | H14: 193409.82 | I14: 197092.47 | J14: 1709680.28 | K14: 2799036.96 | L14: =SUM(L5:L13) -> 2562923.46 | M14: 0 | N14: 0
A15: =Head1&" - totals only" -> 2016/17 - totals only | K15: =SUM(C15:J15) -> 0 | L15: =SUM(F15:J15) -> 0
A16: Debtors Age Analysis By Customer Group
A17: Organs of State | B17: 2200 | C17: 95282.78 | D17: 85638.66 | E17: 61381.33 | F17: 32120.24 | G17: 44284.71 | H17: 18256.33 | I17: 21715.27 | J17: 76465.31 | K17: =SUM(C17:J17) -> 435144.63 | L17: =SUM(F17:J17) -> 192841.86 | M17: 0 | N17: 0
A18: Commercial | B18: 2300 | C18: 232712.17 | D18: 66324.88 | E18: 27891.8 | F18: 9798.61 | G18: 8710.33 | H18: 6676.61 | I18: 12942.67 | J18: 25424.92 | K18: =SUM(C18:J18) -> 390481.99 | L18: =SUM(F18:J18) -> 63553.14 | M18: 0 | N18: 0
A19: Households | B19: 2400 | C19: -909494.25 | D19: 314899.45 | E19: 231116.09 | F19: 199289.93 | G19: 164932.35 | H19: 166924.7 | I19: 159849.26 | J19: 1591677.38 | K19: =SUM(C19:J19) -> 1919194.91 | L19: =SUM(F19:J19) -> 2282673.62 | M19: 0 | N19: 0
A20: Other | B20: 2500 | C20: 22150.89 | D20: 6110.43 | E20: 2099.27 | F20: 2030.72 | G20: 1574 | H20: 1552.18 | I20: 2585.27 | J20: 16112.67 | K20: =SUM(C20:J20) -> 54215.43 | L20: =SUM(F20:J20) -> 23854.84 | M20: 0 | N20: 0
A21: Total By Customer Group | B21: 2600 | C21: =SUM(C17:C20) -> -559348.41 | D21: 472973.42 | E21: 322488.49 | F21: 243239.5 | G21: 219501.39 | H21: 193409.82 | I21: 197092.47 | J21: =SUM(J17:J20) -> 1709680.28 | K21: =SUM(K17:K20) -> 2799036.96 | L21: =SUM(L17:L20) -> 2562923.46 | M21: =SUM(M17:M20) -> 0 | N21: =SUM(N17:N20) -> 0
A22: Notes
A23: Material increases in value of debtors' categories compared to previous month to be explained
A24: Bad debts = amounts actually written off in the month
A25: Total by Income Source must reconcile with Total by Customer Group
C26: =C14-C21 -> 0 | D26: =D14-D21 -> 0 | E26: =E14-E21 -> 0 | F26: 0 | G26: 0 | H26: 0 | I26: 0 | J26: =J14-J21 -> 0 | K26: 0
C27: =IF(C26=0,"","MUST AGREE") ->  | D27: =IF(D26=0,"","MUST AGREE") -> 

Sheet SC4
A1: =muni& " - "&S71J& " - "&Head57 -> NC074 Kareeberg - Supporting Table SC4 Monthly Budget Statement - aged creditors - Mid-Year Assessment
A2: =desc -> Description | B2: NT Code | C2: =Head2 -> Budget Year 2017/18 | L2: Prior year totals for chart (same period)
C3: 0 - 30 Days | D3: 31 - 60 Days | E3: 61 - 90 Days | F3: 91 - 120 Days | G3: 121 - 150 Days | H3: 151 - 180 Days | I3: 181 Days - 1 Year | J3: Over 1 Year | K3: Total
A4: R thousands
A5: Creditors Age Analysis By Customer Type
A6: Bulk Electricity | B6: 0100 | K6: =SUM(C6:J6) -> 0
A7: Bulk Water | B7: 0200 | K7: =SUM(C7:J7) -> 0
A8: PAYE deductions | B8: 0300 | K8: 0
A9: VAT (output less input) | B9: 0400 | K9: 0
A10: Pensions / Retirement deductions | B10: 0500 | K10: 0
A11: Loan repayments | B11: 0600 | K11: 0
A12: Trade Creditors | B12: 0700 | K12: 0
A13: Auditor General | B13: 0800 | K13: 0
A14: Other | B14: 0900 | C14: 106436 | D14: 0 | E14: 0 | F14: 0 | G14: 0 | H14: 0 | I14: 0 | J14: 235740 | K14: =SUM(C14:J14) -> 342176
A15: Total By Customer Type | B15: 1000 | C15: =SUM(C6:C14) -> 106436 | D15: =SUM(D6:D14) -> 0 | E15: 0 | F15: 0 | G15: 0 | H15: 0 | I15: 0 | J15: 235740 | K15: =SUM(K6:K14) -> 342176 | L15: =SUM(L6:L14) -> 0
A16: Notes
A17: Material increases in value of creditors' categories compared to previous month to be explained

Sheet SC5
A1: =muni& " - "&S71K& " - "&Head57 -> NC074 Kareeberg - Supporting Table SC5 Monthly Budget Statement - investment portfolio - Mid-Year Assessment
A2: Investments by maturity Name of institution & investment ID | B2: Ref | C2: Period of Investment | D2: Type of Investment | E2: Expiry date of investment | F2: Accrued interest for the month | G2: Yield for the month 1 (%) | H2: Market value at beginning of the month | I2: Change in market value | J2: Market value at end of the month
A3: R thousands | C3: Yrs/Months
A4: Municipality
A5: Capital Replacement Reserve | C5: 32 days | D5: fixed deposit | H5: 11347811.51 | I5: =J5-H5 -> 0 | J5: 11347811.51
A6: Housing Fund | C6: 1 day | D6: call deposit | H6: 43942.21 | I6: =J6-H6 -> 221.58 | J6: 44163.79
A7: Job creation - De Bult | C7: 32 days | D7: notice deposit | H7: 44459.34 | I7: 224.19 | J7: 44683.53
A8: Land development | C8: 1 day | D8: call deposit | H8: 69800.06 | I8: 351.689 | J8: 70151.749
A9: Land development | C9: 32 days | D9: notice deposit
A10: Land development | C10: 1 day | D10: call deposit | I10: 0
A11: Civil Defence | C11: 32 days | D11: notice deposit | H11: 20866.42 | I11: 0 | J11: 20866.42
A12: EPWP Vosburg dust | I12: 0 | J12: 0
A13: CMIP Kwaggakolk(vat) | C13: 1 day | D13: call deposit | H13: 699.46 | I13: 3.55 | J13: 703.01
A14: MSIG | C14: 1 day | D14: call deposit | I14: 0
A15: MIG Sanitation interest/vat | C15: 1 day | D15: call deposit | H15: 847206.84 | I15: 0 | J15: 847206.84
A16: Electricity-Schietfontein | C16: 1 day | D16: call deposit | H16: 40051.9 | I16: 201.91 | J16: 40253.81
A17: Water Services Plan | C17: 1 day | D17: call deposit | H17: 3742.05 | I17: 18.96 | J17: 3761.01
A18: CMIP-Saaipoort project 301 | C18: 1 day | D18: call deposit | H18: 4108.52 | I18: 4086.73 | J18: 4129.14
A19: Library Development Projects | C19: 1 day | D19: call deposit | H19: 77684.26 | I19: 0 | J19: 77684.26
A20: EPWP - Paving/ Cleaning | C20: 1 day | D20: call deposit | H20: 27074.6 | I20: 136.5 | J20: 27211.1
A21: Lotto Carnarvon | C21: 1 day | D21: call deposit | H21: 2077.86 | I21: 10.43 | J21: 2088.29
A22: Lotto Vosburg | C22: 1 day | D22: call deposit | H22: 36672.24 | I22: 184.85 | J22: 36857.09
A23: Finance Management Grant | C23: 1 day | D23: call deposit | H23: 891373.96 | I23: 0 | J23: 891373.96
A24: Transfer Fees Sub-Economic Housing | C24: 32 days | D24: notice deposit | H24: 154617.98 | I24: 779.44 | J24: 155397.42
A25: VB Cleaning Project | C25: 1 day | D25: call deposit | H25: 29275.74 | I25: 147.64 | J25: 29423.38
A26: VAT - retention | C26: 1 day | D26: call deposit | H26: 13584.44 | I26: 68.49 | J26: 13652.93
A27: MIG Additional | C27: 1 day | D27: call deposit | H27: 3000000 | I27: 0 | J27: 3000000
A28: MIG | C28: 1 day | D28: call deposit | H28: 4337481.35 | I28: -1480816.61 | J28: 2856664.74
A29: Youth development | C29: 1 day | D29: call deposit | H29: 93632.07 | I29: 0 | J29: 93632.07
A30: Leave, PMS and Long Service Funds | C30: 1 day | D30: call deposit | H30: 2143085.79 | I30: -263696.49 | J30: 1879389.3
A31: Provision for Employee benefits | C31: 1 day | D31: call deposit | H31: 2000000 | I31: 0 | J31: 2000000
A32: Retension | C32: 1 day | D32: call deposit | H32: 421488.59 | I32: -79313.13 | J32: 342175.46
A33: Reserves | C33: 1 day | D33: call deposit | I33: 0
A34: General Account | C34: 1 day | D34: call deposit | H34: 9956830.76 | I34: -3900000 | J34: 6056830.76
A35: RBIG DWAF | H35: 27945971 | I35: 933215 | J35: 28879186
A36: Municipality sub-total | F36: =SUM(F5:F35) -> 0 | H36: =SUM(H5:H35) -> 63553538.95 | I36: =SUM(I5:I35) -> -4784175.271 | J36: =SUM(J5:J35) -> 58765297.57
A38: Entities
A46: Entities sub-total | F46: =SUM(F39:F45) -> 0 | H46: =SUM(H39:H45) -> 0 | I46: =SUM(I39:I45) -> 0 | J46: =SUM(J39:J45) -> 0
A48: TOTAL INVESTMENTS AND INTEREST | B48: 2 | F48: =F36+F46 -> 0 | H48: =H36+H46 -> 63553538.95 | I48: =I36+I46 -> -4784175.271 | J48: =J36+J46 -> 58765297.57
A49: =head27a -> References
A50: 1. Yield is calculated as the annualised equivalent
A51: 2. Total market value must reconcile with the total of investments on the 'Financial Position statement'

Sheet SC6
A1: =muni& " - "&S71L& " - "&Head57 -> NC074 Kareeberg - Supporting Table SC6 Monthly Budget Statement - transfers and grant receipts - Mid-Year Assessment
A2: =desc -> Description | B2: =head27 -> Ref | C2: =Head1 -> 2016/17 | D2: =Head2 -> Budget Year 2017/18
C3: =Head5 -> Audited Outcome | D3: =Head6 -> Original Budget | E3: =Head7 -> Adjusted Budget | F3: =Head38 -> Monthly actual | G3: =Head39 -> YearTD actual | H3: =Head40 -> YearTD budget | I3: =Head41 -> YTD variance | J3: =Head41 -> YTD variance | K3: =Head8 -> Full Year Forecast
A4: R thousands | J4: %
A5: RECEIPTS: | B5: 1,2
A7: Operating Transfers and Grants
A8: National Government: | C8: =SUM(C9:C19) -> 20528269 | D8: 22297000 | E8: 22297000 | F8: 183803 | G8: 9614896.86 | H8: 11259769.64 | I8: -1700500 | J8: =IF(I8=0,"",I8/H8) -> -0.1510244041 | K8: =SUM(K9:K19) -> 22297000
A9: Local Government Equitable Share | C9: 18919000 | D9: 20397000 | E9: 20397000 | G9: 8498000 | H9: =1699750*6 -> 10198500 | I9: =G9-H9 -> -1700500 | J9: -0.1667402069 | K9: 20397000
A10: Finance Management | C10: 1609269 | D10: 1900000 | E10: 1900000 | F10: 0 | G10: =830404.2+178223 -> 1008627.2 | H10: =158833.33*6 -> 952999.98 | K10: 1900000
A11: Integrated National Electrification Programme | F11: 974 | G11: =8667.66+5510+974 -> 15151.66 | H11: 15151.66
B14: 3 | I14: 0
I15: 0
I16: 0
I17: 0
I18: 0
A19: MIG, RBIG, DWAF | F19: =181855+974 -> 182829 | G19: =86376+5768+974 -> 93118 | H19: 93118 | I19: 0
A20: Provincial Government: | C20: =SUM(C21:C26) -> 2660607 | D20: 2422000 | E20: 2422000 | F20: 0 | G20: 821703.04 | H20: 944583.29 | I20: -115767.56 | J20: -0.1225593987 | K20: =SUM(K21:K26) -> 2422000
A21: Library Development Projects | C21: 1667000 | D21: 1422000 | E21: 1422000 | F21: 0 | G21: 578815.74 | H21: =138916.66*5 -> 694583.3 | I21: =G21-H21 -> -115767.56 | J21: -0.16667196 | K21: 1422000
A22: Expanded Public Works Programme | C22: 993607 | D22: 1000000 | E22: 1000000 | G22: =151887.3+91000 -> 242887.3 | H22: =83333.33*3 -> 249999.99 | K22: 1000000
I23: 0
B24: 4 | I24: 0
I25: 0
A26: Other transfers and grants [insert description] | I26: 0
A27: District Municipality: | C27: =SUM(C28:C29) -> 0 | D27: 0 | E27: 0 | F27: 0 | G27: 0 | H27: 0 | I27: 0 | K27: =SUM(K28:K29) -> 0
A28: [insert description] | I28: 0
I29: 0
A30: Other grant providers: | C30: =SUM(C31:C37) -> 0 | D30: 0 | E30: 0 | F30: 0 | G30: 0 | H30: 0 | I30: 0 | K30: =SUM(K31:K37) -> 0
A31: Sanitation interest | I31: 0
I37: 0
A38: Total Operating Transfers and Grants | B38: 5 | C38: =C8+C20+C27+C30 -> 23188876 | D38: 24719000 | E38: 24719000 | F38: 183803 | G38: 10436599.9 | H38: 12204352.93 | I38: -1816267.56 | J38: -0.1488212911 | K38: =K8+K20+K27+K30 -> 24719000
A40: Capital Transfers and Grants
A41: =A8 -> National Government: | C41: =SUM(C42:C51) -> 9743258 | D41: 43095000 | E41: 43095000 | F41: 1357545.21 | G41: 2142057.05 | H41: 21547499.96 | I41: -2605939.95 | J41: =IF(I41=0,"",I41/H41) -> -0.120939318 | K41: 43095000
A42: Municipal Infrastructure Grant (MIG) | C42: 6797539 | D42: 8095000 | E42: 8095000 | F42: 1298961.94 | G42: 1441560.05 | H42: 4047500 | I42: =G42-H42 -> -2605939.95 | J42: -0.6438393947 | K42: 8095000
A43: Regional Bulk Infrastructure | C43: 2945719 | D43: 34000000 | E43: 34000000 | F43: 51623.27 | G43: 592271 | H43: 16999999.98 | K43: 34000000
A44: Integrated National Electrification Programme Grant | D44: 1000000 | E44: 1000000 | F44: 6960 | G44: 108226 | H44: 499999.98 | K44: 1000000
I47: 0
I48: 0
I49: 0
I50: 0
A51: Other capital transfers [insert description] | I51: 0
A52: =A20 -> Provincial Government: | C52: =SUM(C53:C58) -> 0 | D52: 0 | E52: 0 | F52: 0 | G52: 0 | H52: 0 | I52: =G52-H52 -> 0 | J52: =IF(I52=0,"",I52/H52) ->  | K52: =SUM(K53:K58) -> 0
I53: 0 | J53: =IF(I53=0,"",I53/H53) -> 
I58: 0
A59: =A27 -> District Municipality: | C59: =SUM(C60:C61) -> 0 | D59: 0 | E59: 0 | F59: 0 | G59: 0 | H59: 0 | I59: 0 | K59: =SUM(K60:K61) -> 0
A60: [insert description] | I60: 0
I61: 0
A62: =A30 -> Other grant providers: | C62: =SUM(C63:C68) -> 0 | D62: 0 | E62: 0 | F62: 0 | G62: 0 | H62: 0 | I62: 0 | K62: =SUM(K63:K68) -> 0
A63: [insert description] | I63: 0 | J63: =IF(I63=0,"",I63/H63) -> 
I68: 0
A69: Total Capital Transfers and Grants | B69: 5 | C69: =C41+C52+C59+C62 -> 9743258 | D69: =D41+D52+D59+D62 -> 43095000 | E69: 43095000 | F69: 1357545.21 | G69: 2142057.05 | H69: 21547499.96 | I69: -2605939.95 | J69: -0.120939318 | K69: 43095000
A71: TOTAL RECEIPTS OF TRANSFERS & GRANTS | B71: 5 | C71: =C38+C69 -> 32932134 | D71: 67814000 | E71: 67814000 | F71: 1541348.21 | G71: 12578656.95 | H71: 33751852.89 | I71: -4422207.51 | J71: -0.1310211775 | K71: 67814000
A72: =head27a -> References
A73: 1. Each grant is listed by name as gazetted together with the name of the transferring department or municipality, donor or other organisation
A74: 2. Grant expenditure must be separately listed for each grant received
A75: 3. Replacement of RSC levies
A76: 4. Housing subsidies for housing where ownership transferred
A77: 5. Total recurrent/capital grants and subsidies must reconcile to the 'Financial Performance' Statement

Sheet SC7(1)
A1: =muni& " - "&S71M& " - "&Head57 -> NC074 Kareeberg - Supporting Table SC7(1) Monthly Budget Statement - transfers and grant expenditure - Mid-Year Assessment
A2: =desc -> Description | B2: =head27 -> Ref | C2: =Head1 -> 2016/17 | D2: =Head2 -> Budget Year 2017/18
C3: =Head5 -> Audited Outcome | D3: =Head6 -> Original Budget | E3: =Head7 -> Adjusted Budget | F3: =Head38 -> Monthly actual | G3: =Head39 -> YearTD actual | H3: =Head40 -> YearTD budget | I3: =Head41 -> YTD variance | J3: =Head41 -> YTD variance | K3: =Head8 -> Full Year Forecast
A4: R thousands | J4: %
A5: EXPENDITURE
A7: Operating expenditure of Transfers and Grants
A8: ='SC6'!A8 -> National Government: | C8: =SUM(C9:C15) -> 20528269 | D8: 22297000 | E8: 22297000 | F8: 183803 | G8: 9614896.86 | H8: 11259769.64 | I8: -1644872.78 | J8: =IF(I8=0,"",I8/H8) -> -0.1460840526 | K8: =SUM(K9:K15) -> 0
A9: ='SC6'!A9 -> Local Government Equitable Share | C9: 18919000 | D9: 20397000 | E9: 20397000 | G9: 8498000 | H9: 10198500 | I9: =G9-H9 -> -1700500 | J9: -0.1667402069
A10: ='SC6'!A10 -> Finance Management | C10: 1609269 | D10: 1900000 | E10: 1900000 | F10: 0 | G10: 1008627.2 | H10: 952999.98 | I10: 55627.22 | J10: 0.05837064131
A11: ='SC6'!A11 -> Integrated National Electrification Programme | F11: 974 | G11: 15151.66 | H11: 15151.66 | I11: 0
A12: ='SC6'!A12 -> 0 | I12: 0
A13: ='SC6'!A13 -> 0 | I13: 0
A14: ='SC6'!A14 -> 0 | I14: 0
A15: ='SC6'!A19 -> MIG, RBIG, DWAF | F15: 182829 | G15: 93118 | H15: 93118 | I15: 0
A16: ='SC6'!A20 -> Provincial Government: | C16: =SUM(C17:C22) -> 2660607 | D16: 2422000 | E16: 2422000 | F16: 0 | G16: 821703.04 | H16: 944583.29 | I16: -115767.56 | J16: -0.1225593987 | K16: =SUM(K17:K22) -> 0
A17: ='SC6'!A21 -> Library Development Projects | C17: 1667000 | D17: 1422000 | E17: 1422000 | F17: 0 | G17: 578815.74 | H17: 694583.3 | I17: =G17-H17 -> -115767.56 | J17: -0.16667196
A18: ='SC6'!A22 -> Expanded Public Works Programme | C18: 993607 | D18: 1000000 | E18: 1000000 | G18: 242887.3 | H18: 249999.99
A19: ='SC6'!A23 -> 0 | I19: 0
A20: ='SC6'!A24 -> 0 | I20: 0
A21: ='SC6'!A25 -> 0 | I21: 0
A22: ='SC6'!A26 -> Other transfers and grants [insert description] | I22: 0
A23: ='SC6'!A27 -> District Municipality: | C23: =SUM(C24:C25) -> 0 | D23: 0 | E23: =SUM(E24:E25) -> 0 | F23: 0 | G23: 0 | H23: 0 | I23: 0 | K23: =SUM(K24:K25) -> 0
I24: 0
A25: ='SC6'!A28 -> [insert description] | I25: 0
A26: ='SC6'!A30 -> Other grant providers: | C26: =SUM(C27:C28) -> 0 | D26: 0 | E26: 0 | F26: 0 | G26: 0 | H26: 0 | I26: 0 | K26: =SUM(K27:K28) -> 0
I27: 0
A28: ='SC6'!A31 -> Sanitation interest | I28: 0
A29: Total operating expenditure of Transfers and Grants: | C29: =C8+C16+C23+C26 -> 23188876 | D29: =D8+D16+D23+D26 -> 24719000 | E29: 24719000 | F29: 183803 | G29: 10436599.9 | H29: 12204352.93 | I29: -1760640.34 | J29: -0.1442633092 | K29: =K8+K16+K23+K26 -> 0
A31: Capital expenditure of Transfers and Grants
A32: ='SC6'!A41 -> National Government: | C32: =SUM(C33:C38) -> 9743258 | D32: 43095000 | E32: 43095000 | F32: 1357545.21 | G32: 2142057.05 | H32: 21547499.96 | I32: -19405442.91 | J32: =IF(I32=0,"",I32/H32) -> -0.9005890682 | K32: 0
A33: ='SC6'!A42 -> Municipal Infrastructure Grant (MIG) | C33: 6797539 | D33: 8095000 | E33: 8095000 | F33: 1298961.94 | G33: 1441560.05 | H33: 4047500 | I33: =G33-H33 -> -2605939.95 | J33: -0.6438393947
A34: ='SC6'!A43 -> Regional Bulk Infrastructure | C34: 2945719 | D34: 34000000 | E34: 34000000 | F34: 51623.27 | G34: 592271 | H34: 16999999.98 | I34: -16407728.98 | J34: -0.9651605294
A35: ='SC6'!A44 -> Integrated National Electrification Programme Grant | D35: 1000000 | E35: 1000000 | F35: 6960 | G35: 108226 | H35: 499999.98 | I35: -391773.98 | J35: -0.7835479913
A36: ='SC6'!A45 -> 0 | I36: 0
A37: ='SC6'!A46 -> 0 | I37: 0
A38: ='SC6'!A47 -> 0 | I38: 0
A39: ='SC6'!A52 -> Provincial Government: | C39: =SUM(C40:C41) -> 0 | D39: 0 | E39: 0 | F39: 0 | G39: 0 | H39: 0 | I39: =G39-H39 -> 0 | K39: =SUM(K40:K41) -> 0
A40: ='SC6'!A53 -> 0 | I40: 0
A41: ='SC6'!A54 -> 0 | I41: 0
A42: ='SC6'!A59 -> District Municipality: | C42: =SUM(C43:C44) -> 0 | D42: 0 | E42: 0 | F42: 0 | G42: 0 | H42: 0 | I42: 0 | K42: =SUM(K43:K44) -> 0
I43: 0
A44: ='SC6'!A61 -> 0 | I44: 0
A45: ='SC6'!A62 -> Other grant providers: | C45: =SUM(C46:C47) -> 0 | D45: 0 | E45: 0 | F45: 0 | G45: 0 | H45: 0 | I45: 0 | K45: =SUM(K46:K47) -> 0
I46: 0
A47: ='SC6'!A68 -> 0 | I47: 0
A48: Total capital expenditure of Transfers and Grants | C48: =C32+C39+C42+C45 -> 9743258 | D48: =D32+D39+D42+D45 -> 43095000 | E48: 43095000 | F48: 1357545.21 | G48: 2142057.05 | H48: 21547499.96 | I48: -19405442.91 | J48: =IF(I48=0,"",I48/H48) -> -0.9005890682 | K48: 0
A50: TOTAL EXPENDITURE OF TRANSFERS AND GRANTS | C50: =C29+C48 -> 32932134 | D50: 67814000 | E50: 67814000 | F50: 1541348.21 | G50: 12578656.95 | H50: 33751852.89 | I50: -21166083.25 | J50: =IF(I50=0,"",I50/H50) -> -0.6271087789 | K50: 0
A51: =head27a -> References

Sheet SC7(2)
A1: =muni& " - "&S71T& " - "&Head57 -> NC074 Kareeberg - Supporting Table SC7(2) Monthly Budget Statement - Expenditure against approved rollovers - Mid-Year Assessment
A2: =desc -> Description | B2: =head27 -> Ref | C2: =Head2 -> Budget Year 2017/18
C3: ="Approved Rollover " &Head1 -> Approved Rollover 2016/17 | D3: =Head38 -> Monthly actual | E3: =Head39 -> YearTD actual | F3: =Head41 -> YTD variance | G3: =Head41 -> YTD variance
A4: R thousands | G4: %
A5: EXPENDITURE
A7: Operating expenditure of Approved Roll-overs
A8: ='SC6'!A8 -> National Government: | C8: =SUM(C9:C15) -> 0 | D8: =SUM(D9:D15) -> 0 | E8: =SUM(E9:E15) -> 0 | F8: =SUM(F9:F15) -> 0 | G8: =IF(F8=0,"",F8/C8) -> 
A9: ='SC6'!A9 -> Local Government Equitable Share | F9: =E9-C9 -> 0 | G9: =IF(F9=0,"",F9/C9) -> 
A10: ='SC6'!A10 -> Finance Management | F10: =C10-E10 -> 0
A11: ='SC6'!A11 -> Integrated National Electrification Programme | F11: 0
A12: ='SC6'!A12 -> 0 | F12: 0
A13: ='SC6'!A13 -> 0 | F13: 0
A14: ='SC6'!A14 -> 0 | F14: 0
A15: ='SC6'!A19 -> MIG, RBIG, DWAF | F15: 0
A16: ='SC6'!A20 -> Provincial Government: | C16: =SUM(C17:C21) -> 0 | D16: =SUM(D17:D21) -> 0 | E16: =SUM(E17:E21) -> 0 | F16: =SUM(F17:F21) -> 0
A17: ='SC6'!A21 -> Library Development Projects | F17: =C17-E17 -> 0
A18: ='SC6'!A23 -> 0 | F18: =C18-E18 -> 0
A19: ='SC6'!A24 -> 0 | F19: =C19-E19 -> 0
A20: ='SC6'!A25 -> 0 | F20: =C20-E20 -> 0
A21: ='SC6'!A26 -> Other transfers and grants [insert description] | F21: =C21-E21 -> 0
A22: ='SC6'!A27 -> District Municipality: | C22: =SUM(C23:C24) -> 0 | D22: =SUM(D23:D24) -> 0 | E22: =SUM(E23:E24) -> 0 | F22: =SUM(F23:F24) -> 0
F23: =C23-E23 -> 0
A24: ='SC6'!A28 -> [insert description] | F24: =C24-E24 -> 0
A25: ='SC6'!A30 -> Other grant providers: | C25: =SUM(C26:C27) -> 0 | D25: =SUM(D26:D27) -> 0 | E25: =SUM(E26:E27) -> 0 | F25: =SUM(F26:F27) -> 0
F26: =C26-E26 -> 0
A27: ='SC6'!A31 -> Sanitation interest | F27: =C27-E27 -> 0
A28: Total operating expenditure of Approved Roll-overs | C28: =C8+C16+C22+C25 -> 0 | D28: =D8+D16+D22+D25 -> 0 | E28: =E8+E16+E22+E25 -> 0 | F28: =F8+F16+F22+F25 -> 0
A30: Capital expenditure of Approved Roll-overs
A31: ='SC6'!A41 -> National Government: | C31: =SUM(C32:C37) -> 0 | D31: =SUM(D32:D37) -> 0 | E31: =SUM(E32:E37) -> 0 | F31: =SUM(F32:F37) -> 0
A32: ='SC6'!A42 -> Municipal Infrastructure Grant (MIG) | F32: =C32-E32 -> 0
A33: ='SC6'!A47 -> 0 | F33: 0
A34: ='SC6'!A48 -> 0 | F34: 0
A35: ='SC6'!A49 -> 0 | F35: 0
A36: ='SC6'!A50 -> 0 | F36: 0
A37: ='SC6'!A51 -> Other capital transfers [insert description] | F37: 0
A38: ='SC6'!A52 -> Provincial Government: | C38: =SUM(C39:C40) -> 0 | D38: =SUM(D39:D40) -> 0 | E38: =SUM(E39:E40) -> 0 | F38: =SUM(F39:F40) -> 0
F39: =C39-E39 -> 0
A40: ='SC6'!A58 -> 0 | F40: =C40-E40 -> 0
A41: ='SC6'!A59 -> District Municipality: | C41: =SUM(C42:C43) -> 0 | D41: =SUM(D42:D43) -> 0 | E41: =SUM(E42:E43) -> 0 | F41: =SUM(F42:F43) -> 0
F42: =C42-E42 -> 0
A43: ='SC6'!A61 -> 0 | F43: =C43-E43 -> 0
A44: ='SC6'!A62 -> Other grant providers: | C44: =SUM(C45:C46) -> 0 | D44: =SUM(D45:D46) -> 0 | E44: =SUM(E45:E46) -> 0 | F44: =SUM(F45:F46) -> 0
F45: =C45-E45 -> 0
A46: ='SC6'!A68 -> 0 | F46: =C46-E46 -> 0
A47: Total capital expenditure of Approved Roll-overs | C47: =C31+C38+C41+C44 -> 0 | D47: =D31+D38+D41+D44 -> 0 | E47: =E31+E38+E41+E44 -> 0 | F47: =F31+F38+F41+F44 -> 0
A49: TOTAL EXPENDITURE OF APPROVED ROLL-OVERS | C49: =C28+C47 -> 0 | D49: =D28+D47 -> 0 | E49: =E28+E47 -> 0 | F49: =F28+F47 -> 0
A50: =head27a -> References

Sheet SC8
A1: =muni& " - "&S71N& " - "&Head57 -> NC074 Kareeberg - Supporting Table SC8 Monthly Budget Statement - councillor and staff benefits - Mid-Year Assessment
A2: Summary of Employee and Councillor remuneration | B2: =head27 -> Ref | C2: =Head1 -> 2016/17 | D2: =Head2 -> Budget Year 2017/18
C3: =Head5 -> Audited Outcome | D3: =Head6 -> Original Budget | E3: =Head7 -> Adjusted Budget | F3: =Head38 -> Monthly actual | G3: =Head39 -> YearTD actual | H3: =Head40 -> YearTD budget | I3: =Head41 -> YTD variance | J3: =Head41 -> YTD variance | K3: =Head8 -> Full Year Forecast
A4: R thousands | J4: %
B5: 1 | C5: A | D5: B | E5: C | K5: D
A6: Councillors (Political Office Bearers plus Other)
A7: Basic Salaries and Wages | C7: 1312801.82 | D7: 1426261 | E7: 1426261 | F7: 170395.06 | G7: =170395.06+182054+170399+170035+170395+170395 -> 1033673.06 | H7: =170395.06*6 -> 1022370.36 | I7: =G7-H7 -> 11302.7 | J7: =IF(I7=0,"",I7/H7) -> 0.01105538701 | K7: 1426261
A8: Pension and UIF Contributions | I8: 0
A9: Medical Aid Contributions | I9: 0
A10: Motor Vehicle Allowance | C10: 470934.24 | D10: 475421 | E10: 475421 | I10: =G10-H10 -> 0 | J10: =IF(I10=0,"",I10/H10) ->  | K10: 475421
A11: Cellphone Allowance | C11: 135689.63 | D11: 160684 | E11: 160684 | F11: 13679.84 | G11: =1665.79+11665+11663+11662+11662+13679 -> 61996.79 | H11: =11665.79*6 -> 69994.74 | I11: =G11-H11 -> -7997.95 | J11: =IF(I11=0,"",I11/H11) -> -0.1142650148 | K11: 160684
A12: Housing Allowances | I12: =G12-H12 -> 0 | J12: =IF(I12=0,"",I12/H12) -> 
A13: Other benefits and allowances | I13: 0
A14: Sub Total - Councillors | C14: =SUM(C7:C13) -> 1919425.69 | D14: 2062366 | E14: 2062366 | F14: 184074.9 | G14: 1095669.85 | H14: 1092365.1 | I14: 3304.75 | J14: 0.003025316353 | K14: 2062366
A15: % increase | B15: 4 | D15: =IF(D14=0,"",(D14/C14)-1) -> 0.07447035368 | E15: =IF(E14=0,"",(E14/C14)-1) -> 0.07447035368 | K15: =IF(K14=0,"",(K14/C14)-1) -> 0.07447035368
A17: Senior Managers of the Municipality | B17: 3
A18: Basic Salaries and Wages | C18: 2432572 | D18: 3206111 | E18: 3206111 | F18: 322732 | G18: =268621+269000+282889+302852+318476+322730 -> 1764568 | H18: =268621*6 -> 1611726 | I18: =G18-H18 -> 152842 | J18: =IF(I18=0,"",I18/H18) -> 0.09483125544 | K18: 3206111
A19: Pension and UIF Contributions | C19: 361862.82 | D19: 364000 | E19: 364000 | F19: 16510 | G19: =19696+1969+1969+19696+21523+16510 -> 81363 | H19: =19696*6 -> 118176 | I19: -36813 | J19: -0.3115099513 | K19: 364000
A20: Medical Aid Contributions | C20: 117569.28 | D20: 120000 | E20: 120000 | I20: 0 | K20: 120000
A21: Overtime | C21: 0 | I21: 0
A22: Performance Bonus | C22: 146210.47 | D22: 147000 | E22: 147000 | I22: =G22-H22 -> 0 | J22: =IF(I22=0,"",I22/H22) ->  | K22: 147000
A23: Motor Vehicle Allowance | C23: 440100 | D23: 441000 | E23: 441000 | I23: =G23-H23 -> 0 | J23: =IF(I23=0,"",I23/H23) ->  | K23: 441000
A24: Cellphone Allowance | C24: 0 | I24: =G24-H24 -> 0 | J24: =IF(I24=0,"",I24/H24) -> 
A25: Housing Allowances | C25: 0 | I25: =G25-H25 -> 0 | J25: =IF(I25=0,"",I25/H25) -> 
A26: Other benefits and allowances | C26: 325.44 | D26: 0 | E26: 0 | I26: 0 | K26: 0
A27: Payments in lieu of leave | C27: 0 | I27: 0
A28: Long service awards | C28: 0 | I28: 0
A29: Post-retirement benefit obligations | B29: 2 | C29: 0 | I29: 0
A30: Sub Total - Senior Managers of Municipality | C30: =SUM(C18:C29) -> 3498640.01 | D30: 4278111 | E30: 4278111 | F30: =SUM(F18:F29) -> 339242 | G30: =SUM(G18:G29) -> 1845931 | H30: =SUM(H18:H29) -> 1729902 | I30: 116029 | J30: =IF(I30=0,"",I30/H30) -> 0.06707258561 | K30: 4278111
A31: % increase | B31: 4 | D31: =IF(D30=0,"",(D30/C30)-1) -> 0.2227925673 | E31: =IF(E30=0,"",(E30/C30)-1) -> 0.2227925673 | K31: =IF(K30=0,"",(K30/C30)-1) -> 0.2227925673
A33: Other Municipal Staff
A34: Basic Salaries and Wages | C34: 10072847.04 | D34: 11123000 | E34: 11123000 | F34: 1043665 | G34: =899690+1107000+883258+910503+992158 -> 4792609 | H34: =899690*5 -> 4498450 | I34: =G34-H34 -> 294159 | J34: =IF(I34=0,"",I34/H34) -> 0.0653911903 | K34: 11123000
A35: Pension and UIF Contributions | C35: 1248225.46 | D35: 1348000 | E35: 1348000 | F35: 86656 | G35: =108168+185000+152917+147773+156013+86656 -> 836527 | H35: =108168*6 -> 649008 | I35: 187519 | J35: 0.2889317235 | K35: 1348000
A36: Medical Aid Contributions | C36: 322902.48 | D36: 350000 | E36: 350000 | I36: 0 | K36: 350000
A37: Overtime | C37: 495695.77 | D37: 431000 | E37: 431000 | I37: 0 | K37: 431000
A38: Performance Bonus | C38: 0 | I38: 0
A39: Motor Vehicle Allowance | C39: 73239.96 | D39: 75000 | E39: 75000 | I39: =G39-H39 -> 0 | J39: =IF(I39=0,"",I39/H39) ->  | K39: 75000
A40: Cellphone Allowance | C40: 0 | I40: =G40-H40 -> 0 | J40: =IF(I40=0,"",I40/H40) -> 
A41: Housing Allowances | C41: 10681.18 | D41: 13125 | E41: 13125 | I41: =G41-H41 -> 0 | J41: =IF(I41=0,"",I41/H41) ->  | K41: 13125
A42: Other benefits and allowances | C42: 92839.14 | D42: 101125 | E42: 101125 | I42: 0 | K42: 101125
A43: Payments in lieu of leave | C43: 0 | D43: 0 | E43: 0 | I43: 0 | K43: 0
A44: Long service awards | C44: 32385.96 | D44: 36547 | E44: 36547 | I44: 0 | K44: 36547
A45: Post-retirement benefit obligations | B45: 2 | C45: 405510 | D45: 483221 | E45: 483221 | I45: 0 | K45: 483221
A46: Sub Total - Other Municipal Staff | C46: =SUM(C34:C45) -> 12754326.99 | D46: 13961018 | E46: 13961018 | F46: =SUM(F34:F45) -> 1130321 | G46: =SUM(G34:G45) -> 5629136 | H46: =SUM(H34:H45) -> 5147458 | I46: 481678 | J46: =IF(I46=0,"",I46/H46) -> 0.09357589707 | K46: 13961018
A47: % increase | B47: 4 | D47: =IF(D46=0,"",(D46/C46)-1) -> 0.09461032408 | E47: =IF(E46=0,"",(E46/C46)-1) -> 0.09461032408 | K47: =IF(K46=0,"",(K46/C46)-1) -> 0.09461032408
A49: Total Parent Municipality | C49: =C14+C30+C46 -> 18172392.69 | D49: =D14+D30+D46 -> 20301495 | E49: 20301495 | F49: 1653637.9 | G49: 8570736.85 | H49: 7969725.1 | I49: =G49-H49 -> 601011.75 | J49: =IF(I49=0,"",I49/H49) -> 0.07541185454 | K49: 20301495
D50: =IF(D49=0,"",(D49/C49)-1) -> 0.1171613637 | E50: =IF(E49=0,"",(E49/C49)-1) -> 0.1171613637 | K50: =IF(K49=0,"",(K49/C49)-1) -> 0.1171613637
A51: Unpaid salary, allowances & benefits in arrears:
A53: Board Members of Entities
A54: Basic Salaries and Wages | I54: =G54-H54 -> 0 | J54: =IF(I54=0,"",I54/H54) -> 
A55: Pension and UIF Contributions | I55: 0
A56: Medical Aid Contributions | I56: 0
A57: Overtime | I57: =G57-H57 -> 0 | J57: =IF(I57=0,"",I57/H57) -> 
A58: Performance Bonus | I58: =G58-H58 -> 0 | J58: =IF(I58=0,"",I58/H58) -> 
A59: Motor Vehicle Allowance | I59: =G59-H59 -> 0 | J59: =IF(I59=0,"",I59/H59) -> 
A60: Cellphone Allowance | I60: =G60-H60 -> 0 | J60: =IF(I60=0,"",I60/H60) -> 
A61: Housing Allowances | I61: =G61-H61 -> 0 | J61: =IF(I61=0,"",I61/H61) -> 
A62: Other benefits and allowances | I62: 0
A63: Board Fees | I63: =G63-H63 -> 0 | J63: =IF(I63=0,"",I63/H63) -> 
A64: Payments in lieu of leave | I64: 0
A65: Long service awards | I65: 0
A66: Post-retirement benefit obligations | I66: 0
A67: Sub Total - Board Members of Entities | B67: 2 | C67: =SUM(C54:C66) -> 0 | D67: 0 | E67: 0 | F67: =SUM(F54:F66) -> 0 | G67: =SUM(G54:G66) -> 0 | H67: =SUM(H54:H66) -> 0 | I67: 0 | J67: =IF(I67=0,"",I67/H67) ->  | K67: 0
A68: % increase | B68: 4 | D68: =IF(D67=0,"",(D67/C67)-1) ->  | E68: =IF(E67=0,"",(E67/C67)-1) ->  | K68: =IF(K67=0,"",(K67/C67)-1) -> 
A70: Senior Managers of Entities
A71: Basic Salaries and Wages | I71: =G71-H71 -> 0 | J71: =IF(I71=0,"",I71/H71) -> 
A72: Pension and UIF Contributions | I72: 0
A73: Medical Aid Contributions | I73: 0
A74: Overtime | I74: 0
A75: Performance Bonus | I75: =G75-H75 -> 0 | J75: =IF(I75=0,"",I75/H75) -> 
A76: Motor Vehicle Allowance | I76: =G76-H76 -> 0 | J76: =IF(I76=0,"",I76/H76) -> 
A77: Cellphone Allowance | I77: =G77-H77 -> 0 | J77: =IF(I77=0,"",I77/H77) -> 
A78: Housing Allowances | I78: =G78-H78 -> 0 | J78: =IF(I78=0,"",I78/H78) -> 
A79: Other benefits and allowances | I79: 0
A80: Payments in lieu of leave | I80: 0
A81: Long service awards | I81: 0
A82: Post-retirement benefit obligations | B82: 2 | I82: 0
A83: Sub Total - Senior Managers of Entities | C83: =SUM(C71:C82) -> 0 | D83: 0 | E83: 0 | F83: =SUM(F71:F82) -> 0 | G83: =SUM(G71:G82) -> 0 | H83: =SUM(H71:H82) -> 0 | I83: 0 | J83: =IF(I83=0,"",I83/H83) ->  | K83: 0
A84: % increase | B84: 4 | D84: =IF(D83=0,"",(D83/C83)-1) ->  | E84: =IF(E83=0,"",(E83/C83)-1) ->  | K84: =IF(K83=0,"",(K83/C83)-1) -> 
A86: Other Staff of Entities
A87: Basic Salaries and Wages | I87: =G87-H87 -> 0 | J87: =IF(I87=0,"",I87/H87) -> 
A88: Pension and UIF Contributions | I88: 0
A89: Medical Aid Contributions | I89: =G89-H89 -> 0 | J89: =IF(I89=0,"",I89/H89) -> 
A90: Overtime | I90: =G90-H90 -> 0 | J90: =IF(I90=0,"",I90/H90) -> 
A91: Performance Bonus | I91: =G91-H91 -> 0 | J91: =IF(I91=0,"",I91/H91) -> 
A92: Motor Vehicle Allowance | I92: =G92-H92 -> 0 | J92: =IF(I92=0,"",I92/H92) -> 
A93: Cellphone Allowance | I93: 0
A94: Housing Allowances | I94: 0
A95: Other benefits and allowances | I95: 0
A96: Payments in lieu of leave | I96: 0
A97: Long service awards | I97: 0
A98: Post-retirement benefit obligations | I98: 0
A99: Sub Total - Other Staff of Entities | C99: =SUM(C87:C98) -> 0 | D99: 0 | E99: 0 | F99: 0 | G99: 0 | H99: 0 | I99: 0 | J99: =IF(I99=0,"",I99/H99) ->  | K99: =SUM(K87:K98) -> 0
A100: % increase | B100: 4 | D100: =IF(D99=0,"",(D99/C99)-1) ->  | E100: =IF(E99=0,"",(E99/C99)-1) ->  | K100: =IF(K99=0,"",(K99/C99)-1) -> 
A102: Total Municipal Entities | C102: =C67+C83+C99 -> 0 | D102: 0 | E102: 0 | F102: 0 | G102: 0 | H102: 0 | I102: =G102-H102 -> 0 | J102: =IF(I102=0,"",I102/H102) ->  | K102: =K67+K83+K99 -> 0
A104: TOTAL SALARY, ALLOWANCES & BENEFITS | C104: =C49+C102 -> 18172392.69 | D104: 20301495 | E104: 20301495 | F104: 1653637.9 | G104: 8570736.85 | H104: 7969725.1 | I104: =G104-H104 -> 601011.75 | J104: =IF(I104=0,"",I104/H104) -> 0.07541185454 | K104: =K49+K102 -> 20301495
A105: % increase | B105: 4 | D105: =IF(D104=0,"",(D104/C104)-1) -> 0.1171613637 | E105: =IF(E104=0,"",(E104/C104)-1) -> 0.1171613637 | K105: =IF(K104=0,"",(K104/C104)-1) -> 0.1171613637
A106: TOTAL MANAGERS AND STAFF | C106: =C30+C46+C83+C99 -> 16252967 | D106: 18239129 | E106: 18239129 | F106: 1469563 | G106: 7475067 | H106: 6877360 | I106: 597707 | J106: =IF(I106=0,"",I106/H106) -> 0.08690936638 | K106: =K30+K46+K83+K99 -> 18239129
A107: =head27a -> References
A108: 1. Include 'Loans and advances' where applicable if any reportable amounts until phased compliance with s164 of MFMA achieved
A109: 2. If benefits in kind are provided (e.g. provision of living quarters) the full market value must be shown as the cost to the municipality
A110: 3. s57 of the Systems Act
A111: 4. B/A, C/A, D/A
A112: Column Definitions:
A113: A. Audited actual 2005/06 (audited financial statements). If audited amounts unavailable, unaudited amounts must be provided with a note stating these are unaudited
A114: B. The original budget approved by council for the 2006/07 budget year.
A115: C. The budget for 2006/07 budget year as adjusted by council resolution in terms of section 28 of the MFMA.
A116: D. An estimate of final actual amounts (pre audit - 2006/07 budget year) at the time of preparing the budget for the 2007/08 budget year. This may differ from C.

Sheet SC9
A1: =muni& " - "&S71O& " - "&Head57 -> NC074 Kareeberg - Supporting Table SC9 Monthly Budget Statement - actuals and revised targets for cash receipts - Mid-Year Assessment
A2: =desc -> Description | B2: =head27 -> Ref | C2: =Head2 -> Budget Year 2017/18 | O2: ='Template names'!B5 -> 2017/18 Medium Term Revenue & Expenditure Framework
C3: July | D3: August | E3: Sept | F3: October | G3: Nov | H3: Dec | I3: January | J3: Feb | K3: March | L3: April | M3: May | N3: June | O3: =Head9 -> Budget Year 2017/18 | P3: =Head10 -> Budget Year +1 2018/19 | Q3: =Head11 -> Budget Year +2 2019/20
A4: R thousands | B4: 1 | C4: Outcome | D4: Budget | E4: Budget | F4: Budget | G4: Budget | H4: Budget | I4: Budget | J4: Budget | K4: Budget | L4: Budget | M4: Budget | N4: Budget
A5: Cash Receipts By Source
A6: Property rates | C6: 175311.19 | D6: 721547 | E6: 1639988 | F6: 421119 | G6: 371488 | H6: 206498 | I6: 162133 | J6: 149684 | K6: 100634 | L6: 85308 | M6: 88389 | N6: =O6-SUM(C6:M6) -> -707404.19 | O6: 3414695 | P6: 3794051 | Q6: 4170746
A7: Property rates - penalties & collection charges | C7: 3773.18 | D7: 431806 | E7: 488327 | F7: 1089853 | G7: 512423 | H7: 442841 | I7: 608619 | J7: 707842 | K7: 779041 | L7: 887494 | M7: 577167 | N7: -6510186.18 | O7: 19000 | P7: 19950 | Q7: 20947
A8: Service charges - electricity revenue | C8: 201632.55 | D8: 86957 | E8: 130644 | F8: 0 | G8: 146922 | H8: 118256 | I8: 805834 | J8: 268072 | K8: 309128 | L8: 389112 | M8: 457547 | N8: 5990926.45 | O8: 8905031 | P8: 10718680 | Q8: 12298839
A9: Service charges - water revenue | C9: 0 | D9: 136227 | E9: 204668 | F9: 0 | G9: 230169 | H9: 185261 | I9: 214964 | J9: 193623 | K9: 173248 | L9: 542792 | M9: 333338 | N9: 2370758 | O9: 4585048 | P9: 4622326 | Q9: 5248770
A10: Service charges - sanitation revenue | C10: 0 | D10: 216784 | E10: 325696 | F10: 0 | G10: 366277 | H10: 294814 | I10: 354428 | J10: 297962 | K10: 296409 | L10: 557989 | M10: 416029 | N10: -469601 | O10: 2656787 | P10: 2922480 | Q10: 3214738
A11: Service charges - refuse | C11: 0 | D11: 0 | E11: 0 | F11: 0 | G11: 0 | H11: 0 | I11: 0 | J11: 0 | K11: 0 | L11: 0 | M11: 0 | N11: 3661763 | O11: 3661763 | P11: 4071104 | Q11: 4351451
A12: Service charges - other | C12: 0 | D12: 114107 | E12: 40339 | F12: 26424 | G12: 20593 | H12: 28477 | I12: 33027 | J12: 6418 | K12: 3688 | L12: 25279 | M12: 14614 | N12: -312966 | O12: 0 | P12: 0 | Q12: 0
A13: Rental of facilities and equipment | C13: 5623.36 | D13: 99290 | E13: 92721 | F13: 88838 | G13: 86221 | H13: 393624 | I13: 183547 | J13: 110152 | K13: 102171 | L13: 176433 | M13: 114776 | N13: -1231055.36 | O13: 222341 | P13: 233403 | Q13: 245074
A14: Interest earned - external investments | C14: 0 | D14: 238 | E14: 188 | F14: 186 | G14: 184 | H14: 182 | I14: 272 | J14: 270 | K14: 269 | L14: 266 | M14: 264 | N14: 1164981 | O14: 1167300 | P14: 1361850 | Q14: 1429943
A15: Interest earned - outstanding debtors | C15: 109.57 | D15: 0 | E15: 0 | F15: 0 | G15: 0 | H15: 0 | I15: 0 | J15: 0 | K15: 0 | L15: 0 | M15: 0 | N15: 3190.43 | O15: 3300 | P15: 3465 | Q15: 3638
A16: Dividends received | C16: 0 | D16: 1725 | E16: 1310 | F16: 941 | G16: 28 | H16: 675 | I16: 16 | J16: 2143 | K16: 3018 | L16: 346 | M16: 1098 | N16: -11300 | O16: 0 | P16: 0 | Q16: 0
A17: Fines | C17: 500 | D17: 873 | E17: 525 | F17: 222 | G17: 318 | H17: 318 | I17: 489 | J17: 886 | K17: 615 | L17: 552 | M17: 417 | N17: 6515 | O17: 12230 | P17: 12842 | Q17: 13484
A18: Licences and permits | C18: 1316 | D18: 12814 | E18: 24830 | F18: 18705 | G18: 22319 | H18: 21043 | I18: 14713 | J18: 114909 | K18: 9702 | L18: 2388 | M18: 7844 | N18: -243163 | O18: 7420 | P18: 7791 | Q18: 8181
A19: Agency services | C19: 16643.57 | D19: 0 | E19: 0 | F19: 4729750 | G19: 0 | H19: 0 | I19: 5695250 | J19: 0 | K19: 0 | L19: 4729750 | M19: 0 | N19: -15068060.57 | O19: 103333 | P19: 101850 | Q19: 102760
A20: Transfer receipts - operating | C20: 8498000 | D20: 192469 | E20: 57833 | F20: 145648 | G20: 126528 | H20: 103390 | I20: 125126 | J20: 94348 | K20: 240593 | L20: 12706 | M20: 278964 | N20: 13199393 | O20: 23074998 | P20: 23860998 | Q20: 25660997
A21: Other revenue | C21: 9060 | N21: 9617998 | O21: 9627058 | P21: 12052351 | Q21: 13424682
A22: Cash Receipts by Source | C22: =SUM(C6:C21) -> 8911969.42 | D22: 2014837 | E22: 3007069 | F22: 6521686 | G22: 1883470 | H22: 1795379 | I22: 8198418 | J22: 1946309 | K22: 2018516 | L22: 7410415 | M22: 2290447 | N22: 11461788.58 | O22: 57460304 | P22: 63783141 | Q22: 70194250
N23: =O23-SUM(C23:M23) -> 0
A24: Other Cash Flows by Source | N24: 0
A25: Transfer receipts - capital | C25: 49530 | D25: 122786 | E25: 0 | F25: 0 | G25: 0 | H25: 7889666.667 | I25: 0 | J25: 0 | K25: 7889666.667 | L25: 0 | M25: 0 | N25: 7717350.667 | O25: 23669000 | P25: 28117000 | Q25: 48610000
A26: Contributions & Contributed assets | D26: 0 | E26: 0 | F26: 0 | G26: 0 | H26: 0 | I26: 0 | J26: 0 | K26: 0 | L26: 0 | M26: 0 | N26: 0 | O26: 0 | P26: 0 | Q26: 0
A27: Proceeds on disposal of PPE | D27: 0 | E27: 0 | F27: 0 | G27: 0 | H27: 0 | I27: 0 | J27: 0 | K27: 0 | L27: 0 | M27: 0 | N27: 0 | O27: 0 | P27: 0 | Q27: 0
A28: Short term loans | D28: 0 | E28: 0 | F28: 0 | G28: 0 | H28: 0 | I28: 0 | J28: 0 | K28: 0 | L28: 0 | M28: 0 | N28: 0 | O28: 0 | P28: 0 | Q28: 0
A29: Borrowing long term/refinancing | D29: 0 | E29: 0 | F29: 0 | G29: 0 | H29: 0 | I29: 0 | J29: 0 | K29: 0 | L29: 0 | M29: 0 | N29: 0 | O29: 0 | P29: 0 | Q29: 0
A30: Increase in consumer deposits | D30: 1100 | E30: 4050 | F30: 3300 | G30: 1100 | H30: 2200 | I30: 471 | J30: 941 | K30: 1176 | L30: 471 | M30: 941 | N30: -5750 | O30: 10000 | P30: 10000 | Q30: 10000
A31: Receipt of non-current debtors | D31: 1917 | E31: 640 | F31: 642 | G31: 644 | H31: 646 | I31: 805 | J31: 806 | K31: 809 | L31: 812 | M31: 815 | N31: -46 | O31: 8490 | P31: 7532 | Q31: 7900
A32: Receipt of non-current receivables | D32: 0 | E32: 0 | F32: 0 | G32: 0 | H32: 0 | I32: 0 | J32: 0 | K32: 0 | L32: 0 | M32: 0 | N32: 0 | O32: 0 | P32: 0 | Q32: 0
A33: Change in non-current investments | D33: 0 | E33: 0 | F33: 0 | G33: 0 | H33: 0 | I33: 0 | J33: 0 | K33: 0 | L33: 0 | M33: 0 | N33: 0
A34: Total Cash Receipts by Source | C34: =SUM(C22:C33) -> 8961499.42 | D34: 2140640 | E34: 3011759 | F34: 6525628 | G34: 1885214 | H34: 9687891.667 | I34: 8199694 | J34: 1948056 | K34: 9910167.667 | L34: 7411698 | M34: 2292203 | N34: 19173343.25 | O34: 81147794 | P34: 91917673 | Q34: 118822150
N35: =O35-SUM(C35:M35) -> 0
A36: Cash Payments by Type | N36: 0
A37: Employee related costs | C37: 1284382.26 | D37: 1255933 | E37: 1338992 | F37: 1639658 | G37: 1397924 | H37: 1815114 | I37: 1497283 | J37: 1510384 | K37: 1594863 | L37: 1165244 | M37: 1440353 | N37: 5061625.74 | O37: 21001756 | P37: 22581725 | Q37: 24351814
A38: Remuneration of councillors | C38: 172060.85 | D38: 201944 | E38: 206058 | F38: 201920 | G38: 201843 | H38: 206058 | I38: 204291 | J38: 199744 | K38: 282845 | L38: 206845 | M38: 210621 | N38: 205161.15 | O38: 2499391 | P38: 2655780 | Q38: 2822195
A39: Interest paid | D39: 0 | E39: 0 | F39: 0 | G39: 0 | H39: 0 | I39: 0 | J39: 0 | K39: 0 | L39: 0 | M39: 0 | N39: 1073129 | O39: 1073129 | P39: 1117803 | Q39: 1274127
A40: Bulk purchases - Electricity | C40: 970301.8 | D40: 1217065 | E40: 910666 | F40: 732334 | G40: 773708 | H40: 789658 | I40: 594491 | J40: 837029 | K40: 690490 | L40: 671708 | M40: 718330 | N40: 1770163.2 | O40: 10675944 | P40: 11812072 | Q40: 13022942
A41: Bulk purchases - Water & Sewer | D41: 0 | E41: 0 | F41: 0 | G41: 0 | H41: 0 | I41: 0 | J41: 0 | K41: 0 | L41: 0 | M41: 0 | N41: 0 | O41: 0 | P41: 0 | Q41: 0
A42: Other materials | C42: 30411.42 | D42: 61506 | E42: 38104 | F42: 62780 | G42: 146776 | H42: 147893 | I42: 34405 | J42: 26310 | K42: 23816 | L42: 16831 | M42: 13242 | N42: 201057.58 | O42: 803132 | P42: 628190 | Q42: 1020550
A43: Contracted services | C43: 179756.71 | D43: 150731 | E43: 93381 | F43: 153852 | G43: 359701 | H43: 267370 | I43: 84315 | J43: 64478 | K43: 58364 | L43: 41248 | M43: 32452 | N43: 482569.29 | O43: 1968218 | P43: 2028029 | Q43: 2268238
A44: Grants and subsidies paid - other municipalities | D44: 0 | E44: 0 | F44: 0 | G44: 0 | H44: 0 | I44: 0 | J44: 0 | K44: 0 | L44: 0 | M44: 0 | N44: 0 | O44: 0 | P44: 0 | Q44: 0
A45: Grants and subsidies paid - other | C45: 1928932.49 | D45: -13 | E45: -19 | F45: 2297818.75 | G45: 0 | H45: 0 | I45: 2297818.75 | J45: 0 | K45: 0 | L45: 2297818.75 | M45: 0 | N45: 368918.26 | O45: 9191275 | P45: 10512574 | Q45: 11256662
A46: General expenses | C46: 868176.17 | D46: 238023 | E46: 380192 | F46: 559724 | G46: 897856 | H46: 967737 | I46: 137602 | J46: 116656 | K46: 178378 | L46: 84345 | M46: 122628 | N46: 3944487.83 | O46: 8495805 | P46: 9061149 | Q46: 9760416
A47: Cash Payments by Type | B47: =SUM(B37:B46) -> 0 | C47: =SUM(C37:C46) -> 5434021.7 | D47: =SUM(D37:D46) -> 3125189 | E47: 2967374 | F47: 5648086.75 | G47: 3777808 | H47: 4193830 | I47: 4850205.75 | J47: 2754601 | K47: 2828756 | L47: 4484039.75 | M47: 2537626 | N47: 13107112.05 | O47: 55708650 | P47: 60397322 | Q47: 65776944
N48: =O48-SUM(C48:M48) -> 0
A49: Other Cash Flows/Payments by Type
A50: Capital assets | C50: 49530 | D50: 1500000 | E50: 1500000 | F50: 1500000 | G50: 1500000 | H50: 3834500 | I50: 1500000 | J50: 1500000 | K50: 1500000 | L50: 1500000 | M50: 1500000 | N50: =O50-SUM(C50:M50) -> 6284970 | O50: 23669000 | P50: 28117000 | Q50: 48610000
A51: Repayment of borrowing | C51: 0 | D51: 0 | E51: 0 | F51: 0 | G51: 0 | H51: 0 | I51: 0 | J51: 0 | K51: 0 | L51: 0 | M51: 0 | N51: =O51-SUM(C51:M51) -> 0
A52: Other Cash Flows/Payments | D52: 0 | E52: 0 | F52: 0 | G52: 0 | H52: 0 | I52: 0 | J52: 0 | K52: 0 | L52: 0 | M52: 0 | N52: =O52-SUM(C52:M52) -> 0
A53: Total Cash Payments by Type | B53: =SUM(B47:B52) -> 0 | C53: 5483551.7 | D53: 4625189 | E53: 4467374 | F53: 7148086.75 | G53: 5277808 | H53: 8028330 | I53: 6350205.75 | J53: 4254601 | K53: 4328756 | L53: 5984039.75 | M53: 4037626 | N53: 19392082.05 | O53: 79377650 | P53: 88514322 | Q53: 114386944
N54: =O54-SUM(C54:M54) -> 0
A55: NET INCREASE/(DECREASE) IN CASH HELD | B55: =B34-B53 -> 0 | C55: 3477947.72 | D55: -2484549 | E55: -1455615 | F55: -622458.75 | G55: -3392594 | H55: 1659561.667 | I55: 1849488.25 | J55: -2306545 | K55: 5581411.667 | L55: 1427658.25 | M55: -1745423 | N55: -218738.8033 | O55: 1770144 | P55: 3403351 | Q55: 4435206
A56: Cash/cash equivalents at the month/year beginning: | C56: 23253650 | D56: =C57 -> 26731597.72 | E56: =D57 -> 24247048.72 | F56: 22791433.72 | G56: 22168974.97 | H56: 18776380.97 | I56: 20435942.64 | J56: 22285430.89 | K56: 19978885.89 | L56: 25560297.55 | M56: 26987955.8 | N56: 25242532.8 | O56: =C56 -> 23253650 | P56: =O57 -> 25023794 | Q56: =P57 -> 28427145
A57: Cash/cash equivalents at the month/year end: | C57: =C55+C56 -> 26731597.72 | D57: =D55+D56 -> 24247048.72 | E57: =E55+E56 -> 22791433.72 | F57: 22168974.97 | G57: 18776380.97 | H57: 20435942.64 | I57: 22285430.89 | J57: 19978885.89 | K57: 25560297.55 | L57: 26987955.8 | M57: 25242532.8 | N57: 25023794 | O57: =O55+O56 -> 25023794 | P57: =P55+P56 -> 28427145 | Q57: =Q55+Q56 -> 32862351
A58: =head27a -> References
A59: 1. Replace 'budget' heading with adjusted budget, or 'outcome' only for month/s complete
A60: 2. Total of monthly amounts must always agree to the approved or adjusted budget
A61: 3. Amend 'cash-at-beginning' when prior year actual known (as part of the adjustments budget)
E66: =E47+E65 -> 2967374 | F66: 5648086.75 | G66: 3777808 | H66: 4193830 | I66: 4850205.75 | J66: 2754601 | K66: 2828756 | L66: 4484039.75 | N66: =N47+N65 -> 13107112.05 | O66: 55708650 | P66: 60397322
E67: =E55-E65 -> -1455615 | F67: -622458.75 | G67: -3392594 | H67: 1659561.667 | I67: 1849488.25 | J67: -2306545 | K67: 5581411.667 | L67: 1427658.25 | M67: =M55-M65 -> -1745423 | N67: =N55-N65 -> -218738.8033 | O67: 1770144 | P67: 3403351

Sheet SC10
A1: =muni& " - "&S71P& " - "&Head57 -> NC074 Kareeberg - NOT REQUIRED - municipality does not have entities or this is the parent municipality's budget - Mid-Year Assessment
A2: =desc -> Description | B2: =head27 -> Ref | C2: =Head1 -> 2016/17 | D2: =Head2 -> Budget Year 2017/18
C3: =Head5 -> Audited Outcome | D3: =Head6 -> Original Budget | E3: =Head7 -> Adjusted Budget | F3: =Head38 -> Monthly actual | G3: =Head39 -> YearTD actual | H3: =Head40 -> YearTD budget | I3: =Head41 -> YTD variance | J3: =Head41 -> YTD variance | K3: =Head8 -> Full Year Forecast
A4: R thousands | B4: 1 | J4: %
A5: ='C4-FinPerf RE'!A5 -> Revenue By Source
A6: ='C4-FinPerf RE'!A6 -> Property rates | I6: =G6-H6 -> 0 | J6: =IF(I6=0,"",I6/H6) -> 
A7: ='C4-FinPerf RE'!A7 -> Property rates - penalties & collection charges | I7: 0 | J7: =IF(I7=0,"",I7/H7) -> 
A8: ='C4-FinPerf RE'!A8 -> Service charges - electricity revenue | I8: 0
A9: ='C4-FinPerf RE'!A9 -> Service charges - water revenue | I9: 0
A10: ='C4-FinPerf RE'!A10 -> Service charges - sanitation revenue | I10: 0
A11: ='C4-FinPerf RE'!A11 -> Service charges - refuse revenue | I11: 0
A12: ='C4-FinPerf RE'!A12 -> Service charges - other | I12: 0
A13: ='C4-FinPerf RE'!A13 -> Rental of facilities and equipment | I13: 0
A14: ='C4-FinPerf RE'!A14 -> Interest earned - external investments | I14: 0
A15: ='C4-FinPerf RE'!A15 -> Interest earned - outstanding debtors | I15: 0
A16: ='C4-FinPerf RE'!A16 -> Dividends received | I16: 0
A17: ='C4-FinPerf RE'!A17 -> Fines | I17: 0
A18: ='C4-FinPerf RE'!A18 -> Licences and permits | I18: 0
A19: ='C4-FinPerf RE'!A19 -> Agency services | I19: 0
A20: ='C4-FinPerf RE'!A20 -> Transfers recognised - operational | I20: 0
A21: ='C4-FinPerf RE'!A21 -> Other revenue | I21: 0
A22: ='C4-FinPerf RE'!A22 -> Gains on disposal of PPE | I22: 0
A23: Total Revenue (excluding capital transfers and contributions) | C23: =SUM(C6:C22) -> 0 | D23: 0 | E23: 0 | F23: 0 | G23: 0 | H23: 0 | I23: =G23-H23 -> 0 | K23: =SUM(K6:K22) -> 0
A25: Expenditure By Type
A26: ='C4-FinPerf RE'!A26 -> Employee related costs | I26: =G26-H26 -> 0 | J26: =IF(I26=0,"",I26/H26) -> 
A27: ='C4-FinPerf RE'!A27 -> Remuneration of councillors | I27: 0
A28: ='C4-FinPerf RE'!A28 -> Debt impairment | I28: 0
A29: ='C4-FinPerf RE'!A29 -> Depreciation & asset impairment | I29: 0
A30: ='C4-FinPerf RE'!A30 -> Finance charges | I30: 0
A31: ='C4-FinPerf RE'!A31 -> Bulk purchases | I31: 0
A32: ='C4-FinPerf RE'!A32 -> Other materials | I32: 0
A33: ='C4-FinPerf RE'!A33 -> Contracted services | I33: 0
A34: ='C4-FinPerf RE'!A34 -> Transfers and grants | I34: 0
A35: ='C4-FinPerf RE'!A35 -> Other expenditure | I35: 0
A36: ='C4-FinPerf RE'!A36 -> Loss on disposal of PPE | I36: 0
A37: Total Expenditure | C37: =SUM(C26:C36) -> 0 | D37: 0 | E37: 0 | F37: 0 | G37: 0 | H37: 0 | I37: 0 | K37: =SUM(K26:K36) -> 0
I38: 0
A39: ='C4-FinPerf RE'!A39 -> Surplus/(Deficit) | C39: =C23-C37 -> 0 | D39: 0 | E39: 0 | F39: 0 | G39: 0 | H39: 0 | I39: 0 | K39: =K23-K37 -> 0
A40: ='C4-FinPerf RE'!A40 -> Transfers recognised - capital | I40: 0
A41: ='C4-FinPerf RE'!A41 -> Contributions recognised - capital | I41: 0
A42: ='C4-FinPerf RE'!A42 -> Contributed assets | I42: 0
A43: ='C4-FinPerf RE'!A43 -> Surplus/(Deficit) after capital transfers & contributions | C43: =C39+SUM(C40:C42) -> 0 | D43: =D39+SUM(D40:D42) -> 0 | E43: 0 | F43: 0 | G43: 0 | H43: 0 | I43: 0 | K43: 0
A44: ='C4-FinPerf RE'!A44 -> Taxation | I44: 0
A45: ='C4-FinPerf RE'!A45 -> Surplus/(Deficit) after taxation | C45: =C43-C44 -> 0 | D45: 0 | E45: 0 | F45: 0 | G45: 0 | H45: 0 | I45: 0 | K45: =K43-K44 -> 0
A46: =head27a -> References
A47: 1. Votes (consolidated) are revenue sources and expenditure type

Sheet SC11
A1: =muni& " - "&S71Q& " - "&Head57 -> NC074 Kareeberg - NOT REQUIRED - municipality does not have entities or this is the parent municipality's budget - Mid-Year Assessment
A2: =desc -> Description | B2: =head27 -> Ref | C2: =Head1 -> 2016/17 | D2: =Head2 -> Budget Year 2017/18
C3: =Head5 -> Audited Outcome | D3: =Head6 -> Original Budget | E3: =Head7 -> Adjusted Budget | F3: =Head38 -> Monthly actual | G3: =Head39 -> YearTD actual | H3: =Head40 -> YearTD budget | I3: =Head41 -> YTD variance | J3: =Head41 -> YTD variance | K3: =Head8 -> Full Year Forecast
A4: R thousands | J4: %
A5: Revenue By Municipal Entity
A6: Insert name of municipal entity | I6: =G6-H6 -> 0 | J6: =IF(I6=0,"",I6/H6) -> 
I7: 0 | J7: =IF(I7=0,"",I7/H7) -> 
I8: 0
I9: 0
I10: 0
I11: 0
I12: 0
I13: 0
I14: 0
I15: 0
A16: Total Operating Revenue | B16: 1 | C16: =SUM(C6:C15) -> 0 | D16: 0 | E16: 0 | F16: 0 | G16: 0 | H16: 0 | I16: 0 | K16: =SUM(K6:K15) -> 0
A18: Expenditure By Municipal Entity
A19: =A6 -> Insert name of municipal entity | I19: 0 | J19: =IF(I19=0,"",I19/H19) -> 
A20: =IF(A7="","",A7) ->  | I20: 0
A21: =IF(A8="","",A8) ->  | I21: 0
I22: 0
I23: 0
I24: 0
I25: 0
I26: 0
I27: 0
I28: 0
A29: Total Operating Expenditure | B29: 2 | C29: =SUM(C19:C28) -> 0 | D29: 0 | E29: 0 | F29: 0 | G29: 0 | H29: 0 | I29: 0 | K29: =SUM(K19:K28) -> 0
A31: =Head42 -> Surplus/ (Deficit) for the yr/period | C31: =C16-C29 -> 0 | D31: =D16-D29 -> 0 | E31: 0 | F31: 0 | G31: 0 | H31: 0 | I31: =I16+I29 -> 0 | K31: 0
A32: Capital Expenditure By Municipal Entity
A33: =$A$6 -> Insert name of municipal entity | I33: 0
A34: =IF(A7="","",A7) ->  | I34: 0
A35: =IF(A8="","",A8) ->  | I35: 0
I36: 0
I37: 0
I38: 0
I39: 0
I40: 0
I41: 0
A43: Total Capital Expenditure | B43: 3 | C43: =SUM(C32:C42) -> 0 | D43: =SUM(D32:D42) -> 0 | E43: 0 | F43: 0 | G43: 0 | H43: =SUM(H32:H42) -> 0 | I43: =G43-H43 -> 0 | K43: 0
A44: =head27a -> References
A45: 1. Must reconcile to the sum of all municipal entity monthly revenue reports
A46: 2. Must reconcile to the sum of all municipal entity monthly expenditure reports
A47: 3. YTD = Year to date; FAV - favourable variance or unfavourable variance
A48: 4. Material variances to be explained
A49: 5. Insert additional 'Adjustment' Budget column for each Adjustment made by an entity

Sheet SC12
A1: =muni& " - "&S71R& " - "&Head57 -> NC074 Kareeberg - Supporting Table SC12 Monthly Budget Statement - capital expenditure trend - Mid-Year Assessment
A2: Month | B2: =Head1 -> 2016/17 | C2: =Head2 -> Budget Year 2017/18
B3: =Head5 -> Audited Outcome | C3: =Head6 -> Original Budget | D3: =Head7 -> Adjusted Budget | E3: =Head38 -> Monthly actual | F3: =Head39 -> YearTD actual | G3: =Head40 -> YearTD budget | H3: =Head41 -> YTD variance | I3: =Head41 -> YTD variance | J3: % spend of Original Budget
A4: R thousands | I4: %
A5: Monthly expenditure performance trend
A6: July | C6: 3591250 | D6: 3591250 | E6: 49530 | F6: =IF(E6>0,E6,"") -> 49530 | G6: =IF(D6>0,D6,C6) -> 3591250 | H6: =IF(F6="",0,G6-F6) -> 3541720 | I6: =IF(F6="","",IF(H6=0,"",H6/G6)) -> 0.9862081448 | J6: =IF(F6="","",F6/$C$18) -> 0.001149321267
A7: August | C7: 3591250 | D7: 3591250 | E7: 122786 | F7: =IF(E7>0,E7+F6,"") -> 172316 | G7: =IF(D7>0,D7+D6,C7+C6) -> 7182500 | H7: 7010184 | I7: 0.9760089105 | J7: 0.003998514909
A8: September | C8: 3591250 | D8: 3591250 | E8: 336800.94 | F8: =IF(E8>0,E8+F7,"") -> 509116.94 | G8: =IF(D8>0,D8+G7,C8+G7) -> 10773750 | H8: 10264633.06 | I8: 0.9527446859 | J8: 0.01181382852
A9: October | C9: 3591250 | D9: 3591250 | E9: 169763 | F9: 678879.94 | G9: =IF(D9>0,D9+G8,C9+G8) -> 14365000 | H9: 13686120.06 | I9: 0.9527406934 | J9: 0.01575310222
A10: November | C10: 3591250 | D10: 3591250 | E10: 80557.71 | F10: 759437.65 | G10: 17956250 | H10: 17196812.35 | I10: 0.9577062221 | J10: 0.01762240747
A11: December | C11: 3591250 | D11: 3591250 | E11: 1357545.21 | F11: 2116982.86 | G11: 21547500 | H11: 19430517.14 | I11: 0.9017527388 | J11: 0.04912363058
A12: January | C12: 3591250 | D12: 3591250 | G12: 25138750 | H12: 0
A13: February | C13: 3591250 | D13: 3591250 | G13: 28730000 | H13: 0
A14: March | C14: 3591250 | D14: 3591250 | G14: 32321250 | H14: 0
A15: April | C15: 3591250 | D15: 3591250 | G15: 35912500 | H15: 0
A16: May | C16: 3591250 | D16: 3591250 | G16: 39503750 | H16: 0
A17: June | C17: 3591250 | D17: 3591250 | G17: 43095000 | H17: =IF(F17="",0,G17-F17) -> 0 | I17: =IF(F17="","",IF(H17=0,"",H17/G17)) ->  | J17: =IF(F17="","",F17/$C$18) -> 
A18: Total Capital expenditure | B18: =SUM(B6:B17) -> 0 | C18: =SUM(C6:C17) -> 43095000 | D18: =SUM(D6:D17) -> 43095000 | E18: =SUM(E6:E17) -> 2116982.86

Sheet SC13a
A1: =muni& " - "&S71Sa& " - "&Head57 -> NC074 Kareeberg - Supporting Table SC13a Monthly Budget Statement - capital expenditure on new assets by asset class - Mid-Year Assessment
A2: =desc -> Description | B2: =head27 -> Ref | C2: =Head1 -> 2016/17 | D2: =Head2 -> Budget Year 2017/18
C3: =Head5 -> Audited Outcome | D3: =Head6 -> Original Budget | E3: =Head7 -> Adjusted Budget | F3: =Head38 -> Monthly actual | G3: =Head39 -> YearTD actual | H3: =Head40 -> YearTD budget | I3: =Head41 -> YTD variance | J3: =Head41 -> YTD variance | K3: =Head8 -> Full Year Forecast
A4: R thousands | B4: 1 | J4: %
A5: Capital expenditure on new assets by Asset Class/Sub-class
A7: Infrastructure | C7: =C8+C11+C15+C19+C22 -> 10349398 | D7: 43095000 | E7: 43095000 | F7: 1357545.21 | G7: 2142057.05 | H7: 21547499.96 | I7: =H7-G7 -> 19405442.91 | J7: =IF(I7=0,"",I7/H7) -> 0.9005890682 | K7: =K8+K11+K15+K19+K22 -> 43095000
A8: Infrastructure - Road transport | C8: =SUM(C9:C10) -> 3704000 | D8: 8095000 | E8: 8095000 | F8: 1298961.94 | G8: 1441560.05 | H8: 4047500 | I8: 2605939.95 | J8: 0.6438393947 | K8: =SUM(K9:K10) -> 8095000
A9: Roads, Pavements & Bridges | C9: 3704000 | D9: 8095000 | E9: 8095000 | F9: 1298961.94 | G9: 1441560.05 | H9: 4047500 | I9: 2605939.95 | J9: 0.6438393947 | K9: 8095000
A10: Storm water | I10: 0
A11: Infrastructure - Electricity | C11: =SUM(C12:C14) -> 886398 | D11: 1000000 | E11: 1000000 | F11: 6960 | G11: 108226 | H11: 499999.98 | I11: 391773.98 | J11: 0.7835479913 | K11: =SUM(K12:K14) -> 1000000
A12: Generation | I12: 0
A13: Transmission & Reticulation | C13: 886398 | D13: 1000000 | E13: 1000000 | F13: 6960 | G13: 108226 | H13: 499999.98 | I13: 391773.98 | J13: 0.7835479913 | K13: 1000000
A14: Street Lighting | I14: 0
A15: Infrastructure - Water | C15: =SUM(C16:C18) -> 2946000 | D15: 34000000 | E15: 34000000 | F15: 51623.27 | G15: 592271 | H15: 16999999.98 | I15: 16407728.98 | J15: 0.9651605294 | K15: =SUM(K16:K18) -> 34000000
A16: Dams & Reservoirs | C16: 2946000 | D16: 34000000 | E16: 34000000 | F16: 51623.27 | G16: 592271 | H16: 16999999.98 | I16: 16407728.98 | J16: 0.9651605294 | K16: 34000000
A17: Water purification | I17: 0
A18: Reticulation | I18: 0
A19: Infrastructure - Sanitation | C19: =SUM(C20:C21) -> 2132000 | D19: 0 | E19: 0 | F19: 0 | G19: 0 | H19: 0 | I19: 0 | K19: =SUM(K20:K21) -> 0
A20: Reticulation | C20: 2132000 | I20: 0
A21: Sewerage purification | I21: 0
A22: Infrastructure - Other | C22: =SUM(C23:C26) -> 681000 | D22: 0 | E22: 0 | F22: 0 | G22: 0 | H22: 0 | I22: 0 | K22: =SUM(K23:K26) -> 0
A23: Waste Management | I23: 0
A24: Transportation | I24: 0
A25: Gas | I25: 0
A26: Other | C26: 681000 | I26: 0
A28: Community | C28: =SUM(C29:C42) -> 1296546 | D28: 0 | E28: 0 | F28: 0 | G28: 0 | H28: 0 | I28: 0 | K28: =SUM(K29:K42) -> 0
A29: Parks & gardens | I29: 0
A30: Sportsfields & stadia | I30: 0
A31: Swimming pools | I31: 0
A32: Community halls | C32: 1296546 | I32: 0
A33: Libraries | I33: 0
A34: Recreational facilities | I34: 0
A35: Fire, safety & emergency | I35: 0
A36: Security and policing | I36: 0
A37: Buses | I37: 0
A38: Clinics | I38: 0
A39: Museums & Art Galleries | I39: 0
A40: Cemeteries | I40: 0
A41: Social rental housing | I41: =H41-G41 -> 0 | J41: =IF(I41=0,"",I41/H41) -> 
A42: Other | I42: 0
A43: Heritage assets | C43: =SUM(C44:C45) -> 0 | D43: 0 | E43: 0 | F43: 0 | G43: 0 | H43: 0 | I43: 0 | K43: =SUM(K44:K45) -> 0
A44: Buildings | I44: 0
A45: Other | I45: 0
I46: 0
A47: Investment properties | C47: =SUM(C48:C49) -> 0 | D47: 0 | E47: 0 | F47: 0 | G47: 0 | H47: 0 | I47: 0 | K47: =SUM(K48:K49) -> 0
A48: Housing development | I48: 0
A49: Other | I49: 0
A50: Other assets | C50: =SUM(C51:C62) -> 2065039 | D50: 0 | E50: 0 | F50: 0 | G50: 0 | H50: 0 | I50: 0 | K50: 0
A51: General vehicles | I51: 0
A52: Specialised vehicles | C52: =C78 -> 0 | D52: 0 | E52: 0 | F52: 0 | G52: 0 | H52: 0 | I52: 0 | K52: =K78 -> 0
A53: Plant & equipment | I53: 0
A54: Computers - hardware/equipment | I54: 0
A55: Furniture and other office equipment | I55: 0
A56: Abattoirs | I56: 0
A57: Markets | I57: 0
A58: Civic Land and Buildings | I58: 0
A59: Other Buildings | C59: 2065039 | I59: 0
A60: Other Land | I60: 0
A61: Surplus Assets - (Investment or Inventory) | I61: 0
A62: Other | I62: 0
A64: Agricultural assets | C64: =SUM(C65:C66) -> 0 | D64: 0 | E64: 0 | F64: 0 | G64: 0 | H64: 0 | I64: =H64-G64 -> 0 | K64: =SUM(K65) -> 0
A65: List sub-class | I65: =H65-G65 -> 0
I66: =H66-G66 -> 0
J67: =IF(I67=0,"",I67/H67) -> 
A68: Biological assets | C68: =SUM(C69:C70) -> 0 | D68: 0 | E68: 0 | F68: 0 | G68: 0 | H68: 0 | I68: =H68-G68 -> 0 | J68: =IF(I68=0,"",I68/H68) ->  | K68: =SUM(K69) -> 0
A69: List sub-class | I69: =H69-G69 -> 0 | J69: =IF(I69=0,"",I69/H69) -> 
I70: =H70-G70 -> 0 | J70: =IF(I70=0,"",I70/H70) -> 
A72: Intangibles | C72: =SUM(C73:C74) -> 6316 | D72: 0 | E72: 0 | F72: 0 | G72: 0 | H72: 0 | I72: =H72-G72 -> 0 | J72: =IF(I72=0,"",I72/H72) ->  | K72: =SUM(K73:K74) -> 0
A73: Computers - software & programming | I73: =H73-G73 -> 0 | J73: =IF(I73=0,"",I73/H73) -> 
A74: Other | C74: 6316 | I74: =H74-G74 -> 0 | J74: =IF(I74=0,"",I74/H74) -> 
A76: Total Capital Expenditure on new assets | B76: 1 | C76: =C7+C28+C43+C47+C50+C64+C68+C72 -> 13717299 | D76: 43095000 | E76: 43095000 | F76: 1357545.21 | G76: 2142057.05 | H76: 21547499.96 | I76: 19405442.91 | J76: 0.9005890682 | K76: =K7+K28+K43+K47+K50+K64+K68+K72 -> 43095000
A78: Specialised vehicles | C78: =SUM(C79:C82) -> 0 | D78: 0 | E78: 0 | F78: 0 | G78: 0 | H78: 0 | I78: =H78-G78 -> 0 | J78: =IF(I78=0,"",I78/H78) ->  | K78: 0
A79: Refuse | I79: =H79-G79 -> 0 | J79: =IF(I79=0,"",I79/H79) -> 
A80: Fire | I80: =H80-G80 -> 0 | J80: =IF(I80=0,"",I80/H80) -> 
A81: Conservancy | I81: =H81-G81 -> 0 | J81: =IF(I81=0,"",I81/H81) -> 
A82: Ambulances | I82: =H82-G82 -> 0 | J82: =IF(I82=0,"",I82/H82) -> 
A83: =head27a -> References
A84: 1. Total Capital Expenditure on new assets (SC13a) plus Total Capital Expenditure on renewal of existing assets (SC13b) must reconcile to total capital expenditure in Table C5
A86: check balance | C86: =C76+SC13b!C76-'C5-Capex'!C40 -> 5775753 | D86: =D76+SC13b!D76-'C5-Capex'!D40 -> 0 | E86: =E76+SC13b!E76-'C5-Capex'!E40 -> 8095000 | F86: =F76+SC13b!F76-'C5-Capex'!F40 -> 0 | G86: =G76+SC13b!G76-'C5-Capex'!G40 -> 0 | H86: =H76+SC13b!H76-'C5-Capex'!H40 -> 0 | K86: =K76+SC13b!K76-'C5-Capex'!K40 -> 0

Sheet SC13b
A1: =muni& " - "&S71Sb& " - "&Head57 -> NC074 Kareeberg - Supporting Table SC13b Monthly Budget Statement - capital expenditure on renewal of existing assets by asset class - Mid-Year Assessment
A2: =desc -> Description | B2: =head27 -> Ref | C2: =Head1 -> 2016/17 | D2: =Head2 -> Budget Year 2017/18
C3: =Head5 -> Audited Outcome | D3: =Head6 -> Original Budget | E3: =Head7 -> Adjusted Budget | F3: =Head38 -> Monthly actual | G3: =Head39 -> YearTD actual | H3: =Head40 -> YearTD budget | I3: =Head41 -> YTD variance | J3: =Head41 -> YTD variance | K3: =Head8 -> Full Year Forecast
A4: R thousands | B4: 1 | J4: %
A5: Capital expenditure on renewal of existing assets by Asset Class/Sub-class
A7: Infrastructure | C7: =C8+C11+C15+C19+C22 -> 0 | D7: 0 | E7: 0 | F7: 0 | G7: 0 | H7: 0 | I7: =H7-G7 -> 0 | J7: =IF(I7=0,"",I7/H7) ->  | K7: =K8+K11+K15+K19+K22 -> 0
A8: Infrastructure - Road transport | C8: =SUM(C9:C10) -> 0 | D8: 0 | E8: 0 | F8: 0 | G8: 0 | H8: 0 | I8: 0 | K8: =SUM(K9:K10) -> 0
A9: Roads, Pavements & Bridges | I9: 0
A10: Storm water | I10: 0
A11: Infrastructure - Electricity | C11: =SUM(C12:C14) -> 0 | D11: 0 | E11: 0 | F11: 0 | G11: 0 | H11: 0 | I11: 0 | K11: =SUM(K12:K14) -> 0
A12: Generation | I12: 0
A13: Transmission & Reticulation | I13: 0
A14: Street Lighting | I14: 0
A15: Infrastructure - Water | C15: =SUM(C16:C18) -> 0 | D15: 0 | E15: 0 | F15: 0 | G15: 0 | H15: 0 | I15: 0 | K15: =SUM(K16:K18) -> 0
A16: Dams & Reservoirs | I16: 0
A17: Water purification | I17: 0
A18: Reticulation | I18: 0
A19: Infrastructure - Sanitation | C19: =SUM(C20:C21) -> 0 | D19: 0 | E19: 0 | F19: 0 | G19: 0 | H19: 0 | I19: 0 | K19: =SUM(K20:K21) -> 0
A20: Reticulation | I20: 0
A21: Sewerage purification | I21: 0
A22: Infrastructure - Other | C22: =SUM(C23:C26) -> 0 | D22: 0 | E22: 0 | F22: 0 | G22: 0 | H22: 0 | I22: 0 | K22: =SUM(K23:K26) -> 0
A23: Waste Management | I23: 0
A24: Transportation | I24: 0
A25: Gas | I25: 0
A26: Other | I26: 0
A28: Community | C28: =SUM(C29:C42) -> 0 | D28: 0 | E28: 0 | F28: 0 | G28: 0 | H28: 0 | I28: 0 | K28: =SUM(K29:K42) -> 0
A29: Parks & gardens | I29: 0
A30: Sportsfields & stadia | I30: 0
A31: Swimming pools | I31: 0
A32: Community halls | I32: 0
A33: Libraries | I33: 0
A34: Recreational facilities | I34: 0
A35: Fire, safety & emergency | I35: 0
A36: Security and policing | I36: 0
A37: Buses | I37: 0
A38: Clinics | I38: 0
A39: Museums & Art Galleries | I39: 0
A40: Cemeteries | I40: 0
A41: Social rental housing | I41: 0
A42: Other | I42: 0
A43: Heritage assets | C43: =SUM(C44:C45) -> 0 | D43: 0 | E43: 0 | F43: 0 | G43: 0 | H43: 0 | I43: 0 | K43: =SUM(K44:K45) -> 0
A44: Buildings | I44: 0
A45: Other | I45: 0
I46: 0
A47: Investment properties | C47: =SUM(C48:C49) -> 0 | D47: 0 | E47: 0 | F47: 0 | G47: 0 | H47: 0 | I47: 0 | K47: =SUM(K48:K49) -> 0
A48: Housing development | I48: 0
A49: Other | I49: 0
A50: Other assets | C50: =SUM(C51:C62) -> 0 | D50: 0 | E50: 0 | F50: 0 | G50: 0 | H50: 0 | I50: 0 | K50: 0
A51: General vehicles | I51: 0
A52: Specialised vehicles | C52: =C78 -> 0 | D52: 0 | E52: 0 | F52: 0 | G52: 0 | H52: 0 | I52: 0 | K52: =K78 -> 0
A53: Plant & equipment | I53: 0
A54: Computers - hardware/equipment | I54: 0
A55: Furniture and other office equipment | I55: 0
A56: Abattoirs | I56: 0
A57: Markets | I57: 0
A58: Civic Land and Buildings | I58: 0
A59: Other Buildings | I59: 0
A60: Other Land | I60: 0
A61: Surplus Assets - (Investment or Inventory) | I61: 0
A62: Other | I62: 0
A64: Agricultural assets | C64: =SUM(C65:C66) -> 0 | D64: 0 | E64: 0 | F64: 0 | G64: 0 | H64: 0 | I64: =H64-G64 -> 0 | K64: =SUM(K65) -> 0
A65: List sub-class | I65: =H65-G65 -> 0
I66: =H66-G66 -> 0
J67: =IF(I67=0,"",I67/H67) -> 
A68: Biological assets | C68: =SUM(C69:C70) -> 0 | D68: 0 | E68: 0 | F68: 0 | G68: 0 | H68: 0 | I68: =H68-G68 -> 0 | J68: =IF(I68=0,"",I68/H68) ->  | K68: =SUM(K69) -> 0
A69: List sub-class | I69: =H69-G69 -> 0 | J69: =IF(I69=0,"",I69/H69) -> 
I70: =H70-G70 -> 0 | J70: =IF(I70=0,"",I70/H70) -> 
A72: Intangibles | C72: =SUM(C73:C74) -> 0 | D72: 0 | E72: 0 | F72: 0 | G72: 0 | H72: 0 | I72: =H72-G72 -> 0 | J72: =IF(I72=0,"",I72/H72) ->  | K72: =SUM(K73:K74) -> 0
A73: Computers - software & programming | I73: =H73-G73 -> 0 | J73: =IF(I73=0,"",I73/H73) -> 
A74: Other | I74: =H74-G74 -> 0 | J74: =IF(I74=0,"",I74/H74) -> 
A76: Total Capital Expenditure on renewal of existing assets | B76: 1 | C76: =C7+C28+C43+C47+C50+C64+C68+C72 -> 0 | D76: 0 | E76: 0 | F76: 0 | G76: 0 | H76: 0 | I76: =H76-G76 -> 0 | J76: =IF(I76=0,"",I76/H76) ->  | K76: =K7+K28+K43+K47+K50+K64+K68+K72 -> 0
A78: Specialised vehicles | C78: =SUM(C79:C82) -> 0 | D78: 0 | E78: 0 | F78: 0 | G78: 0 | H78: 0 | I78: =H78-G78 -> 0 | J78: =IF(I78=0,"",I78/H78) ->  | K78: 0
A79: Refuse | I79: =H79-G79 -> 0 | J79: =IF(I79=0,"",I79/H79) -> 
A80: Fire | I80: =H80-G80 -> 0 | J80: =IF(I80=0,"",I80/H80) -> 
A81: Conservancy | I81: =H81-G81 -> 0 | J81: =IF(I81=0,"",I81/H81) -> 
A82: Ambulances | I82: =H82-G82 -> 0 | J82: =IF(I82=0,"",I82/H82) -> 
A83: =head27a -> References
A84: 1. Total Capital Expenditure on new assets (SC13a) plus Total Capital Expenditure on renewal of existing assets (SC13b) must reconcile to total capital expenditure in Table C5
A86: check balance | C86: =C76+SC13a!C76-'C5-Capex'!C40 -> 5775753 | D86: =D76+SC13a!D76-'C5-Capex'!D40 -> 0 | E86: =E76+SC13a!E76-'C5-Capex'!E40 -> 8095000 | F86: =F76+SC13a!F76-'C5-Capex'!F40 -> 0 | G86: =G76+SC13a!G76-'C5-Capex'!G40 -> 0 | H86: =H76+SC13a!H76-'C5-Capex'!H40 -> 0 | K86: =K76+SC13a!K76-'C5-Capex'!K40 -> 0

Sheet SC13c
A1: =muni& " - "&S71Sc& " - "&Head57 -> NC074 Kareeberg - Supporting Table SC13c Monthly Budget Statement - expenditure on repairs and maintenance by asset class - Mid-Year Assessment
A2: =desc -> Description | B2: =head27 -> Ref | C2: =Head1 -> 2016/17 | D2: =Head2 -> Budget Year 2017/18
C3: =Head5 -> Audited Outcome | D3: =Head6 -> Original Budget | E3: =Head7 -> Adjusted Budget | F3: =Head38 -> Monthly actual | G3: =Head39 -> YearTD actual | H3: =Head40 -> YearTD budget | I3: =Head41 -> YTD variance | J3: =Head41 -> YTD variance | K3: =Head8 -> Full Year Forecast
A4: R thousands | B4: 1 | J4: %
A5: Repairs and maintenance expenditure by Asset Class/Sub-class
A7: Infrastructure | C7: =C8+C11+C15+C19+C22 -> 988230 | D7: 1044750 | E7: 1044750 | F7: 118101.3 | G7: 1114130.82 | H7: 1029339.92 | I7: =H7-G7 -> -84790.9 | J7: =IF(I7=0,"",I7/H7) -> -0.08237405191 | K7: =K8+K11+K15+K19+K22 -> 1044750
A8: Infrastructure - Road transport | C8: =SUM(C9:C10) -> 14598 | D8: 172010 | E8: 172010 | F8: 41344 | G8: 125021 | H8: 27528 | I8: -97493 | J8: -3.541594013 | K8: =SUM(K9:K10) -> 172010
A9: Roads, Pavements & Bridges | C9: 14598 | D9: 172010 | E9: 172010 | F9: 41344 | G9: =4588+16903+17360+25757+19069+41344 -> 125021 | H9: =4588*6 -> 27528 | I9: -97493 | J9: -3.541594013 | K9: 172010
A10: Storm water | I10: 0
A11: Infrastructure - Electricity | C11: =SUM(C12:C14) -> 408966 | D11: 132740 | E11: 132740 | F11: 18343 | G11: 155625 | H11: 151320 | I11: -4305 | J11: -0.02844964314 | K11: =SUM(K12:K14) -> 132740
A12: Generation | I12: 0
A13: Transmission & Reticulation | C13: 408966 | D13: 132740 | E13: 132740 | F13: 18343 | G13: =25220+18597+30412+34139+28914+18343 -> 155625 | H13: =25220*6 -> 151320 | I13: -4305 | J13: -0.02844964314 | K13: 132740
A14: Street Lighting | I14: 0
A15: Infrastructure - Water | C15: =SUM(C16:C18) -> 393712 | D15: 365000 | E15: 365000 | F15: 2947 | G15: 76041 | H15: 97110 | I15: 21069 | J15: 0.2169601483 | K15: =SUM(K16:K18) -> 365000
A16: Dams & Reservoirs | C16: 393712 | D16: 365000 | E16: 365000 | F16: 2947 | G16: =16185+13946+15705+21854+5404+2947 -> 76041 | H16: =16185*6 -> 97110 | I16: 21069 | J16: 0.2169601483 | K16: 365000
A17: Water purification | I17: 0
A18: Reticulation | I18: 0
A19: Infrastructure - Sanitation | C19: =SUM(C20:C21) -> 69221 | D19: 365000 | E19: 365000 | F19: 5066.11 | G19: 93171.31 | H19: 11245.86 | I19: -81925.45 | J19: -7.284943081 | K19: =SUM(K20:K21) -> 365000
A20: Reticulation | C20: 69221 | D20: 365000 | E20: 365000 | F20: 5066.11 | G20: =1874.31+21783+16698+22699+25051+5066 -> 93171.31 | H20: =1874.31*6 -> 11245.86 | I20: -81925.45 | J20: -7.284943081 | K20: 365000
A21: Sewerage purification | I21: 0
A22: Infrastructure - Other | C22: =SUM(C23:C26) -> 101733 | D22: 10000 | E22: 10000 | F22: 50401.19 | G22: 664272.51 | H22: 742136.06 | I22: 77863.55 | J22: 0.1049181602 | K22: =SUM(K23:K26) -> 10000
A23: Waste Management | D23: 10000 | E23: 10000 | F23: 46796.19 | G23: =33789.51+518+3890+34396+5484+46796 -> 124873.51 | H23: =33789.51*6 -> 202737.06 | I23: 77863.55 | J23: 0.3840617497 | K23: 10000
A24: Transportation | I24: 0
A25: Gas | I25: 0
A26: Other | C26: 101733 | F26: 3605 | G26: =119951+44727+195465+175651+3605 -> 539399 | H26: =119951+44727+195465+175651+3605 -> 539399 | I26: 0
A28: Community | C28: =SUM(C29:C42) -> 1042152 | D28: 563181 | E28: 563181 | F28: 60499.08 | G28: 97194 | H28: 180391 | I28: 83197 | J28: 0.4612037186 | K28: =SUM(K29:K42) -> 563181
A29: Parks & gardens | D29: 23700 | E29: 23700 | F29: 56179.72 | G29: =2250+387+7953+8000+1386+7612+56179 -> 83767 | H29: =2250*6 -> 13500 | I29: -70267 | J29: -5.204962963 | K29: 23700
A30: Sportsfields & stadia | I30: 0
A31: Swimming pools | I31: 0
A32: Community halls | C32: 33614 | I32: 0
A33: Libraries | D33: 306044 | E33: 306044 | F33: 1987.63 | G33: =689.21+689+100+305+1044+1987 -> 4814.21 | H33: =25503.6666666667*6 -> 153022 | I33: 148207.79 | J33: 0.968539099 | K33: 306044
A34: Recreational facilities | D34: 22400 | E34: 22400 | F34: 1781.73 | G34: =1764+721+504+1781 -> 4770 | H34: =1866.66666666667*6 -> 11200 | I34: 6430 | J34: 0.5741071429 | K34: 22400
A35: Fire, safety & emergency | D35: 6730 | E35: 6730 | F35: 375 | G35: 375 | H35: 375 | I35: 0 | K35: 6730
A36: Security and policing | I36: 0
A37: Buses | I37: 0
A38: Clinics | D38: 3000 | E38: 3000 | G38: 1102.79 | H38: =250*5 -> 1250 | I38: 147.21 | J38: 0.117768 | K38: 3000
A39: Museums & Art Galleries | D39: 4290 | E39: 4290 | I39: 0 | K39: 4290
A40: Cemeteries | D40: 6000 | E40: 6000 | F40: 175 | G40: =174+370+1646+175 -> 2365 | H40: =174*6 -> 1044 | I40: -1321 | J40: -1.26532567 | K40: 6000
A41: Social rental housing | I41: 0
A42: Other | C42: 1008538 | D42: 191017 | E42: 191017 | I42: 0 | K42: 191017
A43: Heritage assets | C43: =SUM(C44:C45) -> 0 | D43: 0 | E43: 0 | F43: 0 | G43: 0 | H43: 0 | I43: 0 | K43: =SUM(K44:K45) -> 0
A44: Buildings | I44: 0
A45: Other | I45: 0
I46: 0
A47: Investment properties | C47: =SUM(C48:C49) -> 0 | D47: 3850 | E47: 3850 | F47: 0 | G47: 0 | H47: 0 | I47: 0 | K47: =SUM(K48:K49) -> 3850
A48: Housing development | I48: 0
A49: Other | D49: 3850 | E49: 3850 | I49: 0 | K49: 3850
A50: Other assets | C50: =SUM(C51:C62) -> 0 | D50: 2688942 | E50: 2688942 | F50: 6198 | G50: 340933.33 | H50: -7818.92 | I50: -348752.25 | J50: 44.60363452 | K50: 2688942
A51: General vehicles | I51: 0
A52: Specialised vehicles | C52: =C78 -> 0 | D52: 0 | E52: 0 | F52: 0 | G52: 0 | H52: 0 | I52: 0 | K52: =K78 -> 0
A53: Plant & equipment | I53: 0
A54: Computers - hardware/equipment | I54: 0
A55: Furniture and other office equipment | I55: 0
A56: Abattoirs | D56: 500 | E56: 500 | I56: 0 | K56: 500
A57: Markets | I57: 0
A58: Civic Land and Buildings | I58: 0
A59: Other Buildings | D59: 32070 | E59: 32070 | F59: 6198 | G59: =1944.75+2384+3365+412+6198 -> 14303.75 | H59: =1944.75*6 -> 11668.5 | I59: -2635.25 | J59: -0.2258430818 | K59: 32070
A60: Other Land | D60: 24600 | E60: 24600 | G60: -40417.42 | H60: -40417.42 | I60: 0 | K60: 24600
A61: Surplus Assets - (Investment or Inventory) | I61: 0
A62: Other | D62: 2631772 | E62: 2631772 | F62: 0 | G62: =4186+155431+122000+54000+31430 -> 367047 | H62: =4186*5 -> 20930 | I62: -346117 | J62: -16.53688485 | K62: 2631772
A64: Agricultural assets | C64: =SUM(C65:C66) -> 0 | D64: 0 | E64: 0 | F64: 0 | G64: 0 | H64: 0 | I64: =H64-G64 -> 0 | K64: =SUM(K65) -> 0
A65: List sub-class | I65: =H65-G65 -> 0
I66: =H66-G66 -> 0
J67: =IF(I67=0,"",I67/H67) -> 
A68: Biological assets | C68: =SUM(C69:C70) -> 0 | D68: 0 | E68: 0 | F68: 0 | G68: 0 | H68: 0 | I68: =H68-G68 -> 0 | J68: =IF(I68=0,"",I68/H68) ->  | K68: =SUM(K69) -> 0
A69: List sub-class | I69: =H69-G69 -> 0 | J69: =IF(I69=0,"",I69/H69) -> 
I70: =H70-G70 -> 0 | J70: =IF(I70=0,"",I70/H70) -> 
A72: Intangibles | C72: =SUM(C73:C74) -> 0 | D72: 0 | E72: 0 | F72: 0 | G72: 0 | H72: 0 | I72: =H72-G72 -> 0 | J72: =IF(I72=0,"",I72/H72) ->  | K72: =SUM(K73:K74) -> 0
A73: Computers - software & programming | I73: =H73-G73 -> 0 | J73: =IF(I73=0,"",I73/H73) -> 
A74: Other | I74: =H74-G74 -> 0 | J74: =IF(I74=0,"",I74/H74) -> 
A76: Total Repairs and Maintenance Expenditure | C76: =C7+C28+C43+C47+C50+C64+C68+C72 -> 2030382 | D76: 4300723 | E76: 4300723 | F76: 184798.38 | G76: 1552258.15 | H76: 1201912 | I76: =H76-G76 -> -350346.15 | J76: =IF(I76=0,"",I76/H76) -> -0.2914906832 | K76: =K7+K28+K43+K47+K50+K64+K68+K72 -> 4300723
A78: Specialised vehicles | C78: =SUM(C79:C82) -> 0 | D78: 0 | E78: 0 | F78: 0 | G78: 0 | H78: 0 | I78: =H78-G78 -> 0 | J78: =IF(I78=0,"",I78/H78) ->  | K78: 0
A79: Refuse | I79: =H79-G79 -> 0 | J79: =IF(I79=0,"",I79/H79) -> 
A80: Fire | I80: =H80-G80 -> 0 | J80: =IF(I80=0,"",I80/H80) -> 
A81: Conservancy | I81: =H81-G81 -> 0 | J81: =IF(I81=0,"",I81/H81) -> 
A82: Ambulances | I82: =H82-G82 -> 0 | J82: =IF(I82=0,"",I82/H82) -> 

Sheet SC13d
A1: =muni& " - "&S71Sd& " - "&Head57 -> NC074 Kareeberg - Supporting Table SC13d Monthly Budget Statement - depreciation by asset class - Mid-Year Assessment
A2: =desc -> Description | B2: =head27 -> Ref | C2: =Head1 -> 2016/17 | D2: =Head2 -> Budget Year 2017/18
C3: =Head5 -> Audited Outcome | D3: =Head6 -> Original Budget | E3: =Head7 -> Adjusted Budget | F3: =Head38 -> Monthly actual | G3: =Head39 -> YearTD actual | H3: =Head40 -> YearTD budget | I3: =Head41 -> YTD variance | J3: =Head41 -> YTD variance | K3: =Head8 -> Full Year Forecast
A4: R thousands | B4: 1 | J4: %
A5: Depreciation by Asset Class/Sub-class
A7: Infrastructure | C7: =C8+C11+C15+C19+C22 -> 2327105 | D7: 2327105 | E7: 2327105 | F7: 193922 | G7: 1163532 | H7: 1163532 | I7: =H7-G7 -> 0 | J7: =IF(I7=0,"",I7/H7) ->  | K7: =K8+K11+K15+K19+K22 -> 2327105
A8: Infrastructure - Road transport | C8: =SUM(C9:C10) -> 1605987 | D8: 1605987 | E8: 1605987 | F8: 133831 | G8: 802986 | H8: 802986 | I8: 0 | K8: =SUM(K9:K10) -> 1605987
A9: Roads, Pavements & Bridges | C9: 1476317 | D9: 1476317 | E9: 1476317 | F9: 123026 | G9: =123026*6 -> 738156 | H9: =123026*6 -> 738156 | I9: 0 | K9: 1476317
A10: Storm water | C10: 129670 | D10: 129670 | E10: 129670 | F10: 10805 | G10: =10805*6 -> 64830 | H10: =10805*6 -> 64830 | I10: 0 | K10: 129670
A11: Infrastructure - Electricity | C11: =SUM(C12:C14) -> 112510 | D11: 112510 | E11: 112510 | F11: 9375 | G11: 56250 | H11: 56250 | I11: 0 | K11: =SUM(K12:K14) -> 112510
A12: Generation | C12: 112510 | D12: 112510 | E12: 112510 | F12: 9375 | G12: =9375*6 -> 56250 | H12: =9375*6 -> 56250 | I12: 0 | K12: 112510
A13: Transmission & Reticulation | I13: 0
A14: Street Lighting | I14: 0
A15: Infrastructure - Water | C15: =SUM(C16:C18) -> 129670 | D15: 129670 | E15: 129670 | F15: 10805 | G15: 64830 | H15: 64830 | I15: 0 | K15: =SUM(K16:K18) -> 129670
A16: Dams & Reservoirs | C16: 129670 | D16: 129670 | E16: 129670 | F16: 10805 | G16: =10805*6 -> 64830 | H16: =10805*6 -> 64830 | I16: 0 | K16: 129670
A17: Water purification | I17: 0
A18: Reticulation | I18: 0
A19: Infrastructure - Sanitation | C19: =SUM(C20:C21) -> 465171 | D19: 465171 | E19: 465171 | F19: 38764 | G19: 232584 | H19: 232584 | I19: 0 | K19: =SUM(K20:K21) -> 465171
A20: Reticulation | C20: 0 | D20: 0 | E20: 0 | I20: 0
A21: Sewerage purification | C21: 465171 | D21: 465171 | E21: 465171 | F21: 38764 | G21: =38764*6 -> 232584 | H21: =38764*6 -> 232584 | I21: 0 | K21: 465171
A22: Infrastructure - Other | C22: =SUM(C23:C26) -> 13767 | D22: 13767 | E22: 13767 | F22: 1147 | G22: 6882 | H22: 6882 | I22: 0 | K22: =SUM(K23:K26) -> 13767
A23: Waste Management | C23: 13767 | D23: 13767 | E23: 13767 | F23: 1147 | G23: =1147*6 -> 6882 | H23: =1147*6 -> 6882 | I23: 0 | K23: 13767
A24: Transportation | I24: 0
A25: Gas | I25: 0
A26: Other | I26: 0
A28: Community | C28: =SUM(C29:C42) -> 370546 | D28: 370546 | E28: 370546 | F28: 30880 | G28: 185280 | H28: 185280 | I28: 0 | K28: =SUM(K29:K42) -> 368627
A29: Parks & gardens | C29: 575 | D29: 575 | E29: 575 | F29: 50 | G29: =50*6 -> 300 | H29: =50*6 -> 300 | I29: 0 | K29: =E29 -> 575
A30: Sportsfields & stadia | I30: 0 | K30: =E30 -> 0
A31: Swimming pools | I31: 0
A32: Community halls | I32: 0
A33: Libraries | C33: 10709 | D33: 10709 | E33: 10709 | F33: 892 | G33: =892*6 -> 5352 | H33: =892*6 -> 5352 | I33: 0 | K33: =E33 -> 10709
A34: Recreational facilities | C34: 329808 | D34: 329808 | E34: 329808 | F34: 27484 | G34: =27484*6 -> 164904 | H34: =27484*6 -> 164904 | I34: 0 | K34: =E34 -> 329808
A35: Fire, safety & emergency | I35: 0
A36: Security and policing | I36: 0
A37: Buses | I37: 0
A38: Clinics | C38: 6052 | D38: 6052 | E38: 6052 | F38: 504 | G38: =504*6 -> 3024 | H38: =504*6 -> 3024 | I38: 0 | K38: =E38 -> 6052
A39: Museums & Art Galleries | C39: 6383 | D39: 6383 | E39: 6383 | F39: 532 | G39: =532*6 -> 3192 | H39: =532*6 -> 3192 | I39: 0 | K39: =E39 -> 6383
A40: Cemeteries | C40: 15100 | D40: 15100 | E40: 15100 | F40: 1258 | G40: =1258*6 -> 7548 | H40: =1258*6 -> 7548 | I40: 0 | K40: =E40 -> 15100
A41: Social rental housing | I41: 0
A42: Other | C42: 1919 | D42: 1919 | E42: 1919 | F42: 160 | G42: =160*6 -> 960 | H42: =160*6 -> 960 | I42: 0
A43: Heritage assets | C43: =SUM(C44:C45) -> 0 | D43: 0 | E43: 0 | F43: 0 | G43: 0 | H43: 0 | I43: 0 | K43: =SUM(K44:K45) -> 0
A44: Buildings | I44: 0
A45: Other | I45: 0
I46: 0
A47: Investment properties | C47: =SUM(C48:C49) -> 0 | D47: 0 | E47: 0 | F47: 0 | G47: 0 | H47: 0 | I47: 0 | K47: =SUM(K48:K49) -> 0
A48: Housing development | I48: 0
A49: Other | I49: 0 | K49: =E49 -> 0
A50: Other assets | C50: =SUM(C51:C62) -> 313139 | D50: 313139 | E50: 313139 | F50: 26113 | G50: 156678 | H50: 156678 | I50: 0 | K50: 313139
A51: General vehicles | C51: 115756 | D51: 115756 | E51: 115756 | F51: 9666 | G51: =9666*6 -> 57996 | H51: =9666*6 -> 57996 | I51: 0 | K51: =E51 -> 115756
A52: Specialised vehicles | C52: =C78 -> 8303 | D52: 8303 | E52: 8303 | F52: 692 | G52: 4152 | H52: 4152 | I52: 0 | K52: =K78 -> 8303
A53: Plant & equipment | C53: 82944 | D53: 82944 | E53: 82944 | F53: 6912 | G53: =6912*6 -> 41472 | H53: =6912*6 -> 41472 | I53: 0 | K53: 82944
A54: Computers - hardware/equipment | I54: 0
A55: Furniture and other office equipment | C55: 40486 | D55: 40486 | E55: 40486 | F55: 3373 | G55: =3373*6 -> 20238 | H55: =3373*6 -> 20238 | I55: 0 | K55: 40486
A56: Abattoirs | I56: 0
A57: Markets | I57: 0
A58: Civic Land and Buildings | C58: 2172 | D58: 2172 | E58: 2172 | F58: 181 | G58: =181*6 -> 1086 | H58: =181*6 -> 1086 | I58: 0 | K58: 2172
A59: Other Buildings | C59: 63478 | D59: 63478 | E59: 63478 | F59: 5289 | G59: =5289*6 -> 31734 | H59: =5289*6 -> 31734 | I59: 0 | K59: 63478
A60: Other Land | I60: 0
A61: Surplus Assets - (Investment or Inventory) | I61: 0
A62: Other | I62: 0
A64: Agricultural assets | C64: =SUM(C65:C66) -> 0 | D64: 0 | E64: 0 | F64: 0 | G64: 0 | H64: 0 | I64: =H64-G64 -> 0 | K64: =SUM(K65) -> 0
A65: List sub-class | I65: =H65-G65 -> 0
I66: =H66-G66 -> 0
J67: =IF(I67=0,"",I67/H67) -> 
A68: Biological assets | C68: =SUM(C69:C70) -> 0 | D68: 0 | E68: 0 | F68: 0 | G68: 0 | H68: 0 | I68: =H68-G68 -> 0 | J68: =IF(I68=0,"",I68/H68) ->  | K68: =SUM(K69) -> 0
A69: List sub-class | I69: =H69-G69 -> 0 | J69: =IF(I69=0,"",I69/H69) -> 
I70: =H70-G70 -> 0 | J70: =IF(I70=0,"",I70/H70) -> 
A72: Intangibles | C72: =SUM(C73:C74) -> 85809 | D72: 85809 | E72: 85809 | F72: 7125 | G72: 42750 | H72: 42750 | I72: =H72-G72 -> 0 | J72: =IF(I72=0,"",I72/H72) ->  | K72: =SUM(K73:K74) -> 85809
A73: Computers - software & programming | C73: 85809 | D73: 85809 | E73: 85809 | F73: 7125 | G73: =7125*6 -> 42750 | H73: =7125*6 -> 42750 | I73: =H73-G73 -> 0 | J73: =IF(I73=0,"",I73/H73) ->  | K73: 85809
A74: Other | I74: =H74-G74 -> 0 | J74: =IF(I74=0,"",I74/H74) -> 
A76: Total Depreciation | C76: =C7+C28+C43+C47+C50+C64+C68+C72 -> 3096599 | D76: 3096599 | E76: 3096599 | F76: 258040 | G76: 1548240 | H76: 1548240 | I76: =H76-G76 -> 0 | J76: =IF(I76=0,"",I76/H76) ->  | K76: =K7+K28+K43+K47+K50+K64+K68+K72 -> 3094680
A78: Specialised vehicles | C78: =SUM(C79:C82) -> 8303 | D78: 8303 | E78: 8303 | F78: 692 | G78: 4152 | H78: 4152 | I78: =H78-G78 -> 0 | J78: =IF(I78=0,"",I78/H78) ->  | K78: 8303
A79: Refuse | C79: 8246 | D79: 8246 | E79: 8246 | F79: 687 | G79: =687*6 -> 4122 | H79: =687*6 -> 4122 | I79: =H79-G79 -> 0 | J79: =IF(I79=0,"",I79/H79) ->  | K79: =E79 -> 8246
A80: Fire | C80: 57 | D80: 57 | E80: 57 | F80: 5 | G80: =5*6 -> 30 | H80: =5*6 -> 30 | I80: =H80-G80 -> 0 | J80: =IF(I80=0,"",I80/H80) ->  | K80: =E80 -> 57
A81: Conservancy | I81: =H81-G81 -> 0 | J81: =IF(I81=0,"",I81/H81) -> 
A82: Ambulances | I82: =H82-G82 -> 0 | J82: =IF(I82=0,"",I82/H82) -> 

Sheet SC71charts
A1: ='Template names'!B101 -> Chart C1 2017/18 Capital Expenditure Monthly Trend: actual v target
A2: Month | B2: ='SC12'!B2 -> 2016/17 | C2: ='SC12'!C3 -> Original Budget | D2: ='SC12'!D3 -> Adjusted Budget | E2: ='SC12'!E3 -> Monthly actual
A3: =LEFT('SC12'!A6,3) -> Jul | B3: ='SC12'!B6 -> 0 | C3: ='SC12'!C6 -> 3591250 | D3: ='SC12'!D6 -> 3591250 | E3: ='SC12'!E6 -> 49530
A4: =LEFT('SC12'!A7,3) -> Aug | B4: ='SC12'!B7 -> 0 | C4: ='SC12'!C7 -> 3591250 | D4: ='SC12'!D7 -> 3591250 | E4: ='SC12'!E7 -> 122786
A5: =LEFT('SC12'!A8,3) -> Sep | B5: ='SC12'!B8 -> 0 | C5: ='SC12'!C8 -> 3591250 | D5: ='SC12'!D8 -> 3591250 | E5: ='SC12'!E8 -> 336800.94
A6: =LEFT('SC12'!A9,3) -> Oct | B6: ='SC12'!B9 -> 0 | C6: ='SC12'!C9 -> 3591250 | D6: ='SC12'!D9 -> 3591250 | E6: ='SC12'!E9 -> 169763
A7: =LEFT('SC12'!A10,3) -> Nov | B7: ='SC12'!B10 -> 0 | C7: ='SC12'!C10 -> 3591250 | D7: ='SC12'!D10 -> 3591250 | E7: ='SC12'!E10 -> 80557.71
A8: =LEFT('SC12'!A11,3) -> Dec | B8: ='SC12'!B11 -> 0 | C8: ='SC12'!C11 -> 3591250 | D8: ='SC12'!D11 -> 3591250 | E8: ='SC12'!E11 -> 1357545.21
A9: =LEFT('SC12'!A12,3) -> Jan | B9: ='SC12'!B12 -> 0 | C9: ='SC12'!C12 -> 3591250 | D9: ='SC12'!D12 -> 3591250 | E9: ='SC12'!E12 -> 0
A10: =LEFT('SC12'!A13,3) -> Feb | B10: ='SC12'!B13 -> 0 | C10: ='SC12'!C13 -> 3591250 | D10: ='SC12'!D13 -> 3591250 | E10: ='SC12'!E13 -> 0
A11: =LEFT('SC12'!A14,3) -> Mar | B11: ='SC12'!B14 -> 0 | C11: ='SC12'!C14 -> 3591250 | D11: ='SC12'!D14 -> 3591250 | E11: ='SC12'!E14 -> 0
A12: =LEFT('SC12'!A15,3) -> Apr | B12: ='SC12'!B15 -> 0 | C12: ='SC12'!C15 -> 3591250 | D12: ='SC12'!D15 -> 3591250 | E12: ='SC12'!E15 -> 0
A13: =LEFT('SC12'!A16,3) -> May | B13: ='SC12'!B16 -> 0 | C13: ='SC12'!C16 -> 3591250 | D13: ='SC12'!D16 -> 3591250 | E13: ='SC12'!E16 -> 0
A14: =LEFT('SC12'!A17,3) -> Jun | B14: ='SC12'!B17 -> 0 | C14: ='SC12'!C17 -> 3591250 | D14: ='SC12'!D17 -> 3591250 | E14: ='SC12'!E17 -> 0
A26: ='Template names'!B102 -> Chart C2 2017/18 Capital Expenditure: YTD actual v YTD target
A27: Month | B27: ='SC12'!F3 -> YearTD actual | C27: ='SC12'!G3 -> YearTD budget
A28: =LEFT('SC12'!A6,3) -> Jul | B28: ='SC12'!F6 -> 49530 | C28: ='SC12'!G6 -> 3591250
A29: =LEFT('SC12'!A7,3) -> Aug | B29: ='SC12'!F7 -> 172316 | C29: ='SC12'!G7 -> 7182500
A30: =LEFT('SC12'!A8,3) -> Sep | B30: ='SC12'!F8 -> 509116.94 | C30: ='SC12'!G8 -> 10773750
A31: =LEFT('SC12'!A9,3) -> Oct | B31: ='SC12'!F9 -> 678879.94 | C31: ='SC12'!G9 -> 14365000
A32: =LEFT('SC12'!A10,3) -> Nov | B32: ='SC12'!F10 -> 759437.65 | C32: ='SC12'!G10 -> 17956250
A33: =LEFT('SC12'!A11,3) -> Dec | B33: ='SC12'!F11 -> 2116982.86 | C33: ='SC12'!G11 -> 21547500
A34: =LEFT('SC12'!A12,3) -> Jan | B34: ='SC12'!F12 ->  | C34: ='SC12'!G12 -> 25138750
A35: =LEFT('SC12'!A13,3) -> Feb | B35: ='SC12'!F13 ->  | C35: ='SC12'!G13 -> 28730000
A36: =LEFT('SC12'!A14,3) -> Mar | B36: ='SC12'!F14 ->  | C36: ='SC12'!G14 -> 32321250
A37: =LEFT('SC12'!A15,3) -> Apr | B37: ='SC12'!F15 ->  | C37: ='SC12'!G15 -> 35912500
A38: =LEFT('SC12'!A16,3) -> May | B38: ='SC12'!F16 ->  | C38: ='SC12'!G16 -> 39503750
A39: =LEFT('SC12'!A17,3) -> Jun | B39: ='SC12'!F17 ->  | C39: ='SC12'!G17 -> 43095000
A51: ='Template names'!B103 -> Chart C3 Aged Consumer Debtors Analysis
B52: ='SC3'!C3 -> 0-30 Days | C52: ='SC3'!D3 -> 31-60 Days | D52: ='SC3'!E3 -> 61-90 Days | E52: ='SC3'!F3 -> 91-120 Days | F52: ='SC3'!G3 -> 121-150 Dys | G52: ='SC3'!H3 -> 151-180 Dys | H52: ='SC3'!I3 -> 181 Dys-1 Yr | I52: ='SC3'!J3 -> Over 1Yr
A53: =Head2 -> Budget Year 2017/18 | B53: ='SC3'!C14 -> -559348.41 | C53: ='SC3'!D14 -> 472973.42 | D53: ='SC3'!E14 -> 322488.49 | E53: ='SC3'!F14 -> 243239.5 | F53: ='SC3'!G14 -> 219501.39 | G53: ='SC3'!H14 -> 193409.82 | H53: ='SC3'!I14 -> 197092.47 | I53: ='SC3'!J14 -> 1709680.28
A54: =Head1 -> 2016/17 | B54: ='SC3'!C15 -> 0 | C54: ='SC3'!D15 -> 0 | D54: ='SC3'!E15 -> 0 | E54: ='SC3'!F15 -> 0 | F54: ='SC3'!G15 -> 0 | G54: ='SC3'!H15 -> 0 | H54: ='SC3'!I15 -> 0 | I54: ='SC3'!J15 -> 0
A76: ='Template names'!B104 -> Chart C4 Consumer Debtors (total by Debtor Customer Category)
B77: =Head1 -> 2016/17 | C77: =Head2 -> Budget Year 2017/18
A78: ='SC3'!A17 -> Organs of State | B78: =C78*0.97 -> 422090.2911 | C78: ='SC3'!K17 -> 435144.63
A79: ='SC3'!A18 -> Commercial | B79: =C79*0.97 -> 378767.5303 | C79: ='SC3'!K18 -> 390481.99
A80: ='SC3'!A19 -> Households | B80: =C80*0.97 -> 1861619.063 | C80: ='SC3'!K19 -> 1919194.91
A81: ='SC3'!A20 -> Other | B81: =C81*0.97 -> 52588.9671 | C81: ='SC3'!K20 -> 54215.43
A101: ='Template names'!B105 -> Chart C5 Aged Creditors Analysis
B102: ='SC4'!A6 -> Bulk Electricity | C102: ='SC4'!A7 -> Bulk Water | D102: ='SC4'!A8 -> PAYE deductions | E102: ='SC4'!A9 -> VAT (output less input) | F102: ='SC4'!A10 -> Pensions / Retirement deductions | G102: ='SC4'!A11 -> Loan repayments | H102: ='SC4'!A12 -> Trade Creditors | I102: ='SC4'!A13 -> Auditor General | J102: ='SC4'!A14 -> Other
A103: =A54 -> 2016/17 | B103: ='SC4'!L6 -> 0 | C103: ='SC4'!L7 -> 0 | D103: ='SC4'!L8 -> 0 | E103: ='SC4'!L9 -> 0 | F103: ='SC4'!L10 -> 0 | G103: ='SC4'!L11 -> 0 | H103: ='SC4'!L12 -> 0 | I103: ='SC4'!L13 -> 0 | J103: ='SC4'!L14 -> 0
A104: =A53 -> Budget Year 2017/18 | B104: ='SC4'!K6 -> 0 | C104: ='SC4'!K7 -> 0 | D104: ='SC4'!K8 -> 0 | E104: ='SC4'!K9 -> 0 | F104: ='SC4'!K10 -> 0 | G104: ='SC4'!K11 -> 0 | H104: ='SC4'!K12 -> 0 | I104: ='SC4'!K13 -> 0 | J104: ='SC4'!K14 -> 342176
